TRANSACTION,PAYMENT DATE,SUPPLIER NAME,PURPOSE,DEPARTMENT,AMOUNT
0000013157,03/10/2022,HUGHES AND SALVIDGE LTD,Buildings,Dir of Finance,268573.21
IN47597,03/10/2022,MATRIX SCM LTD,SalAgen-Est Post,Dir of Children's Services,217554.64
IN47597,03/10/2022,MATRIX SCM LTD,SalAgen-Est Post,"Dir of  Culture, Strategy & Engagement",187696.20
IN47597,03/10/2022,MATRIX SCM LTD,SalAgen-Est Post,Dir of Placemaking & Housing,180181.13
IN47597,03/10/2022,MATRIX SCM LTD,SalAgen-Est Post,Dir of Environment & Neighbourhoods,136603.97
IN47597,03/10/2022,MATRIX SCM LTD,SalAgen-Est Post,"Dir of Adults, Health & Communities",116862.40
IN47597,03/10/2022,MATRIX SCM LTD,SalAgen-Est Post,Housing Revenue Account,81432.33
SINV012778,03/10/2022,EQUANS REGENERATION (APOLLO) LIMITE,Buildings,Dir of Finance,72601.99
10915,03/10/2022,NIKE CONSULTANTS LTD T/A NIKE COMPU,Hardware,Dir of Finance,70334.06
14468,03/10/2022,Sole Electrical Services Ltd,Electrical,Dir of Finance,56080.00
OP/N245482,03/10/2022,SPECIALIST COMPUTER CENTRES PLC,Services,"Dir of  Culture, Strategy & Engagement",48318.33
IN47597,03/10/2022,MATRIX SCM LTD,SalAgen-Est Post,Dir of Finance,28610.89
434046,03/10/2022,LANCASHIRE COUNTY COUNCIL,Empl&Train-SS Client,Dir of Children's Services,27000.00
IN47597,03/10/2022,MATRIX SCM LTD,SalAgen-Est Post,Assistant Dir Corporate Governance,22554.84
HFH029,03/10/2022,OMEGA CITYLIFTS SERVICES LIMITED,Priv - Sub Contract,Housing Revenue Account,21697.64
BRT-SOW23-24-001,03/10/2022,GRANT PAYMENTS,Voluntary Org,Dir of Environment & Neighbourhoods,20000.00
434051,03/10/2022,ALLPAY LTD ADULTS DIRECT PAYMENTS,Prv Sctr Care Pkage,"Dir of Adults, Health & Communities",13204.50
SINV012777,03/10/2022,EQUANS REGENERATION (APOLLO) LIMITE,Buildings,Dir of Finance,12741.31
032640,03/10/2022,Liquidlogic Ltd,Services,"Dir of  Culture, Strategy & Engagement",11578.00
0000022681,03/10/2022,PROJECT CENTRE LTD,PayContractr Infrast,Dir of Finance,10800.00
 103402/MF/DG,03/10/2022,COMPENSATION CLAIMS & LEGAL COSTS,Fees Legal External,Housing Revenue Account,8000.00
OT.130271.0001,03/10/2022,COMPENSATION CLAIMS & LEGAL COSTS,Exp - Compensation,Housing Revenue Account,8000.00
0000516090,03/10/2022,SCCI ALPHATRACK LTD,"Works - Construction, Repair & Maintenance",Housing Revenue Account,7988.36
108563.001/KL,03/10/2022,COMPENSATION CLAIMS & LEGAL COSTS,Fees Legal External,Housing Revenue Account,7500.00
MZU/1645.1,03/10/2022,COMPENSATION CLAIMS & LEGAL COSTS,Fees Legal External,Housing Revenue Account,6500.00
434050,03/10/2022,ALLPAY LTD  NRPF,Subsist - SS Clients,Dir of Children's Services,5105.83
SLMAT58734,03/10/2022,ADVANCE COMMERCIAL PAYMENTS,Prem - Rents,Dir of Children's Services,5000.00
2022MEM017,03/10/2022,FUTURE OF LONDON 2011 LIMITED,Subscriptions,Dir of Placemaking & Housing,4995.00
200922,03/10/2022,MINIK KARDES LTD,Community Based Services,"Dir of Adults, Health & Communities",4908.50
1367A,03/10/2022,DTRIUMPH CARE LTD,Prv Sctr Care Pkage,Dir of Children's Services,4579.00
234432,03/10/2022,LEEC LTD,Priv - Contractor,Dir of Environment & Neighbourhoods,4550.00
0000022689,03/10/2022,PROJECT CENTRE LTD,Technical & Feasibility,Dir of Finance,4250.00
OHP070-1585272,03/10/2022,ONE HOUSING GROUP LTD,Prv Sctr Care Pkage,"Dir of Adults, Health & Communities",3615.44
SI9032418,03/10/2022,PELLINGS LLP,Management,Dir of Finance,3400.00
OHP070-3876,03/10/2022,ONE HOUSING GROUP LTD,Prv Sctr Care Pkage,"Dir of Adults, Health & Communities",3217.68
OT.130271.0001,03/10/2022,COMPENSATION CLAIMS & LEGAL COSTS,Fees Legal External,Housing Revenue Account,3200.00
0000022700,03/10/2022,PROJECT CENTRE LTD,Technical & Feasibility,Dir of Finance,3150.00
OHP070-1500821,03/10/2022,ONE HOUSING GROUP LTD,Prv Sctr Care Pkage,"Dir of Adults, Health & Communities",3085.12
0251076911,03/10/2022,VEOLIA ES (UK) LTD,Waste Management,Dir of Placemaking & Housing,3021.52
0000022701,03/10/2022,PROJECT CENTRE LTD,Technical & Feasibility,Dir of Finance,2850.00
OHP070-1203596,03/10/2022,ONE HOUSING GROUP LTD,Prv Sctr Care Pkage,"Dir of Adults, Health & Communities",2706.32
6253,03/10/2022,ALLFORCARE,Priv - Contractor,Dir of Children's Services,2603.32
434050,03/10/2022,ALLPAY LTD  NRPF,Subsist - SS Clients,"Dir of Adults, Health & Communities",2580.36
0000022680,03/10/2022,PROJECT CENTRE LTD,PayContractr Infrast,Dir of Finance,2500.00
483,03/10/2022,DCAS DIRECT PERSONNEL LTD,Prv Sctr Care Pkage,"Dir of Adults, Health & Communities",2310.00
OHP070-1501763,03/10/2022,ONE HOUSING GROUP LTD,Prv Sctr Care Pkage,"Dir of Adults, Health & Communities",2284.42
OHP070-127381,03/10/2022,ONE HOUSING GROUP LTD,Prv Sctr Care Pkage,"Dir of Adults, Health & Communities",2157.04
OHP070-1512672,03/10/2022,ONE HOUSING GROUP LTD,Prv Sctr Care Pkage,"Dir of Adults, Health & Communities",2157.04
OHP070-1596313,03/10/2022,ONE HOUSING GROUP LTD,Prv Sctr Care Pkage,"Dir of Adults, Health & Communities",2157.04
434049,03/10/2022,ALLPAY LTD CHILDREN AND FAMILY,Subsist - SS Clients,Dir of Children's Services,2139.41
INCEN-WILLIAMKYE,03/10/2022,TEMPORARY ACCOMODATION,Prem - Rents,"Dir of Adults, Health & Communities",2134.08
OHP070-17502,03/10/2022,ONE HOUSING GROUP LTD,Prv Sctr Care Pkage,"Dir of Adults, Health & Communities",2119.16
INV-2406,03/10/2022,ELEGANCE FURNITURE SUPPLIES LTD,Domestic Furniture,"Dir of Adults, Health & Communities",2115.41
LKB025-25442,03/10/2022,LINK COMMUNITY CARE LTD,Prv Sctr Care Pkage,"Dir of Adults, Health & Communities",2081.24
STG036-1028866,03/10/2022,ST GEORGES HOME CARE LTD,Priv Sec-- LBH & CCG,"Dir of Adults, Health & Communities",2070.00
OHP070-1552141,03/10/2022,ONE HOUSING GROUP LTD,Prv Sctr Care Pkage,"Dir of Adults, Health & Communities",2043.40
OHP070-46604,03/10/2022,ONE HOUSING GROUP LTD,Prv Sctr Care Pkage,"Dir of Adults, Health & Communities",2021.81
590,03/10/2022,CIRCLE CARE LTD,Prv Sctr Care Pkage,"Dir of Adults, Health & Communities",2016.00
OHP070-1522914,03/10/2022,ONE HOUSING GROUP LTD,Prv Sctr Care Pkage,"Dir of Adults, Health & Communities",2005.52
010466,03/10/2022,Clarke Nicholls Marcel,"Works - Construction, Repair & Maintenance",Dir of Finance,2000.00
INV438593,03/10/2022,SELLICK PARTNERSHIP LIMITED,Specialist Support,Assistant Dir Corporate Governance,1923.08
40543,03/10/2022,AYERST ENVIRONMENTAL LTD,"Works - Construction, Repair & Maintenance",Dir of Finance,1900.00
MS-2022-016,03/10/2022,Redacted Personal Data,Services,"Dir of  Culture, Strategy & Engagement",1820.83
OHP070-1058198,03/10/2022,ONE HOUSING GROUP LTD,Prv Sctr Care Pkage,"Dir of Adults, Health & Communities",1807.57
 101657.001/MR K,03/10/2022,COMPENSATION CLAIMS & LEGAL COSTS,Fees Legal External,Housing Revenue Account,1800.00
OHP070-150000,03/10/2022,ONE HOUSING GROUP LTD,Prv Sctr Care Pkage,"Dir of Adults, Health & Communities",1778.24
LKB025-1752288,03/10/2022,LINK COMMUNITY CARE LTD,Prv Sctr Care Pkage,"Dir of Adults, Health & Communities",1691.20
5107248868,03/10/2022,ADAMS & STYLES,Prem - Leasing,"Dir of Adults, Health & Communities",1684.15
5107248812,03/10/2022,ADAMS & STYLES,Prem - Leasing,"Dir of Adults, Health & Communities",1681.33
5107248832,03/10/2022,WARHAM SEYMOUR INVESTMENS LTD,Prem - Leasing,"Dir of Adults, Health & Communities",1681.33
5107248833,03/10/2022,HARTLEY DEVELOPMENTS LIMITED,Prem - Leasing,"Dir of Adults, Health & Communities",1681.33
5107248834,03/10/2022,HARTLEY DEVELOPMENTS LIMITED,Prem - Leasing,"Dir of Adults, Health & Communities",1681.33
5107248871,03/10/2022,STATEBOND LTD T/A HORNSEY AGENCIES,Prem - Leasing,"Dir of Adults, Health & Communities",1681.33
5107248876,03/10/2022,ARISTON ACCOMMODATION,Prem - Leasing,"Dir of Adults, Health & Communities",1681.33
5107248831,03/10/2022,Redacted Personal Data,Prem - Leasing,"Dir of Adults, Health & Communities",1681.33
5107248848,03/10/2022,Redacted Personal Data,Prem - Leasing,"Dir of Adults, Health & Communities",1681.33
5107248856,03/10/2022,Redacted Personal Data,Prem - Leasing,"Dir of Adults, Health & Communities",1681.33
5107248881,03/10/2022,Redacted Personal Data,Prem - Leasing,"Dir of Adults, Health & Communities",1681.33
5107248883,03/10/2022,Redacted Personal Data,Prem - Leasing,"Dir of Adults, Health & Communities",1681.33
5107248886,03/10/2022,Redacted Personal Data,Prem - Leasing,"Dir of Adults, Health & Communities",1681.33
5107248891,03/10/2022,Redacted Personal Data,Prem - Leasing,"Dir of Adults, Health & Communities",1681.33
SI-7316,03/10/2022,BEVERIDGE ASSOCIATES PARTNERSHIP LI,Business,Dir of Finance,1680.00
5107248826,03/10/2022,Redacted Personal Data,Prem - Leasing,"Dir of Adults, Health & Communities",1646.66
5107248843,03/10/2022,Redacted Personal Data,Prem - Leasing,"Dir of Adults, Health & Communities",1646.66
OHP070-1029135,03/10/2022,ONE HOUSING GROUP LTD,Prv Sctr Care Pkage,"Dir of Adults, Health & Communities",1626.72
OHP070-1093516,03/10/2022,ONE HOUSING GROUP LTD,Prv Sctr Care Pkage,"Dir of Adults, Health & Communities",1617.25
5107248893,03/10/2022,Redacted Personal Data,Prem - Leasing,"Dir of Adults, Health & Communities",1582.05
LKB025-111434,03/10/2022,LINK COMMUNITY CARE LTD,Prv Sctr Care Pkage,"Dir of Adults, Health & Communities",1537.82
LKB025-1757734,03/10/2022,LINK COMMUNITY CARE LTD,Prv Sctr Care Pkage,"Dir of Adults, Health & Communities",1491.31
OHP070-16460,03/10/2022,ONE HOUSING GROUP LTD,Prv Sctr Care Pkage,"Dir of Adults, Health & Communities",1475.20
5107248879,03/10/2022,Redacted Personal Data,Prem - Leasing,"Dir of Adults, Health & Communities",1451.66
5107248839,03/10/2022,PROPERTYNET (UK) LIMITED,Prem - Leasing,"Dir of Adults, Health & Communities",1430.00
0734/00156664,03/10/2022,JEWSON LTD,Stock - Raw Material,Housing Revenue Account,1411.74
5107248864,03/10/2022,Redacted Personal Data,Prem - Leasing,"Dir of Adults, Health & Communities",1408.33
5107248860,03/10/2022,Redacted Personal Data,Prem - Leasing,"Dir of Adults, Health & Communities",1404.00
5107248855,03/10/2022,Redacted Personal Data,Prem - Leasing,"Dir of Adults, Health & Communities",1400.01
OHP070-1023123,03/10/2022,ONE HOUSING GROUP LTD,Prv Sctr Care Pkage,"Dir of Adults, Health & Communities",1399.44
5107248854,03/10/2022,Redacted Personal Data,Prem - Leasing,"Dir of Adults, Health & Communities",1386.66
5107248810,03/10/2022,ADAMS & STYLES,Prem - Leasing,"Dir of Adults, Health & Communities",1365.52
5107248846,03/10/2022,CLASS ESTATES LIMITED,Prem - Leasing,"Dir of Adults, Health & Communities",1365.52
5107248866,03/10/2022,YVA SOLICITORS,Prem - Leasing,"Dir of Adults, Health & Communities",1365.00
5107248878,03/10/2022,VMG CONSTRUCTION LTD,Prem - Leasing,"Dir of Adults, Health & Communities",1365.00
5107248890,03/10/2022,ANDREW LLOYD ESTATES LIMITED,Prem - Leasing,"Dir of Adults, Health & Communities",1365.00
5107248825,03/10/2022,Redacted Personal Data,Prem - Leasing,"Dir of Adults, Health & Communities",1365.00
5107248835,03/10/2022,Redacted Personal Data,Prem - Leasing,"Dir of Adults, Health & Communities",1365.00
5107248836,03/10/2022,Redacted Personal Data,Prem - Leasing,"Dir of Adults, Health & Communities",1365.00
5107248861,03/10/2022,Redacted Personal Data,Prem - Leasing,"Dir of Adults, Health & Communities",1365.00
5107248884,03/10/2022,Redacted Personal Data,Prem - Leasing,"Dir of Adults, Health & Communities",1365.00
5107248885,03/10/2022,Redacted Personal Data,Prem - Leasing,"Dir of Adults, Health & Communities",1365.00
5107248889,03/10/2022,Redacted Personal Data,Prem - Leasing,"Dir of Adults, Health & Communities",1365.00
5107248892,03/10/2022,Redacted Personal Data,Prem - Leasing,"Dir of Adults, Health & Communities",1365.00
5107248822,03/10/2022,Redacted Personal Data,Prem - Leasing,"Dir of Adults, Health & Communities",1360.00
5107248811,03/10/2022,ADAMS & STYLES,Prem - Leasing,"Dir of Adults, Health & Communities",1310.09
5107248840,03/10/2022,ADAMS & STYLES,Prem - Leasing,"Dir of Adults, Health & Communities",1310.09
LKB025-1060775,03/10/2022,LINK COMMUNITY CARE LTD,Prv Sctr Care Pkage,"Dir of Adults, Health & Communities",1300.88
PI/558223.001/PI,03/10/2022,COMPENSATION CLAIMS & LEGAL COSTS,Exp - Compensation,Housing Revenue Account,1256.00
5107248818,03/10/2022,VMG CONSTRUCTION LTD,Prem - Leasing,"Dir of Adults, Health & Communities",1235.00
5107248863,03/10/2022,LYCIUM PROPERTIES LTD,Prem - Leasing,"Dir of Adults, Health & Communities",1200.33
5107248842,03/10/2022,STATEBOND LTD T/A HORNSEY AGENCIES,Prem - Leasing,"Dir of Adults, Health & Communities",1191.66
5107248887,03/10/2022,Redacted Personal Data,Prem - Leasing,"Dir of Adults, Health & Communities",1191.66
434052,03/10/2022,ALLPAY LTD CHILDREN DP,Prv Sctr Care Pkage,Dir of Children's Services,1187.16
5107248821,03/10/2022,Redacted Personal Data,Prem - Leasing,"Dir of Adults, Health & Communities",1170.00
5107248813,03/10/2022,ADAMS & STYLES,Prem - Leasing,"Dir of Adults, Health & Communities",1148.64
5107248814,03/10/2022,ADAMS & STYLES,Prem - Leasing,"Dir of Adults, Health & Communities",1148.64
5107248815,03/10/2022,ADAMS & STYLES,Prem - Leasing,"Dir of Adults, Health & Communities",1148.64
5107248867,03/10/2022,YVA SOLICITORS,Prem - Leasing,"Dir of Adults, Health & Communities",1148.33
5107248838,03/10/2022,Redacted Personal Data,Prem - Leasing,"Dir of Adults, Health & Communities",1148.33
5107248857,03/10/2022,Redacted Personal Data,Prem - Leasing,"Dir of Adults, Health & Communities",1148.33
5107248858,03/10/2022,Redacted Personal Data,Prem - Leasing,"Dir of Adults, Health & Communities",1139.66
5107248865,03/10/2022,RINGDALE LTD,Prem - Leasing,"Dir of Adults, Health & Communities",1126.66
5107248837,03/10/2022,Redacted Personal Data,Prem - Leasing,"Dir of Adults, Health & Communities",1126.66
5107248809,03/10/2022,ADAMS & STYLES,Prem - Leasing,"Dir of Adults, Health & Communities",1115.18
LKB025-44886,03/10/2022,LINK COMMUNITY CARE LTD,Prv Sctr Care Pkage,"Dir of Adults, Health & Communities",1115.04
5107248847,03/10/2022,CLASS ESTATES LIMITED,Prem - Leasing,"Dir of Adults, Health & Communities",1105.00
5107248850,03/10/2022,MEERA DEVELOPMENTS LTD,Prem - Leasing,"Dir of Adults, Health & Communities",1105.00
5107248874,03/10/2022,CLASS ESTATES LIMITED,Prem - Leasing,"Dir of Adults, Health & Communities",1105.00
5107248823,03/10/2022,Redacted Personal Data,Prem - Leasing,"Dir of Adults, Health & Communities",1105.00
5107248824,03/10/2022,Redacted Personal Data,Prem - Leasing,"Dir of Adults, Health & Communities",1105.00
5107248827,03/10/2022,Redacted Personal Data,Prem - Leasing,"Dir of Adults, Health & Communities",1105.00
5107248880,03/10/2022,Redacted Personal Data,Prem - Leasing,"Dir of Adults, Health & Communities",1105.00
5107248870,03/10/2022,Redacted Personal Data,Prem - Leasing,"Dir of Adults, Health & Communities",1102.00
OHP070-1611938,03/10/2022,ONE HOUSING GROUP LTD,Prv Sctr Care Pkage,"Dir of Adults, Health & Communities",1096.40
0734/00156636,03/10/2022,JEWSON LTD,Stock - Raw Material,Housing Revenue Account,1084.32
5107248875,03/10/2022,Redacted Personal Data,Prem - Leasing,"Dir of Adults, Health & Communities",1040.00
LKB025-1013280,03/10/2022,LINK COMMUNITY CARE LTD,Prv Sctr Care Pkage,"Dir of Adults, Health & Communities",1022.04
LKB016-1583636,03/10/2022,LINK COMMUNITY CARE LTD,Prv Sctr Care Pkage,"Dir of Adults, Health & Communities",976.68
5107248829,03/10/2022,ORANGE STONE MANAGEMENT LIMITED,Prem - Leasing,"Dir of Adults, Health & Communities",964.16
LKB025-1699416,03/10/2022,LINK COMMUNITY CARE LTD,Prv Sctr Care Pkage,"Dir of Adults, Health & Communities",947.66
988,03/10/2022,CIRCLE CARE LTD,Prv Sctr Care Pkage,"Dir of Adults, Health & Communities",936.00
LKB025-1594949,03/10/2022,LINK COMMUNITY CARE LTD,Prv Sctr Care Pkage,"Dir of Adults, Health & Communities",910.68
LKB025-1022430,03/10/2022,LINK COMMUNITY CARE LTD,Prv Sctr Care Pkage,"Dir of Adults, Health & Communities",910.56
LKB025-1517673,03/10/2022,LINK COMMUNITY CARE LTD,Prv Sctr Care Pkage,"Dir of Adults, Health & Communities",910.56
5107248869,03/10/2022,Redacted Personal Data,Prem - Leasing,"Dir of Adults, Health & Communities",891.24
5107248841,03/10/2022,Redacted Personal Data,Prem - Leasing,"Dir of Adults, Health & Communities",888.33
VP58971170M28101,03/10/2022,BT PAYMENT SERVICES LTD,Telecommunications,"Dir of  Culture, Strategy & Engagement",879.85
OHP070-110685,03/10/2022,ONE HOUSING GROUP LTD,Prv Sctr Care Pkage,"Dir of Adults, Health & Communities",831.24
OHP070-1187516,03/10/2022,ONE HOUSING GROUP LTD,Prv Sctr Care Pkage,"Dir of Adults, Health & Communities",831.24
OHP070-136704,03/10/2022,ONE HOUSING GROUP LTD,Prv Sctr Care Pkage,"Dir of Adults, Health & Communities",831.24
OHP070-1516488,03/10/2022,ONE HOUSING GROUP LTD,Prv Sctr Care Pkage,"Dir of Adults, Health & Communities",831.24
OHP070-1566976,03/10/2022,ONE HOUSING GROUP LTD,Prv Sctr Care Pkage,"Dir of Adults, Health & Communities",831.24
OHP070-1607915,03/10/2022,ONE HOUSING GROUP LTD,Prv Sctr Care Pkage,"Dir of Adults, Health & Communities",831.24
OHP070-29127,03/10/2022,ONE HOUSING GROUP LTD,Prv Sctr Care Pkage,"Dir of Adults, Health & Communities",831.24
OHP070-35560,03/10/2022,ONE HOUSING GROUP LTD,Prv Sctr Care Pkage,"Dir of Adults, Health & Communities",831.24
LKB024-21633,03/10/2022,LINK COMMUNITY CARE LTD,Prv Sctr Care Pkage,"Dir of Adults, Health & Communities",817.66
LKB025-21633,03/10/2022,LINK COMMUNITY CARE LTD,Prv Sctr Care Pkage,"Dir of Adults, Health & Communities",817.66
LKB025-158527,03/10/2022,LINK COMMUNITY CARE LTD,Prv Sctr Care Pkage,"Dir of Adults, Health & Communities",817.52
LKB025-1497209,03/10/2022,LINK COMMUNITY CARE LTD,Prv Sctr Care Pkage,"Dir of Adults, Health & Communities",813.00
LKB025-1715675,03/10/2022,LINK COMMUNITY CARE LTD,Prv Sctr Care Pkage,"Dir of Adults, Health & Communities",794.43
482,03/10/2022,DCAS DIRECT PERSONNEL LTD,Prv Sctr Care Pkage,"Dir of Adults, Health & Communities",784.00
LKB025-1737215,03/10/2022,LINK COMMUNITY CARE LTD,Prv Sctr Care Pkage,"Dir of Adults, Health & Communities",780.36
LKB025-75447,03/10/2022,LINK COMMUNITY CARE LTD,Prv Sctr Care Pkage,"Dir of Adults, Health & Communities",765.64
31006R0L,03/10/2022,Right of Light Consulting Limited,Business,Dir of Finance,730.00
LKB025-1751941,03/10/2022,LINK COMMUNITY CARE LTD,Prv Sctr Care Pkage,"Dir of Adults, Health & Communities",715.44
5107248830,03/10/2022,ORANGE STONE MANAGEMENT LIMITED,Prem - Leasing,"Dir of Adults, Health & Communities",693.33
LKB025-1172216,03/10/2022,LINK COMMUNITY CARE LTD,Prv Sctr Care Pkage,"Dir of Adults, Health & Communities",692.21
5107248828,03/10/2022,ORANGE STONE MANAGEMENT LIMITED,Prem - Leasing,"Dir of Adults, Health & Communities",682.50
LKB025-50592,03/10/2022,LINK COMMUNITY CARE LTD,Prv Sctr Care Pkage,"Dir of Adults, Health & Communities",659.77
LKB025-1583360,03/10/2022,LINK COMMUNITY CARE LTD,Prv Sctr Care Pkage,"Dir of Adults, Health & Communities",659.73
LKB025-1057770,03/10/2022,LINK COMMUNITY CARE LTD,Prv Sctr Care Pkage,"Dir of Adults, Health & Communities",650.44
LKB025-1549548,03/10/2022,LINK COMMUNITY CARE LTD,Prv Sctr Care Pkage,"Dir of Adults, Health & Communities",650.44
LKB025-1730446,03/10/2022,LINK COMMUNITY CARE LTD,Prv Sctr Care Pkage,"Dir of Adults, Health & Communities",627.21
559533.001/MR G,03/10/2022,COMPENSATION CLAIMS & LEGAL COSTS,Exp - Compensation,Housing Revenue Account,591.07
LKB025-1041701,03/10/2022,LINK COMMUNITY CARE LTD,Prv Sctr Care Pkage,"Dir of Adults, Health & Communities",585.27
LKB025-1014700,03/10/2022,LINK COMMUNITY CARE LTD,Priv Sec-- LBH & CCG,"Dir of Adults, Health & Communities",571.42
OHP070-140698,03/10/2022,ONE HOUSING GROUP LTD,Prv Sctr Care Pkage,"Dir of Adults, Health & Communities",568.20
2251,03/10/2022,LITTLE FLAME EMERGENCY RESPONSE TEA,Sport & Fitness,Dir of Environment & Neighbourhoods,550.00
VP06611770M091P9,03/10/2022,BT PAYMENT SERVICES LTD,Telephones - Rental,Housing Revenue Account,543.49
LKB025-1550637,03/10/2022,LINK COMMUNITY CARE LTD,Prv Sctr Care Pkage,"Dir of Adults, Health & Communities",520.24
STG036-1028866,03/10/2022,ST GEORGES HOME CARE LTD,Prv Sctr Care Pkage,"Dir of Adults, Health & Communities",492.74
1027548,03/10/2022,CIRCLE CARE LTD,Priv Sec-- LBH & CCG,"Dir of Adults, Health & Communities",492.00
CAS-017706,03/10/2022,Redacted Personal Data,School Services,Dir of Environment & Neighbourhoods,464.80
0734/00156616,03/10/2022,JEWSON LTD,Stock - Raw Material,Housing Revenue Account,455.88
565233.001/DIS/1,03/10/2022,COMPENSATION CLAIMS & LEGAL COSTS,Exp - Compensation,Housing Revenue Account,455.00
0176,03/10/2022,LITTLE FLAME EMERGENCY RESPONSE TEA,Sport & Fitness,Dir of Environment & Neighbourhoods,450.00
09/22,03/10/2022,Redacted Personal Data,Sport & Fitness,Dir of Environment & Neighbourhoods,450.00
LKB025-1749839,03/10/2022,LINK COMMUNITY CARE LTD,Prv Sctr Care Pkage,"Dir of Adults, Health & Communities",441.37
LKB025-115441,03/10/2022,LINK COMMUNITY CARE LTD,Prv Sctr Care Pkage,"Dir of Adults, Health & Communities",390.32
LKB025-1746489,03/10/2022,LINK COMMUNITY CARE LTD,Prv Sctr Care Pkage,"Dir of Adults, Health & Communities",390.32
LKB022-1678909,03/10/2022,LINK COMMUNITY CARE LTD,Prv Sctr Care Pkage,"Dir of Adults, Health & Communities",390.18
LKB025-1500690,03/10/2022,LINK COMMUNITY CARE LTD,Priv Sec-- LBH & CCG,"Dir of Adults, Health & Communities",371.60
0000192118,03/10/2022,WYBONE LTD,Waste Management,Dir of Environment & Neighbourhoods,350.00
0734/00156666,03/10/2022,JEWSON LTD,"Material - Purch,Rep",Housing Revenue Account,326.69
0734/00156667,03/10/2022,JEWSON LTD,"Material - Purch,Rep",Housing Revenue Account,326.69
68929,03/10/2022,Martin Arnold Limited,Buildings,Dir of Finance,315.00
LKB022-1678909,03/10/2022,LINK COMMUNITY CARE LTD,Priv Sec-- LBH & CCG,"Dir of Adults, Health & Communities",306.57
LKB025-1055803,03/10/2022,LINK COMMUNITY CARE LTD,Prv Sctr Care Pkage,"Dir of Adults, Health & Communities",297.28
LKB025-1726863,03/10/2022,LINK COMMUNITY CARE LTD,Prv Sctr Care Pkage,"Dir of Adults, Health & Communities",297.28
LKB025-95893,03/10/2022,LINK COMMUNITY CARE LTD,Prv Sctr Care Pkage,"Dir of Adults, Health & Communities",297.28
LKB025-1745933,03/10/2022,LINK COMMUNITY CARE LTD,Prv Sctr Care Pkage,"Dir of Adults, Health & Communities",278.80
565627.001/DIS/1,03/10/2022,COMPENSATION CLAIMS & LEGAL COSTS,Exp - Compensation,Housing Revenue Account,250.00
0734/00156663,03/10/2022,JEWSON LTD,Stock - Raw Material,Housing Revenue Account,224.01
LKB025-1172216,03/10/2022,LINK COMMUNITY CARE LTD,Priv Sec-- LBH & CCG,"Dir of Adults, Health & Communities",209.03
8638,03/10/2022,CYPRIOT COMMUNITY CENTRE,Education,Dir of Children's Services,200.00
LKB025-97111,03/10/2022,LINK COMMUNITY CARE LTD,Prv Sctr Care Pkage,"Dir of Adults, Health & Communities",185.80
LKB025-1730335,03/10/2022,LINK COMMUNITY CARE LTD,Prv Sctr Care Pkage,"Dir of Adults, Health & Communities",167.28
I672449,03/10/2022,Ulverscroft Limited,Library Books,"Dir of  Culture, Strategy & Engagement",145.71
480,03/10/2022,DCAS DIRECT PERSONNEL LTD,Prv Sctr Care Pkage,"Dir of Adults, Health & Communities",140.00
STG036-1659357,03/10/2022,ST GEORGES HOME CARE LTD,Prv Sctr Care Pkage,"Dir of Adults, Health & Communities",139.12
LKB025-1364216,03/10/2022,LINK COMMUNITY CARE LTD,Prv Sctr Care Pkage,"Dir of Adults, Health & Communities",125.46
10908,03/10/2022,UK EVIDENCE LTD,Specialist Support,Assistant Dir Corporate Governance,105.00
VP57771770M092IF,03/10/2022,BT PAYMENT SERVICES LTD,Telephones - Rental,Housing Revenue Account,102.60
2223355,03/10/2022,ONE TIME,Train - Post Entry,Dir of Children's Services,100.00
I672450,03/10/2022,Ulverscroft Limited,Library Books,"Dir of  Culture, Strategy & Engagement",86.36
9063907562,03/10/2022,ROYAL MAIL GROUP PLC,Postage,Dir of Environment & Neighbourhoods,80.08
988,03/10/2022,CIRCLE CARE LTD,Priv Sec-- LBH & CCG,"Dir of Adults, Health & Communities",72.00
HFH028,03/10/2022,OMEGA CITYLIFTS SERVICES LIMITED,Priv - Sub Contract,Housing Revenue Account,50.00
0734/00156665,03/10/2022,JEWSON LTD,Stock - Raw Material,Housing Revenue Account,47.99
434049,03/10/2022,ALLPAY LTD CHILDREN AND FAMILY,Travel Exp - Client,Dir of Children's Services,43.50
0734/00156620,03/10/2022,JEWSON LTD,Stock - Raw Material,Housing Revenue Account,24.08
0251077401,03/10/2022,VEOLIA ES (UK) LTD,Waste Management,Dir of Placemaking & Housing,20.00
0251077403,03/10/2022,VEOLIA ES (UK) LTD,Waste Management,Dir of Placemaking & Housing,20.00
0734/00156617,03/10/2022,JEWSON LTD,Stock - Raw Material,Housing Revenue Account,16.56
9064107196,03/10/2022,ROYAL MAIL GROUP PLC,Postage,Dir of Environment & Neighbourhoods,14.04
9064301020,03/10/2022,ROYAL MAIL GROUP PLC,Postage,Dir of Environment & Neighbourhoods,2.60
434051,03/10/2022,ALLPAY LTD ADULTS DIRECT PAYMENTS,Client Cont Care Pkg,"Dir of Adults, Health & Communities",-160.84
2209/061,04/10/2022,Mulalley and Company LTD,Buildings,Dir of Finance,707951.52
230,04/10/2022,KIND DIAMOND BUILD CONSORT,Buildings,Dir of Finance,347911.33
434092,04/10/2022,MAGICARE LTD,Priv - Res Long,"Dir of Adults, Health & Communities",150305.59
434083,04/10/2022,MAGICARE LTD,Priv - Res Long,"Dir of Adults, Health & Communities",100461.32
434094,04/10/2022,GCH PEREGRINE HOUSE LTD,Priv - Res Long,"Dir of Adults, Health & Communities",91440.00
434094,04/10/2022,HAIL LTD,Vol Sect - Res Long,"Dir of Adults, Health & Communities",86021.32
45924,04/10/2022,HARMONY FIRE LTD,Priv - Sub Contract,Housing Revenue Account,55520.78
434073,04/10/2022,SPRINGHILL CARE SPECIALIST LTD,Priv - Contractor,Dir of Children's Services,54423.20
434073,04/10/2022,ATLANTIC LODGE  LTD,Priv - Contractor,Dir of Children's Services,52940.20
434083,04/10/2022,BARCHESTER HEALTHCARE  LTD,Priv - Res Long,"Dir of Adults, Health & Communities",49403.47
4325338,04/10/2022,LONDON COUNCILS,Subscriptions,Dir of Finance,49323.00
434083,04/10/2022,TWINGLOBE CARE LTD,Priv - Res Long,"Dir of Adults, Health & Communities",41101.36
L266,04/10/2022,SISUA LTD,Buildings,Dir of Placemaking & Housing,33445.00
434083,04/10/2022,BUPA CARE HOMES (ANS) LTD,Priv - Res Long,"Dir of Adults, Health & Communities",33439.08
434083,04/10/2022,DMP HEALTHCARE HEATHERBROOK LTD,Priv - Res Long,"Dir of Adults, Health & Communities",32008.44
434073,04/10/2022,MY PLACE HOMES LTD,Priv - Contractor,Dir of Children's Services,29020.00
434094,04/10/2022,MAISON MOTI LTD,Priv - Res Long,"Dir of Adults, Health & Communities",28339.14
434083,04/10/2022,LUKKA CARE HOMES (2010) LTD,Priv - Res Long,"Dir of Adults, Health & Communities",27094.08
434073,04/10/2022,GOLDEN CARE ESTATES LTD,Priv - Contractor,Dir of Children's Services,24040.00
434083,04/10/2022,CARE UK COMMUNITY PARTNERSHIPS LTD,Priv - Res Long,"Dir of Adults, Health & Communities",24014.72
434074,04/10/2022,UNIFIED CARE LTD T/A VICTORIA'S CAR,Priv - Res Long,"Dir of Adults, Health & Communities",23720.00
434083,04/10/2022,WOODHAM ENTERPRISES LIMITED,Priv - Res Long,"Dir of Adults, Health & Communities",22440.00
434073,04/10/2022,PHOENIX COMMUNITY CARE LTD,Priv - Contractor,Dir of Children's Services,22401.08
434083,04/10/2022,PATERNOSTER HOUSE CARE CENTRE,Priv - Res Long,"Dir of Adults, Health & Communities",21549.76
434083,04/10/2022,ABBEY RAVENSCROFT PARK LTD,Priv - Res Long,"Dir of Adults, Health & Communities",21401.83
0000017100,04/10/2022,FUSION LIFESTYLE,Outsourced Service,Dir of Environment & Neighbourhoods,20000.00
434083,04/10/2022,GABLE COURT NH LTD,Priv - Res Long,"Dir of Adults, Health & Communities",18942.86
434073,04/10/2022,CAUSEWAY IRISH HOUSING ASSOCIATION,Priv - Contractor,Dir of Children's Services,18389.24
434074,04/10/2022,METHODIST HOMES FOR THE AGED,Priv - Res Long,"Dir of Adults, Health & Communities",18200.00
434094,04/10/2022,HAZELWOOD LODGE LTD,Priv - Res Long,"Dir of Adults, Health & Communities",18186.00
434073,04/10/2022,GENELL SUPPORT COMMUNITY INTEREST C,Priv - Contractor,Dir of Children's Services,18095.40
434073,04/10/2022,BRIGHT YOUNG FUTURES LTD,Priv - Contractor,Dir of Children's Services,17960.00
434094,04/10/2022,THE FER VIEW RESIDENTIAL CARE HOME,Priv - Res Long,"Dir of Adults, Health & Communities",17400.00
434094,04/10/2022,DMP HEALTHCARE HEATHERBROOK LTD,Priv - Res Long,"Dir of Adults, Health & Communities",17000.00
434094,04/10/2022,ELYSIUM HEALTHCARE LTD,Priv - Res Long,"Dir of Adults, Health & Communities",16888.00
434094,04/10/2022,SCIMITAR CARE HOTELS PLC,Priv - Res Long,"Dir of Adults, Health & Communities",16560.65
434094,04/10/2022,GREEN LANES PROJECTS LTD,Priv - Res Long,"Dir of Adults, Health & Communities",14217.80
434094,04/10/2022,HIGHCROFT CARE HOME,Priv - Res Long,"Dir of Adults, Health & Communities",13580.00
434073,04/10/2022,YOUNG ROOTS CARE SERVICES LTD,Priv - Contractor,Dir of Children's Services,12520.00
45923,04/10/2022,HARMONY FIRE LTD,Priv - Sub Contract,Housing Revenue Account,11985.04
434094,04/10/2022,JEESAL RESIDENTIAL CARE SERVICES LT,Priv - Res Long,"Dir of Adults, Health & Communities",11914.68
434083,04/10/2022,MULLINVAM LIMITED,Priv - Res Long,"Dir of Adults, Health & Communities",11858.08
434083,04/10/2022,SOUTHGATE BEAUMOUNT CARE COMMUNITY,Priv - Res Long,"Dir of Adults, Health & Communities",11847.96
434094,04/10/2022,SES KITE LTD,Priv - Res Long,"Dir of Adults, Health & Communities",11460.00
434065,04/10/2022,CARE IN FINANCE LTD (CLIENT),Prv Sctr Care Pkage,"Dir of Adults, Health & Communities",11444.96
434094,04/10/2022,METHODIST HOMES,Priv - Res Long,"Dir of Adults, Health & Communities",11400.00
434094,04/10/2022,HILTON LODGE LTD,Priv - Res Long,"Dir of Adults, Health & Communities",11240.00
38432,04/10/2022,UNITED GUARDING SERVICES LTD,Security,Housing Revenue Account,11160.00
434083,04/10/2022,ASH COURT COMMUNITY LIMITED,Client Cont Care Pkg,"Dir of Adults, Health & Communities",11044.37
434073,04/10/2022,JW INDEPENDENCE LTD,Priv - Contractor,Dir of Children's Services,11000.04
434083,04/10/2022,BUPA CARE HOMES (AKW) LIMITED,Priv - Res Long,"Dir of Adults, Health & Communities",10776.64
434083,04/10/2022,PJ CARE LIMITED,Priv - Res Long,"Dir of Adults, Health & Communities",10600.24
434094,04/10/2022,MACINTYRE CARE,Priv - Res Long,"Dir of Adults, Health & Communities",10441.80
434074,04/10/2022,ACORN CARE & EDUCATION LTD (SALES),Priv - Res Long,"Dir of Adults, Health & Communities",10384.00
434073,04/10/2022,FRESHSTART CARE SOLUTIONS LTD,Priv - Contractor,Dir of Children's Services,10300.00
434083,04/10/2022,HEATHLANDS CARE HOME (CHINGFORD) LI,Priv - Res Long,"Dir of Adults, Health & Communities",10130.20
434094,04/10/2022,HF TRUST LTD,Priv - Res Long,"Dir of Adults, Health & Communities",10028.52
WSA GLA FUNDING,04/10/2022,GOVERNMENT BODIES,L.A. - Other,"Dir of Adults, Health & Communities",10000.00
434083,04/10/2022,BUPA CARE HOMES (GL) LTD,Priv - Res Long,"Dir of Adults, Health & Communities",9717.76
434094,04/10/2022,PHILOMENA OKORON T/A 4ACRES DOMICIL,Priv - Res Short,"Dir of Adults, Health & Communities",9693.57
434072,04/10/2022,WEST LODGE LIMITED,Priv - B & B,"Dir of Adults, Health & Communities",9604.00
434083,04/10/2022,AGUDAS ISRAEL HOUSING ASSOCIAT LTD,Priv - Res Long,"Dir of Adults, Health & Communities",9507.20
434094,04/10/2022,HC ONE OVAL LIMITED,Priv - Res Long,"Dir of Adults, Health & Communities",9240.00
434094,04/10/2022,PHILOMENA OKORON T/A 4ACRES DOMICIL,Priv - Res Long,"Dir of Adults, Health & Communities",9098.88
434073,04/10/2022,MAGIC LIFE LIMITED,Priv - Contractor,Dir of Children's Services,8854.92
434073,04/10/2022,NORTH AND EAST LONDON CARE LIMITED,Priv - Contractor,Dir of Children's Services,8800.00
434083,04/10/2022,ASH COURT COMMUNITY LIMITED,Priv - Res Long,"Dir of Adults, Health & Communities",8774.72
434094,04/10/2022,GREENFIELDS RES CARE HOMES LTD,Priv - Res Long,"Dir of Adults, Health & Communities",8760.00
434083,04/10/2022,ASPRAY HOUSE LTD,Priv - Res Long,"Dir of Adults, Health & Communities",8755.20
434073,04/10/2022,PREFERRED LIVING LTD,Priv - Contractor,Dir of Children's Services,8740.00
434073,04/10/2022,PLACE OF PROGRESS LTD,Priv - Contractor,Dir of Children's Services,8400.00
434094,04/10/2022,BROOKDALE HEALTHCARE,Priv - Res Long,"Dir of Adults, Health & Communities",8123.68
434083,04/10/2022,LANCAM CARE SERVICES LTD - ALBANY P,Priv - Res Long,"Dir of Adults, Health & Communities",7838.56
434073,04/10/2022,PHOENIX COMMUNITY CARE LTD,Priv - Supp Lodging,Dir of Children's Services,7832.00
434083,04/10/2022,BRAMLEY HEALTH LTD,Priv - Res Long,"Dir of Adults, Health & Communities",7800.00
434083,04/10/2022,ACORN LODGE CARE HOME,Priv - Res Long,"Dir of Adults, Health & Communities",7787.20
434083,04/10/2022,ABI DEVELOPMENTS 3 LTD TA 1 SEWARDS,Priv - Res Long,"Dir of Adults, Health & Communities",7549.76
434094,04/10/2022,FORWARD SUPPORT LIMITED,Priv - Res Long,"Dir of Adults, Health & Communities",7421.43
434094,04/10/2022,JEWISH CARE,Vol Sect - Res Long,"Dir of Adults, Health & Communities",7415.00
434094,04/10/2022,The Huntercombe Group - Conifer Lod,Priv - Res Long,"Dir of Adults, Health & Communities",7396.00
434083,04/10/2022,BARCHESTER HEALTHCARE HOMES TA WILS,Priv - Res Long,"Dir of Adults, Health & Communities",7200.00
434094,04/10/2022,ASHLAKE LODGE LIMITED,Priv - Res Long,"Dir of Adults, Health & Communities",7200.00
434083,04/10/2022,THE CONIFERS HEALTHCARE LTD,Priv - Res Long,"Dir of Adults, Health & Communities",7052.80
434072,04/10/2022,FILEY CARE AND SUPPORT LTD,Prv Sctr Care Pkage,"Dir of Adults, Health & Communities",7000.00
434074,04/10/2022,SUNCARE RECOVERY LTD,Priv - Res Long,"Dir of Adults, Health & Communities",7000.00
434094,04/10/2022,MCCH SOCIETY LTD,Priv - Res Long,"Dir of Adults, Health & Communities",6800.00
900222953,04/10/2022,XEROX (UK) LTD,Services,"Dir of  Culture, Strategy & Engagement",6729.11
434083,04/10/2022,HC ONE OVAL LIMITED,Priv - Res Long,"Dir of Adults, Health & Communities",6610.44
434083,04/10/2022,KARUNA MANOR CARE HOME,Priv - Res Long,"Dir of Adults, Health & Communities",6565.12
434083,04/10/2022,SUNRISE SENIOR TA GRACEWELL HEALTHC,Priv - Res Long,"Dir of Adults, Health & Communities",6406.40
434073,04/10/2022,INYRA LTD,Priv - Contractor,Dir of Children's Services,6360.00
36260,04/10/2022,Barrier Air Conditioning Ltd,Priv - Sub Contract,Housing Revenue Account,6354.00
434094,04/10/2022,GLENPAT HOMES LTD,Priv - Res Long,"Dir of Adults, Health & Communities",6332.00
5322,04/10/2022,MOUNT HOUSE SCHOOL LIMITED,Vol Sec -  Day Place,Dedicated Schools Grant Management,6185.00
434083,04/10/2022,PARRIS LAWN CARE LIMITED,Priv - Res Long,"Dir of Adults, Health & Communities",6062.72
434073,04/10/2022,ELLIOT LEIGH TLC LTD,Priv - Contractor,Dir of Children's Services,6040.00
434094,04/10/2022,LEONARD CHESHIRE DISABILITY,Priv - Res Long,"Dir of Adults, Health & Communities",5907.52
434072,04/10/2022,BLUE RIBBON PROPERTY LETTINGS LTD,Priv - Hotel Short,"Dir of Adults, Health & Communities",5832.00
17163,04/10/2022,CROWN HOSTING DATA CENTRES LIMITED,Services,"Dir of  Culture, Strategy & Engagement",5677.78
434074,04/10/2022,WOODLANDS RESIDENTIAL CARE HOME,Priv - Res Long,"Dir of Adults, Health & Communities",5600.00
434083,04/10/2022,BLACKBERRY HILL LTD,Priv - Res Long,"Dir of Adults, Health & Communities",5600.00
434094,04/10/2022,MISHELLIS PROPERTIES LTD T/A MCA CA,Priv - Res Long,"Dir of Adults, Health & Communities",5600.00
434094,04/10/2022,PHILOMENA OKORON T/A 4ACRES DOMICIL,Prv Sctr Care Pkage,"Dir of Adults, Health & Communities",5592.86
0000022673,04/10/2022,PROJECT CENTRE LTD,PayContractr Infrast,Dir of Finance,5500.00
434074,04/10/2022,WHITE ROSE CARE,Priv - Res Long,"Dir of Adults, Health & Communities",5482.40
434074,04/10/2022,YAD VOEZER,Vol Sect - Res Long,"Dir of Adults, Health & Communities",5480.84
434083,04/10/2022,Vibrance,Priv - Res Long,"Dir of Adults, Health & Communities",5450.48
434083,04/10/2022,LIVABILITY,Priv - Res Long,"Dir of Adults, Health & Communities",5428.52
434083,04/10/2022,METHODIST HOMES -CARE HOME INCOME,Priv - Res Long,"Dir of Adults, Health & Communities",5422.80
434072,04/10/2022,STEF & PHILIPS CLIENT ACCOUNT,Priv - Hotel Short,"Dir of Adults, Health & Communities",5404.00
434074,04/10/2022,ST MUNGOS COMMUNITY HOUSING ASSOCIA,Priv - Res Long,"Dir of Adults, Health & Communities",5347.32
434094,04/10/2022,JANITH HOMES LTD,Priv - Res Long,"Dir of Adults, Health & Communities",5267.52
434083,04/10/2022,KENBROOK NURSING HOME,Priv - Res Long,"Dir of Adults, Health & Communities",5219.28
434094,04/10/2022,SAKTI LTD,Priv - Res Long,"Dir of Adults, Health & Communities",5207.96
434072,04/10/2022,COLLABORATIVE CARE LTD,Prv Sctr Care Pkage,"Dir of Adults, Health & Communities",5200.00
434074,04/10/2022,ST LUCY LODGE,Priv - Res Long,"Dir of Adults, Health & Communities",5060.00
434088,04/10/2022,Redacted Personal Data,Prv Sctr Care Pkage,"Dir of Adults, Health & Communities",5031.92
04590290,04/10/2022,PLEXUS LAW (OFFICE ACCOUNT),Specialist Support,Dir of Finance,5000.00
434094,04/10/2022,HUGH MYDDLETON HOUSE,Priv - Res Long,"Dir of Adults, Health & Communities",5000.00
434074,04/10/2022,VOYAGE LTD,Priv - Res Long,"Dir of Adults, Health & Communities",4852.00
434074,04/10/2022,WATERFALL HOUSE LTD,Priv - Res Long,"Dir of Adults, Health & Communities",4845.60
434083,04/10/2022,HUGH MYDDLETON HOUSE,Priv - Res Long,"Dir of Adults, Health & Communities",4814.72
434072,04/10/2022,FILEY CARE AND SUPPORT LTD,Priv - B & B,"Dir of Adults, Health & Communities",4800.00
434094,04/10/2022,PRIORY GROUP LIMITED,Priv - Res Long,"Dir of Adults, Health & Communities",4800.00
434094,04/10/2022,METHODIST HOMES,Client Cont Care Pkg,"Dir of Adults, Health & Communities",4467.74
0000017099,04/10/2022,FUSION LIFESTYLE,Sports & Playground & Pool Maintenance,Dir of Environment & Neighbourhoods,4328.32
434072,04/10/2022,THE MARKFIELD PROJECT LTD,Prv Sctr Care Pkage,"Dir of Adults, Health & Communities",4258.88
434083,04/10/2022,NA SS CARE LTD,Priv - Res Long,"Dir of Adults, Health & Communities",4200.00
0000017101,04/10/2022,FUSION LIFESTYLE,Sports & Playground & Pool Maintenance,Dir of Environment & Neighbourhoods,4000.00
1090,04/10/2022,cream engineering services,Business,Dir of Finance,4000.00
434074,04/10/2022,JEWISH CARE,Priv - Res Long,"Dir of Adults, Health & Communities",4000.00
434083,04/10/2022,MONREAD LODGE NURSING HOME LIMITED,Priv - Res Long,"Dir of Adults, Health & Communities",4000.00
434083,04/10/2022,ROMFORD NURSING  CARE CENTRE,Priv - Res Long,"Dir of Adults, Health & Communities",4000.00
434073,04/10/2022,ROUNDABOUT LTD,Priv - Contractor,Dir of Children's Services,3960.00
434083,04/10/2022,PHUL LTD,Priv - Res Long,"Dir of Adults, Health & Communities",3955.20
38431,04/10/2022,UNITED GUARDING SERVICES LTD,Security,Housing Revenue Account,3930.00
434083,04/10/2022,TOPCARE LTD,Priv - Res Long,"Dir of Adults, Health & Communities",3900.00
434094,04/10/2022,B&M INVESTMENTS LIMITED,Priv - Res Long,"Dir of Adults, Health & Communities",3880.00
434074,04/10/2022,WCS CARE GROUP LIMITED,Priv - Res Long,"Dir of Adults, Health & Communities",3800.00
434083,04/10/2022,ASHBROOK COURT CARE HOME,Priv - Res Long,"Dir of Adults, Health & Communities",3800.00
434094,04/10/2022,CLANDON CARE LIMITED,Priv - Res Long,"Dir of Adults, Health & Communities",3800.00
434094,04/10/2022,GRANDVILLE LODGE LIMITED,Priv - Res Long,"Dir of Adults, Health & Communities",3800.00
434072,04/10/2022,TOWER ESTATES (LODGE) LIMITED,Priv - B & B,"Dir of Adults, Health & Communities",3752.00
434083,04/10/2022,FOUR SEASONS (NO 10) LTD,Priv - Res Long,"Dir of Adults, Health & Communities",3728.16
434074,04/10/2022,SUMMERCARE LTD,Priv - Res Long,"Dir of Adults, Health & Communities",3651.08
434083,04/10/2022,CARING CONSULTANCY LTD,Priv - Res Long,"Dir of Adults, Health & Communities",3637.76
434083,04/10/2022,SANCTUARY HOUSING ASSOCIATION,Vol Sect - Res Long,"Dir of Adults, Health & Communities",3612.00
434072,04/10/2022,COLLABORATIVE CARE LTD,Priv - Hotel Short,"Dir of Adults, Health & Communities",3600.00
434074,04/10/2022,VILLA SCALABRINI,Priv - Res Long,"Dir of Adults, Health & Communities",3600.00
434094,04/10/2022,AVON LODGE UK LTD,Priv - Res Long,"Dir of Adults, Health & Communities",3600.00
434083,04/10/2022,JEWISH CARE,Vol Sect - Res Long,"Dir of Adults, Health & Communities",3592.88
434083,04/10/2022,TREES PARK (EAST HAM) LIMITED,Priv - Res Long,"Dir of Adults, Health & Communities",3531.64
434083,04/10/2022,BUPA CARE HOMES (BNH) LTD,Priv - Res Long,"Dir of Adults, Health & Communities",3530.20
434073,04/10/2022,THEMICARE LTD,Priv - Contractor,Dir of Children's Services,3520.00
434073,04/10/2022,SILVER BIRCH CARE LTD,Priv - Contractor,Dir of Children's Services,3500.00
434074,04/10/2022,SPRINGDENE NURSING & CARE HOMES LTD,Priv - Res Long,"Dir of Adults, Health & Communities",3500.00
434083,04/10/2022,JEWISH CARE,Priv - Res Long,"Dir of Adults, Health & Communities",3495.88
434083,04/10/2022,HAYES COURT NURSING HOME,Priv - Res Long,"Dir of Adults, Health & Communities",3454.84
VP42716770M03458,04/10/2022,BT PAYMENT SERVICES LTD,Telephones - Rental,Housing Revenue Account,3406.91
434094,04/10/2022,HEALTHCARE HOMES GROUP LIMITED,Priv - Res Long,"Dir of Adults, Health & Communities",3400.00
20251,04/10/2022,KEEGANS LTD,Buildings,Dir of Finance,3398.06
20329,04/10/2022,KEEGANS LTD,Buildings,Dir of Finance,3398.06
434094,04/10/2022,RESIDENTIAL CARE SERVICES LTD,Priv - Res Long,"Dir of Adults, Health & Communities",3375.52
434083,04/10/2022,AVERY HOMES(NELSON)LTD T/A BIRCHWOO,Client Cont Care Pkg,"Dir of Adults, Health & Communities",3348.40
#2108,04/10/2022,LOVE ABA LTD,Vol Sec - Add Supp,Dedicated Schools Grant Management,3346.00
0033/0003428331,04/10/2022,HOWARTH TIMBER & BUILDING SUPPLIES,Stock - Raw Material,Housing Revenue Account,3302.50
434083,04/10/2022,LITTLE SISTERS OF THE POOR,Priv - Res Long,"Dir of Adults, Health & Communities",3237.76
434072,04/10/2022,WEST LODGE LIMITED,Prv Sctr Care Pkage,"Dir of Adults, Health & Communities",3220.00
434074,04/10/2022,3A CARE (LONDON) LIMITED T/A THE HO,Priv - Res Long,"Dir of Adults, Health & Communities",3200.00
434074,04/10/2022,THE ORDERS OF ST JOHN CARE TRUST,Priv - Res Long,"Dir of Adults, Health & Communities",3200.00
434074,04/10/2022,ST ELIZABETHS CENTRE,Vol Sect - Res Long,"Dir of Adults, Health & Communities",3108.04
434083,04/10/2022,AVERY HOMES(NELSON)LTD T/A BIRCHWOO,Priv - Res Long,"Dir of Adults, Health & Communities",3084.96
434073,04/10/2022,MOXIE GIBSON CONSULTANCY AND TRAINI,Priv - Supp Lodging,Dir of Children's Services,3040.00
434094,04/10/2022,SOMERSET VILLA RESIDENTIAL CARE HOM,Priv - Res Long,"Dir of Adults, Health & Communities",3040.00
434083,04/10/2022,HAZELWOOD GARDENS CARE LIMITED,Priv - Res Long,"Dir of Adults, Health & Communities",3014.44
434074,04/10/2022,TEALK SERVICES LIMITED TA MANOR LOD,Priv - Res Long,"Dir of Adults, Health & Communities",3000.00
434094,04/10/2022,ANCHOR HANOVER GROUP TA BLUE GROVE,Priv - Res Long,"Dir of Adults, Health & Communities",3000.00
434069,04/10/2022,ATEGI LTD,Prv Sctr Care Pkage,"Dir of Adults, Health & Communities",2958.60
434074,04/10/2022,THE GREEN NURSING HOMES LTD,Priv - Res Long,"Dir of Adults, Health & Communities",2920.00
434094,04/10/2022,PARADISE HOUSE ASSOCIATION LTD,Priv - Res Long,"Dir of Adults, Health & Communities",2909.88
434094,04/10/2022,MILLENNIUM CARE LTD,Priv - Res Long,"Dir of Adults, Health & Communities",2827.68
434074,04/10/2022,VENTRY RESIDENTIAL CARE LTD,Priv - Res Long,"Dir of Adults, Health & Communities",2800.00
434074,04/10/2022,BROWNLOW ENTERPRISES LTD TA HEATHGR,Priv - Res Long,"Dir of Adults, Health & Communities",2800.00
434094,04/10/2022,BONDCARE ASHWOOD CARE,Priv - Res Long,"Dir of Adults, Health & Communities",2800.00
434094,04/10/2022,Redacted Personal Data,Priv - Res Long,"Dir of Adults, Health & Communities",2767.48
434094,04/10/2022,LARCHWOOD CARE HOMES SOUTH LTD,Priv - Res Long,"Dir of Adults, Health & Communities",2760.00
1351623,04/10/2022,TLT LLP,Specialist Support,Assistant Dir Corporate Governance,2652.00
434094,04/10/2022,WILTON HOUSE LIMITED,Priv - Res Long,"Dir of Adults, Health & Communities",2601.40
434073,04/10/2022,HOUSING PLUS,Priv - Contractor,Dir of Children's Services,2600.00
434074,04/10/2022,THE ROYAL MASONIC BENEVOLENT INSTIT,Priv - Res Long,"Dir of Adults, Health & Communities",2600.00
DCE019-1566976,04/10/2022,KAAMIL EDUCATION LTD,Prv Sctr Care Pkage,"Dir of Adults, Health & Communities",2567.60
434072,04/10/2022,GABLE LODGE LIMITED,Priv - Hotel Short,"Dir of Adults, Health & Communities",2520.00
434094,04/10/2022,HEALTHCARE HOMES GROUP LIMITED,Prv Sctr Care Pkage,"Dir of Adults, Health & Communities",2480.00
434089,04/10/2022,Redacted Personal Data,Prv Sctr Care Pkage,"Dir of Adults, Health & Communities",2471.40
434074,04/10/2022,QUANTUM CARE LIMITED,Priv - Res Long,"Dir of Adults, Health & Communities",2464.80
DCE019-8008,04/10/2022,KAAMIL EDUCATION LTD,Prv Sctr Care Pkage,"Dir of Adults, Health & Communities",2439.22
STE072-175437,04/10/2022,STERLING STANDARD CARE GROUP,Priv Sec-- LBH & CCG,"Dir of Adults, Health & Communities",2435.40
434074,04/10/2022,THE ABBEYFIELD EAST LONDON EXTRA CA,Priv - Res Long,"Dir of Adults, Health & Communities",2420.00
DCE019-1580530,04/10/2022,KAAMIL EDUCATION LTD,Prv Sctr Care Pkage,"Dir of Adults, Health & Communities",2402.54
434083,04/10/2022,OURRIS PROPERTIES LIMITED,Priv - Res Short,"Dir of Adults, Health & Communities",2400.00
GAMBLING 001,04/10/2022,ONE TIME,Priv - Contractor,"Dir of Adults, Health & Communities",2400.00
DCE019-1598808,04/10/2022,KAAMIL EDUCATION LTD,Prv Sctr Care Pkage,"Dir of Adults, Health & Communities",2320.01
DCE019-129122,04/10/2022,KAAMIL EDUCATION LTD,Prv Sctr Care Pkage,"Dir of Adults, Health & Communities",2310.84
DCE019-1520462,04/10/2022,KAAMIL EDUCATION LTD,Prv Sctr Care Pkage,"Dir of Adults, Health & Communities",2310.84
DCE019-1543706,04/10/2022,KAAMIL EDUCATION LTD,Prv Sctr Care Pkage,"Dir of Adults, Health & Communities",2310.84
DCE019-1613116,04/10/2022,KAAMIL EDUCATION LTD,Prv Sctr Care Pkage,"Dir of Adults, Health & Communities",2310.84
DCE019-52167,04/10/2022,KAAMIL EDUCATION LTD,Prv Sctr Care Pkage,"Dir of Adults, Health & Communities",2310.84
DCE019-1718975,04/10/2022,KAAMIL EDUCATION LTD,Prv Sctr Care Pkage,"Dir of Adults, Health & Communities",2306.26
434094,04/10/2022,KISHOR VILLAGE,Priv - Res Long,"Dir of Adults, Health & Communities",2295.00
434094,04/10/2022,FERNCROSS CARE LTD,Priv - Res Long,"Dir of Adults, Health & Communities",2279.44
434072,04/10/2022,WEST LODGE LIMITED,Priv - Hotel Short,"Dir of Adults, Health & Communities",2268.00
STE072-1497734,04/10/2022,STERLING STANDARD CARE GROUP,Prv Sctr Care Pkage,"Dir of Adults, Health & Communities",2222.64
DCE019-1326396,04/10/2022,KAAMIL EDUCATION LTD,Prv Sctr Care Pkage,"Dir of Adults, Health & Communities",2185.58
DCE019-1510495,04/10/2022,KAAMIL EDUCATION LTD,Prv Sctr Care Pkage,"Dir of Adults, Health & Communities",2182.46
DCE019-1538760,04/10/2022,KAAMIL EDUCATION LTD,Prv Sctr Care Pkage,"Dir of Adults, Health & Communities",2182.46
434072,04/10/2022,STEF & PHILIPS CLIENT ACCOUNT,Prv Sctr Care Pkage,"Dir of Adults, Health & Communities",2156.00
434069,04/10/2022,Redacted Personal Data,Prv Sctr Care Pkage,"Dir of Adults, Health & Communities",2136.00
434072,04/10/2022,BLUE RIBBON PROPERTY LETTINGS LTD,Prv Sctr Care Pkage,"Dir of Adults, Health & Communities",2128.00
434069,04/10/2022,GRACE EYRE FOUNDATION,Vol Sect - Care Pk,"Dir of Adults, Health & Communities",2092.72
073 / 1000013465,04/10/2022,YOUR CHOICE (BARNET) LTD,Prv Sctr Care Pkage,"Dir of Adults, Health & Communities",2090.00
434073,04/10/2022,YOUNG ROOTS CARE SERVICES LTD,Priv - Supp Lodging,Dir of Children's Services,2000.00
434072,04/10/2022,BLUE RIBBON PROPERTY LETTINGS LTD,Priv - B & B,"Dir of Adults, Health & Communities",1960.00
DCE019-1034629,04/10/2022,KAAMIL EDUCATION LTD,Prv Sctr Care Pkage,"Dir of Adults, Health & Communities",1834.00
04590135,04/10/2022,PLEXUS LAW (OFFICE ACCOUNT),Specialist Support,Dir of Finance,1826.00
0033/0003430189,04/10/2022,HOWARTH TIMBER & BUILDING SUPPLIES,Stock - Raw Material,Housing Revenue Account,1807.36
5107248945,04/10/2022,CLONIS PROPERTY SERVICES LTD,Prem - Leasing,"Dir of Adults, Health & Communities",1807.00
434073,04/10/2022,HEARTWOOD OUTREACH SERVICES LTD,Priv - Contractor,Dir of Children's Services,1800.72
434072,04/10/2022,TOWER ESTATES (LODGE) LIMITED,Prv Sctr Care Pkage,"Dir of Adults, Health & Communities",1792.00
5107248970,04/10/2022,PROPERTYNET (UK) LIMITED,Prem - Leasing,"Dir of Adults, Health & Communities",1711.66
434072,04/10/2022,COLLABORATIVE CARE LTD,Priv - B & B,"Dir of Adults, Health & Communities",1700.00
434072,04/10/2022,HEADWAY SUPPORT HOMES LTD,Priv - B & B,"Dir of Adults, Health & Communities",1700.00
5107248947,04/10/2022,Redacted Personal Data,Prem - Leasing,"Dir of Adults, Health & Communities",1681.33
5107248956,04/10/2022,Redacted Personal Data,Prem - Leasing,"Dir of Adults, Health & Communities",1681.33
434072,04/10/2022,VERAA 7 HOME CARE SERVICES LTD,Priv - B & B,"Dir of Adults, Health & Communities",1680.00
434072,04/10/2022,VERAA 7 HOME CARE SERVICES LTD,Priv - Hotel Short,"Dir of Adults, Health & Communities",1680.00
DCE019-32653,04/10/2022,KAAMIL EDUCATION LTD,Prv Sctr Care Pkage,"Dir of Adults, Health & Communities",1668.94
073 / 1000013467,04/10/2022,YOUR CHOICE (BARNET) LTD,Prv Sctr Care Pkage,"Dir of Adults, Health & Communities",1650.00
434073,04/10/2022,STARLIGHT SUPPORT SERVICES,Priv - Contractor,Dir of Children's Services,1600.00
434073,04/10/2022,PLACE OF PROGRESS LTD,Priv - Supp Lodging,Dir of Children's Services,1600.00
434072,04/10/2022,TOWER ESTATES (LODGE) LIMITED,Priv - Hotel Short,"Dir of Adults, Health & Communities",1596.00
5107248969,04/10/2022,Redacted Personal Data,Prem - Leasing,"Dir of Adults, Health & Communities",1581.66
DCE019-114036,04/10/2022,KAAMIL EDUCATION LTD,Prv Sctr Care Pkage,"Dir of Adults, Health & Communities",1540.56
434072,04/10/2022,STEF & PHILIPS CLIENT ACCOUNT,Priv - B & B,"Dir of Adults, Health & Communities",1540.00
26172,04/10/2022,LANGDON COMMUNITY,Prv Sctr Care Pkage,"Dir of Adults, Health & Communities",1520.00
434073,04/10/2022,PHOENIX COMMUNITY CARE LTD,Priv Sec-- LBH & CCG,Dir of Children's Services,1512.00
5107248946,04/10/2022,STATEBOND LTD T/A HORNSEY AGENCIES,Prem - Leasing,"Dir of Adults, Health & Communities",1473.33
5107248952,04/10/2022,FALCON PROPERTIES LTD,Prem - Leasing,"Dir of Adults, Health & Communities",1404.00
STE072-6665,04/10/2022,STERLING STANDARD CARE GROUP,Prv Sctr Care Pkage,"Dir of Adults, Health & Communities",1402.52
5107248965,04/10/2022,KEEL HOMES LTD,Prem - Leasing,"Dir of Adults, Health & Communities",1400.53
STE072-1675828,04/10/2022,STERLING STANDARD CARE GROUP,Prv Sctr Care Pkage,"Dir of Adults, Health & Communities",1389.08
5107248948,04/10/2022,Redacted Personal Data,Prem - Leasing,"Dir of Adults, Health & Communities",1386.66
434083,04/10/2022,ALPHA CARE MANAGEMENT SERVICES NO 2,Priv - Res Long,"Dir of Adults, Health & Communities",1371.43
5107248941,04/10/2022,ADAMS & STYLES,Prem - Leasing,"Dir of Adults, Health & Communities",1365.00
5107248942,04/10/2022,ADAMS & STYLES,Prem - Leasing,"Dir of Adults, Health & Communities",1365.00
5107248958,04/10/2022,MILLENIUM INVESTMENT 2000 LTD,Prem - Leasing,"Dir of Adults, Health & Communities",1365.00
5107248951,04/10/2022,Redacted Personal Data,Prem - Leasing,"Dir of Adults, Health & Communities",1365.00
5107248954,04/10/2022,Redacted Personal Data,Prem - Leasing,"Dir of Adults, Health & Communities",1365.00
5107248955,04/10/2022,Redacted Personal Data,Prem - Leasing,"Dir of Adults, Health & Communities",1365.00
5107248963,04/10/2022,Redacted Personal Data,Prem - Leasing,"Dir of Adults, Health & Communities",1365.00
434073,04/10/2022,TOWER ESTATES (LODGE) LIMITED,Priv - Contractor,Dir of Children's Services,1344.00
LARCMB061,04/10/2022,FERNLEA SURGERY,Public Health,"Dir of Adults, Health & Communities",1330.23
STE072-1029620,04/10/2022,STERLING STANDARD CARE GROUP,Prv Sctr Care Pkage,"Dir of Adults, Health & Communities",1312.00
DCE019-98487,04/10/2022,KAAMIL EDUCATION LTD,Prv Sctr Care Pkage,"Dir of Adults, Health & Communities",1302.14
DCE019-1673390,04/10/2022,KAAMIL EDUCATION LTD,Prv Sctr Care Pkage,"Dir of Adults, Health & Communities",1283.80
434073,04/10/2022,ATLANTIC LODGE  LTD,Priv - Supp Lodging,Dir of Children's Services,1280.00
0926092022,04/10/2022,Redacted Personal Data,Organised Activities,Dir of Children's Services,1238.33
DCE019-1691949,04/10/2022,KAAMIL EDUCATION LTD,Prv Sctr Care Pkage,"Dir of Adults, Health & Communities",1237.95
434073,04/10/2022,NORTH AND EAST LONDON CARE LIMITED,Priv - Supp Lodging,Dir of Children's Services,1200.00
434064,04/10/2022,Redacted Personal Data,LAC - Regular Pay,Dir of Children's Services,1191.00
434072,04/10/2022,LONDON HOUSING DIRECT LTD,Priv - B & B,"Dir of Adults, Health & Communities",1176.00
DCE019-1745542,04/10/2022,KAAMIL EDUCATION LTD,Prv Sctr Care Pkage,"Dir of Adults, Health & Communities",1173.76
5107248964,04/10/2022,Redacted Personal Data,Prem - Leasing,"Dir of Adults, Health & Communities",1170.00
434069,04/10/2022,Redacted Personal Data,Prv Sctr Care Pkage,"Dir of Adults, Health & Communities",1160.00
DCE019-1524023,04/10/2022,KAAMIL EDUCATION LTD,Prv Sctr Care Pkage,"Dir of Adults, Health & Communities",1155.42
DCE019-1741312,04/10/2022,KAAMIL EDUCATION LTD,Prv Sctr Care Pkage,"Dir of Adults, Health & Communities",1155.42
DCE019-23222,04/10/2022,KAAMIL EDUCATION LTD,Prv Sctr Care Pkage,"Dir of Adults, Health & Communities",1155.42
9328,04/10/2022,Transport Planning Practice Ltd,Business,Dir of Finance,1150.00
STE072-1499643,04/10/2022,STERLING STANDARD CARE GROUP,Prv Sctr Care Pkage,"Dir of Adults, Health & Communities",1136.52
148451,04/10/2022,LYNCADE LTD t/a CAVENDISH CARS,Travel Exp - Client,"Dir of Adults, Health & Communities",1121.00
5107248940,04/10/2022,Redacted Personal Data,Prem - Leasing,"Dir of Adults, Health & Communities",1105.00
5107248943,04/10/2022,Redacted Personal Data,Prem - Leasing,"Dir of Adults, Health & Communities",1105.00
5107248957,04/10/2022,Redacted Personal Data,Prem - Leasing,"Dir of Adults, Health & Communities",1105.00
5107248959,04/10/2022,Redacted Personal Data,Prem - Leasing,"Dir of Adults, Health & Communities",1105.00
5107248966,04/10/2022,Redacted Personal Data,Prem - Leasing,"Dir of Adults, Health & Communities",1105.00
5107248949,04/10/2022,Redacted Personal Data,Prem - Leasing,"Dir of Adults, Health & Communities",1061.66
434073,04/10/2022,OAK TREE CARE SERVICES LIMITED,Priv - Contractor,Dir of Children's Services,1050.00
STE072-1546855,04/10/2022,STERLING STANDARD CARE GROUP,Prv Sctr Care Pkage,"Dir of Adults, Health & Communities",1039.52
STE072-1748886,04/10/2022,STERLING STANDARD CARE GROUP,Prv Sctr Care Pkage,"Dir of Adults, Health & Communities",1039.52
DCE019-1019102,04/10/2022,KAAMIL EDUCATION LTD,Prv Sctr Care Pkage,"Dir of Adults, Health & Communities",1027.04
DCE019-1028062,04/10/2022,KAAMIL EDUCATION LTD,Prv Sctr Care Pkage,"Dir of Adults, Health & Communities",1027.04
DCE019-110685,04/10/2022,KAAMIL EDUCATION LTD,Prv Sctr Care Pkage,"Dir of Adults, Health & Communities",1027.04
DCE019-1607915,04/10/2022,KAAMIL EDUCATION LTD,Prv Sctr Care Pkage,"Dir of Adults, Health & Communities",1027.04
DCE019-1057567,04/10/2022,KAAMIL EDUCATION LTD,Prv Sctr Care Pkage,"Dir of Adults, Health & Communities",1017.87
STE072-1078668,04/10/2022,STERLING STANDARD CARE GROUP,Prv Sctr Care Pkage,"Dir of Adults, Health & Communities",1008.00
434072,04/10/2022,RIVERSIDE SCHOOL,Prv Sctr Care Pkage,"Dir of Adults, Health & Communities",996.72
434089,04/10/2022,Redacted Personal Data,Prv Sctr Care Pkage,"Dir of Adults, Health & Communities",988.56
434074,04/10/2022,WEST LODGE LIMITED,Subsist - SS Clients,"Dir of Adults, Health & Communities",980.00
DCE019-1656449,04/10/2022,KAAMIL EDUCATION LTD,Prv Sctr Care Pkage,"Dir of Adults, Health & Communities",972.02
DCE019-1758174,04/10/2022,KAAMIL EDUCATION LTD,Prv Sctr Care Pkage,"Dir of Adults, Health & Communities",972.02
490,04/10/2022,DCAS DIRECT PERSONNEL LTD,Prv Sctr Care Pkage,"Dir of Adults, Health & Communities",960.00
434073,04/10/2022,INYRA LTD,Priv - Supp Lodging,Dir of Children's Services,945.70
24,04/10/2022,121 RYDES LIMITED,Travel Exp - Client,"Dir of Adults, Health & Communities",925.00
STE072-1079561,04/10/2022,STERLING STANDARD CARE GROUP,Prv Sctr Care Pkage,"Dir of Adults, Health & Communities",924.00
1739,04/10/2022,RELDM LTD,Advertising,Dir of Finance,906.00
DCE019-1082605,04/10/2022,KAAMIL EDUCATION LTD,Prv Sctr Care Pkage,"Dir of Adults, Health & Communities",898.66
DCE019-129864,04/10/2022,KAAMIL EDUCATION LTD,Prv Sctr Care Pkage,"Dir of Adults, Health & Communities",898.66
DCE019-1500015,04/10/2022,KAAMIL EDUCATION LTD,Prv Sctr Care Pkage,"Dir of Adults, Health & Communities",898.66
DCE019-1529172,04/10/2022,KAAMIL EDUCATION LTD,Prv Sctr Care Pkage,"Dir of Adults, Health & Communities",898.66
DCE019-1586196,04/10/2022,KAAMIL EDUCATION LTD,Prv Sctr Care Pkage,"Dir of Adults, Health & Communities",898.66
DCE019-1738446,04/10/2022,KAAMIL EDUCATION LTD,Prv Sctr Care Pkage,"Dir of Adults, Health & Communities",898.66
DCE019-1747159,04/10/2022,KAAMIL EDUCATION LTD,Prv Sctr Care Pkage,"Dir of Adults, Health & Communities",898.66
5107248944,04/10/2022,Redacted Personal Data,Prem - Leasing,"Dir of Adults, Health & Communities",891.24
STE072-1081037,04/10/2022,STERLING STANDARD CARE GROUP,Prv Sctr Care Pkage,"Dir of Adults, Health & Communities",883.96
STE072-1758000,04/10/2022,STERLING STANDARD CARE GROUP,Prv Sctr Care Pkage,"Dir of Adults, Health & Communities",883.96
073 / 1000013466,04/10/2022,YOUR CHOICE (BARNET) LTD,Prv Sctr Care Pkage,"Dir of Adults, Health & Communities",880.00
434088,04/10/2022,Redacted Personal Data,Prv Sctr Care Pkage,"Dir of Adults, Health & Communities",874.56
69299,04/10/2022,Martin Arnold Limited,Buildings,Dir of Finance,847.00
69300,04/10/2022,Martin Arnold Limited,Buildings,Dir of Finance,847.00
DCE019-1451996,04/10/2022,KAAMIL EDUCATION LTD,Prv Sctr Care Pkage,"Dir of Adults, Health & Communities",843.64
434074,04/10/2022,WEST LODGE LIMITED,Priv - B & B,"Dir of Adults, Health & Communities",840.00
434073,04/10/2022,GOLDEN CARE ESTATES LTD,Priv - Supp Lodging,Dir of Children's Services,800.00
DCE019-1324136,04/10/2022,KAAMIL EDUCATION LTD,Prv Sctr Care Pkage,"Dir of Adults, Health & Communities",770.28
434089,04/10/2022,Redacted Personal Data,Prv Sctr Care Pkage,"Dir of Adults, Health & Communities",768.88
STE072-1755340,04/10/2022,STERLING STANDARD CARE GROUP,Prv Sctr Care Pkage,"Dir of Adults, Health & Communities",759.00
434087,04/10/2022,Redacted Personal Data,Prv Sctr Care Pkage,Dir of Children's Services,750.00
434069,04/10/2022,Redacted Personal Data,Prv Sctr Care Pkage,"Dir of Adults, Health & Communities",739.88
R237,04/10/2022,RIMA DESIGN LTD,Fees - Print Design,"Dir of  Culture, Strategy & Engagement",675.00
DCE019-125065,04/10/2022,KAAMIL EDUCATION LTD,Prv Sctr Care Pkage,"Dir of Adults, Health & Communities",674.00
DCE019-1018103,04/10/2022,KAAMIL EDUCATION LTD,Priv Sec-- LBH & CCG,"Dir of Adults, Health & Communities",660.24
DCE019-94806,04/10/2022,KAAMIL EDUCATION LTD,Prv Sctr Care Pkage,"Dir of Adults, Health & Communities",660.24
DCE019-1046601,04/10/2022,KAAMIL EDUCATION LTD,Prv Sctr Care Pkage,"Dir of Adults, Health & Communities",641.90
DCE019-1513984,04/10/2022,KAAMIL EDUCATION LTD,Prv Sctr Care Pkage,"Dir of Adults, Health & Communities",641.90
DCE019-1539804,04/10/2022,KAAMIL EDUCATION LTD,Prv Sctr Care Pkage,"Dir of Adults, Health & Communities",641.90
DCE019-46792,04/10/2022,KAAMIL EDUCATION LTD,Prv Sctr Care Pkage,"Dir of Adults, Health & Communities",641.90
35/481571,04/10/2022,FAYERS PLUMBING AND BUILDING SUPPLI,Stock - Raw Material,Housing Revenue Account,640.45
26171,04/10/2022,LANGDON COMMUNITY,Prv Sctr Care Pkage,"Dir of Adults, Health & Communities",608.00
DCE019-1000202,04/10/2022,KAAMIL EDUCATION LTD,Prv Sctr Care Pkage,"Dir of Adults, Health & Communities",586.88
434073,04/10/2022,ELLIOT LEIGH TLC LTD,Priv - Supp Lodging,Dir of Children's Services,540.00
DCE019-1147676,04/10/2022,KAAMIL EDUCATION LTD,Prv Sctr Care Pkage,"Dir of Adults, Health & Communities",513.52
609649C,04/10/2022,THOMAS RIDLEY & SON  LTD,"Groceries, Fruit & v",Dir of Children's Services,513.21
434064,04/10/2022,Redacted Personal Data,LAC - Regular Pay,Dir of Children's Services,507.00
DCE019-1743348,04/10/2022,KAAMIL EDUCATION LTD,Prv Sctr Care Pkage,"Dir of Adults, Health & Communities",495.18
434089,04/10/2022,Redacted Personal Data,Prv Sctr Care Pkage,"Dir of Adults, Health & Communities",494.28
UNI088-1748214,04/10/2022,UNICARE LONDON LIMITED,Prv Sctr Care Pkage,"Dir of Adults, Health & Communities",493.00
UNI089-1748214,04/10/2022,UNICARE LONDON LIMITED,Prv Sctr Care Pkage,"Dir of Adults, Health & Communities",493.00
UNI090-1748214,04/10/2022,UNICARE LONDON LIMITED,Prv Sctr Care Pkage,"Dir of Adults, Health & Communities",493.00
DCE019-1607234,04/10/2022,KAAMIL EDUCATION LTD,Prv Sctr Care Pkage,"Dir of Adults, Health & Communities",490.60
DCE019-86857,04/10/2022,KAAMIL EDUCATION LTD,Prv Sctr Care Pkage,"Dir of Adults, Health & Communities",486.01
DCE019-141166,04/10/2022,KAAMIL EDUCATION LTD,Prv Sctr Care Pkage,"Dir of Adults, Health & Communities",481.43
STE072-175437,04/10/2022,STERLING STANDARD CARE GROUP,Prv Sctr Care Pkage,"Dir of Adults, Health & Communities",476.60
022,04/10/2022,LORDSHIP SPORTS & ARTS CONSORTIUM,Sport & Fitness,Dir of Environment & Neighbourhoods,460.00
609651C,04/10/2022,THOMAS RIDLEY & SON  LTD,Corporate Services  Catering,Dir of Children's Services,459.54
DCE019-1511161,04/10/2022,KAAMIL EDUCATION LTD,Prv Sctr Care Pkage,"Dir of Adults, Health & Communities",440.16
49213,04/10/2022,MERCURY SECURITY SYSTEMS LTD,Cleaning Service,Dir of Children's Services,438.00
434064,04/10/2022,Redacted Personal Data,LAC - Regular Pay,Dir of Children's Services,437.00
434075,04/10/2022,HOUSING ACTION MANAGEMENT LTD,Priv - Lodgings,Dir of Children's Services,423.00
DCE019-1734805,04/10/2022,KAAMIL EDUCATION LTD,Priv Sec-- LBH & CCG,"Dir of Adults, Health & Communities",417.23
HC128,04/10/2022,Redacted Personal Data,Organised Activities,"Dir of Adults, Health & Communities",407.20
DCE019-1132297,04/10/2022,KAAMIL EDUCATION LTD,Prv Sctr Care Pkage,"Dir of Adults, Health & Communities",385.14
DCE019-1230296,04/10/2022,KAAMIL EDUCATION LTD,Prv Sctr Care Pkage,"Dir of Adults, Health & Communities",385.14
DCE019-1654036,04/10/2022,KAAMIL EDUCATION LTD,Prv Sctr Care Pkage,"Dir of Adults, Health & Communities",385.14
DCE019-1747336,04/10/2022,KAAMIL EDUCATION LTD,Prv Sctr Care Pkage,"Dir of Adults, Health & Communities",385.14
DCE019-1757433,04/10/2022,KAAMIL EDUCATION LTD,Prv Sctr Care Pkage,"Dir of Adults, Health & Communities",385.14
35/481348,04/10/2022,FAYERS PLUMBING AND BUILDING SUPPLI,Stock - Raw Material,Housing Revenue Account,383.00
22191,04/10/2022,Redacted Personal Data,Organised Activities,Dir of Children's Services,373.33
DCE019-1745092,04/10/2022,KAAMIL EDUCATION LTD,Prv Sctr Care Pkage,"Dir of Adults, Health & Communities",371.39
584809C,04/10/2022,THOMAS RIDLEY & SON  LTD,Corporate Services  Catering,Dir of Children's Services,356.98
434073,04/10/2022,ELLIOT LEIGH TLC LTD,Prem - Rents,Dir of Children's Services,346.44
487,04/10/2022,DCAS DIRECT PERSONNEL LTD,Prv Sctr Care Pkage,"Dir of Adults, Health & Communities",324.00
DCE019-1519003,04/10/2022,KAAMIL EDUCATION LTD,Prv Sctr Care Pkage,"Dir of Adults, Health & Communities",320.95
434073,04/10/2022,PREFERRED LIVING LTD,Priv - Supp Lodging,Dir of Children's Services,300.00
DCE019-1543984,04/10/2022,KAAMIL EDUCATION LTD,Prv Sctr Care Pkage,"Dir of Adults, Health & Communities",293.44
DCE019-1650896,04/10/2022,KAAMIL EDUCATION LTD,Prv Sctr Care Pkage,"Dir of Adults, Health & Communities",288.86
DOLS/WG/LBH/1606,04/10/2022,ONE TIME,Priv - Sub Contract,"Dir of Adults, Health & Communities",284.00
DCE019-1071982,04/10/2022,KAAMIL EDUCATION LTD,Prv Sctr Care Pkage,"Dir of Adults, Health & Communities",265.93
PJ20052972,04/10/2022,OMEGA RED GROUP LIMITED,Priv - Sub Contract,Housing Revenue Account,250.00
HC-17542436,04/10/2022,GRANT PAYMENTS,Grant - Vol Org Run,Dir of Environment & Neighbourhoods,245.00
INV-2021195,04/10/2022,EWING FOUNDATION,Supplies,Dir of Children's Services,239.79
434073,04/10/2022,CAUSEWAY IRISH HOUSING ASSOCIATION,Priv - Supp Lodging,Dir of Children's Services,239.32
09220916,04/10/2022,Redacted Personal Data,Organised Activities,Dir of Children's Services,235.67
DCE019-1534966,04/10/2022,KAAMIL EDUCATION LTD,Priv Sec-- LBH & CCG,"Dir of Adults, Health & Communities",224.67
409,04/10/2022,Redacted Personal Data,Interpretation & Translation,Housing Revenue Account,220.00
110582,04/10/2022,WISDOM DESIGN LIMITED,Fees - Print Design,"Dir of  Culture, Strategy & Engagement",180.00
DCE019-1734805,04/10/2022,KAAMIL EDUCATION LTD,Prv Sctr Care Pkage,"Dir of Adults, Health & Communities",178.82
UNI091-1091776-A,04/10/2022,UNICARE LONDON LIMITED,Prv Sctr Care Pkage,"Dir of Adults, Health & Communities",161.50
434072,04/10/2022,GLOBAL IMPACT TRAINING LIMITED,Subsist - SS Clients,"Dir of Adults, Health & Communities",160.00
258-HAL0,04/10/2022,HALO Psychology Ltd.,Training & Conferences,Assistant Dir Corporate Governance,155.00
1342845,04/10/2022,TLT LLP,Specialist Support,Assistant Dir Corporate Governance,152.00
434088,04/10/2022,Redacted Personal Data,Priv - Res Long,"Dir of Adults, Health & Communities",150.00
35/481836,04/10/2022,FAYERS PLUMBING AND BUILDING SUPPLI,"Material - Purch,Rep",Housing Revenue Account,148.51
434072,04/10/2022,EXPLICIT CARE SOLUTIONS LIMITED,Subsist - SS Clients,"Dir of Adults, Health & Communities",140.00
41063330,04/10/2022,NEWSQUEST MEDIA GROUP,Advert - Non Staff,"Dir of  Culture, Strategy & Engagement",136.62
35/481570,04/10/2022,FAYERS PLUMBING AND BUILDING SUPPLI,"Material - Purch,Rep",Housing Revenue Account,108.25
488,04/10/2022,DCAS DIRECT PERSONNEL LTD,Prv Sctr Care Pkage,"Dir of Adults, Health & Communities",104.00
41063607,04/10/2022,NEWSQUEST MEDIA GROUP,Advert - Non Staff,"Dir of  Culture, Strategy & Engagement",89.10
41063379,04/10/2022,NEWSQUEST MEDIA GROUP,Advert - Non Staff,"Dir of  Culture, Strategy & Engagement",83.16
41063391,04/10/2022,NEWSQUEST MEDIA GROUP,Advert - Non Staff,"Dir of  Culture, Strategy & Engagement",83.16
41063010,04/10/2022,NEWSQUEST MEDIA GROUP,Advert - Non Staff,"Dir of  Culture, Strategy & Engagement",65.34
41063174,04/10/2022,NEWSQUEST MEDIA GROUP,Advert - Non Staff,"Dir of  Culture, Strategy & Engagement",65.34
41063531,04/10/2022,NEWSQUEST MEDIA GROUP,Advert - Non Staff,"Dir of  Culture, Strategy & Engagement",59.40
41063031,04/10/2022,NEWSQUEST MEDIA GROUP,Advert - Non Staff,"Dir of  Culture, Strategy & Engagement",53.46
41063539,04/10/2022,NEWSQUEST MEDIA GROUP,Advert - Non Staff,"Dir of  Culture, Strategy & Engagement",53.46
41063395,04/10/2022,NEWSQUEST MEDIA GROUP,Advert - Non Staff,"Dir of  Culture, Strategy & Engagement",41.58
DCE019-1653450,04/10/2022,KAAMIL EDUCATION LTD,Prv Sctr Care Pkage,"Dir of Adults, Health & Communities",27.51
80087024,04/10/2022,THEBIGWORD INTERPRETING SERVICES LI,Fees - Print Design,"Dir of  Culture, Strategy & Engagement",22.06
02/653210,04/10/2022,BUNZL UK LTD t/a GREENHAM,Stock - Raw Material,Housing Revenue Account,20.40
02/653398,04/10/2022,BUNZL UK LTD t/a GREENHAM,Stock - Raw Material,Housing Revenue Account,12.20
02/652794,04/10/2022,BUNZL UK LTD t/a GREENHAM,Stock - Raw Material,Housing Revenue Account,7.34
434088,04/10/2022,Redacted Personal Data,Client Cont Care Pkg,"Dir of Adults, Health & Communities",-131.68
434083,04/10/2022,ALPHA CARE MANAGEMENT SERVICES NO 2,JtFundInc - Health,"Dir of Adults, Health & Communities",-134.00
DCE019-1534966,04/10/2022,KAAMIL EDUCATION LTD,Prv Sctr Care Pkage,"Dir of Adults, Health & Communities",-201.74
434094,04/10/2022,SES KITE LTD,Client Cont Care Pkg,"Dir of Adults, Health & Communities",-217.92
434083,04/10/2022,LIVABILITY,Client Cont Care Pkg,"Dir of Adults, Health & Communities",-367.80
434094,04/10/2022,BROOKDALE HEALTHCARE,Client Cont Care Pkg,"Dir of Adults, Health & Communities",-367.80
434074,04/10/2022,SUNCARE RECOVERY LTD,Client Cont Care Pkg,"Dir of Adults, Health & Communities",-414.20
434074,04/10/2022,WCS CARE GROUP LIMITED,Client Cont Care Pkg,"Dir of Adults, Health & Communities",-438.80
434083,04/10/2022,SOUTHGATE BEAUMOUNT CARE COMMUNITY,Client Cont Care Pkg,"Dir of Adults, Health & Communities",-438.80
434094,04/10/2022,RESIDENTIAL CARE SERVICES LTD,Client Cont Care Pkg,"Dir of Adults, Health & Communities",-438.80
434094,04/10/2022,PARADISE HOUSE ASSOCIATION LTD,Client Cont Care Pkg,"Dir of Adults, Health & Communities",-438.80
434094,04/10/2022,GLENPAT HOMES LTD,Client Cont Care Pkg,"Dir of Adults, Health & Communities",-438.80
434094,04/10/2022,LEONARD CHESHIRE DISABILITY,Client Cont Care Pkg,"Dir of Adults, Health & Communities",-438.80
434094,04/10/2022,PHILOMENA OKORON T/A 4ACRES DOMICIL,Client Cont Care Pkg,"Dir of Adults, Health & Communities",-442.80
434074,04/10/2022,WHITE ROSE CARE,Client Cont Care Pkg,"Dir of Adults, Health & Communities",-595.40
434083,04/10/2022,MULLINVAM LIMITED,Client Cont Care Pkg,"Dir of Adults, Health & Communities",-595.40
434083,04/10/2022,HUGH MYDDLETON HOUSE,Client Cont Care Pkg,"Dir of Adults, Health & Communities",-595.40
434083,04/10/2022,KARUNA MANOR CARE HOME,Client Cont Care Pkg,"Dir of Adults, Health & Communities",-595.40
434083,04/10/2022,GABLE COURT NH LTD,Client Cont Care Pkg,"Dir of Adults, Health & Communities",-595.40
434083,04/10/2022,Vibrance,Client Cont Care Pkg,"Dir of Adults, Health & Communities",-595.40
434094,04/10/2022,HUGH MYDDLETON HOUSE,Client Cont Care Pkg,"Dir of Adults, Health & Communities",-595.40
434094,04/10/2022,HC ONE OVAL LIMITED,Client Cont Care Pkg,"Dir of Adults, Health & Communities",-595.40
434083,04/10/2022,ACORN LODGE CARE HOME,Client Cont Care Pkg,"Dir of Adults, Health & Communities",-604.70
434074,04/10/2022,ST ELIZABETHS CENTRE,Client Cont Care Pkg,"Dir of Adults, Health & Communities",-609.60
434094,04/10/2022,HILTON LODGE LTD,Client Cont Care Pkg,"Dir of Adults, Health & Communities",-614.44
434083,04/10/2022,JEWISH CARE,Client Cont Care Pkg,"Dir of Adults, Health & Communities",-626.40
434074,04/10/2022,YAD VOEZER,Client Cont Care Pkg,"Dir of Adults, Health & Communities",-627.80
434074,04/10/2022,3A CARE (LONDON) LIMITED T/A THE HO,Client Cont Care Pkg,"Dir of Adults, Health & Communities",-627.80
434074,04/10/2022,THE GREEN NURSING HOMES LTD,Client Cont Care Pkg,"Dir of Adults, Health & Communities",-627.80
434083,04/10/2022,THE CONIFERS HEALTHCARE LTD,Client Cont Care Pkg,"Dir of Adults, Health & Communities",-627.80
434083,04/10/2022,LITTLE SISTERS OF THE POOR,Client Cont Care Pkg,"Dir of Adults, Health & Communities",-627.80
434083,04/10/2022,MONREAD LODGE NURSING HOME LIMITED,Client Cont Care Pkg,"Dir of Adults, Health & Communities",-627.80
434083,04/10/2022,DMP HEALTHCARE HEATHERBROOK LTD,Client Cont Care Pkg,"Dir of Adults, Health & Communities",-627.80
434083,04/10/2022,SUNRISE SENIOR TA GRACEWELL HEALTHC,Client Cont Care Pkg,"Dir of Adults, Health & Communities",-627.80
434094,04/10/2022,JEWISH CARE,Client Cont Care Pkg,"Dir of Adults, Health & Communities",-627.80
434094,04/10/2022,MILLENNIUM CARE LTD,Client Cont Care Pkg,"Dir of Adults, Health & Communities",-627.80
434094,04/10/2022,FERNCROSS CARE LTD,Client Cont Care Pkg,"Dir of Adults, Health & Communities",-627.80
434083,04/10/2022,HAZELWOOD GARDENS CARE LIMITED,Client Cont Care Pkg,"Dir of Adults, Health & Communities",-637.40
434094,04/10/2022,HEALTHCARE HOMES GROUP LIMITED,Client Cont Care Pkg,"Dir of Adults, Health & Communities",-642.84
434083,04/10/2022,HAYES COURT NURSING HOME,Client Cont Care Pkg,"Dir of Adults, Health & Communities",-679.64
434083,04/10/2022,ROMFORD NURSING  CARE CENTRE,Client Cont Care Pkg,"Dir of Adults, Health & Communities",-702.24
434074,04/10/2022,ST LUCY LODGE,Client Cont Care Pkg,"Dir of Adults, Health & Communities",-732.30
434094,04/10/2022,Redacted Personal Data,Client Cont Care Pkg,"Dir of Adults, Health & Communities",-743.80
434083,04/10/2022,JEWISH CARE,JtFundInc - Health,"Dir of Adults, Health & Communities",-750.40
434083,04/10/2022,HUGH MYDDLETON HOUSE,JtFundInc - Health,"Dir of Adults, Health & Communities",-750.40
434083,04/10/2022,SANCTUARY HOUSING ASSOCIATION,JtFundInc - Health,"Dir of Adults, Health & Communities",-750.40
434083,04/10/2022,TOPCARE LTD,JtFundInc - Health,"Dir of Adults, Health & Communities",-750.40
434083,04/10/2022,BLACKBERRY HILL LTD,JtFundInc - Health,"Dir of Adults, Health & Communities",-750.40
434083,04/10/2022,ACORN LODGE CARE HOME,JtFundInc - Health,"Dir of Adults, Health & Communities",-750.40
434083,04/10/2022,LIVABILITY,JtFundInc - Health,"Dir of Adults, Health & Communities",-750.40
434083,04/10/2022,BUPA CARE HOMES (BNH) LTD,JtFundInc - Health,"Dir of Adults, Health & Communities",-750.40
434083,04/10/2022,LITTLE SISTERS OF THE POOR,JtFundInc - Health,"Dir of Adults, Health & Communities",-750.40
434083,04/10/2022,MONREAD LODGE NURSING HOME LIMITED,JtFundInc - Health,"Dir of Adults, Health & Communities",-750.40
434083,04/10/2022,FOUR SEASONS (NO 10) LTD,JtFundInc - Health,"Dir of Adults, Health & Communities",-750.40
434083,04/10/2022,PHUL LTD,JtFundInc - Health,"Dir of Adults, Health & Communities",-750.40
434083,04/10/2022,KENBROOK NURSING HOME,JtFundInc - Health,"Dir of Adults, Health & Communities",-750.40
434083,04/10/2022,AVERY HOMES(NELSON)LTD T/A BIRCHWOO,JtFundInc - Health,"Dir of Adults, Health & Communities",-750.40
434083,04/10/2022,HAYES COURT NURSING HOME,JtFundInc - Health,"Dir of Adults, Health & Communities",-750.40
434083,04/10/2022,HAZELWOOD GARDENS CARE LIMITED,JtFundInc - Health,"Dir of Adults, Health & Communities",-750.40
434083,04/10/2022,TREES PARK (EAST HAM) LIMITED,JtFundInc - Health,"Dir of Adults, Health & Communities",-750.40
434083,04/10/2022,HEATHLANDS CARE HOME (CHINGFORD) LI,JtFundInc - Health,"Dir of Adults, Health & Communities",-750.40
434083,04/10/2022,METHODIST HOMES -CARE HOME INCOME,JtFundInc - Health,"Dir of Adults, Health & Communities",-750.40
434083,04/10/2022,ROMFORD NURSING  CARE CENTRE,JtFundInc - Health,"Dir of Adults, Health & Communities",-750.40
434083,04/10/2022,HC ONE OVAL LIMITED,JtFundInc - Health,"Dir of Adults, Health & Communities",-750.40
434083,04/10/2022,KARUNA MANOR CARE HOME,JtFundInc - Health,"Dir of Adults, Health & Communities",-750.40
434083,04/10/2022,ABI DEVELOPMENTS 3 LTD TA 1 SEWARDS,JtFundInc - Health,"Dir of Adults, Health & Communities",-750.40
434083,04/10/2022,SUNRISE SENIOR TA GRACEWELL HEALTHC,JtFundInc - Health,"Dir of Adults, Health & Communities",-750.40
434083,04/10/2022,Vibrance,JtFundInc - Health,"Dir of Adults, Health & Communities",-750.40
434083,04/10/2022,BARCHESTER HEALTHCARE HOMES TA WILS,JtFundInc - Health,"Dir of Adults, Health & Communities",-750.40
434094,04/10/2022,WILTON HOUSE LIMITED,Client Cont Care Pkg,"Dir of Adults, Health & Communities",-752.80
434094,04/10/2022,GREENFIELDS RES CARE HOMES LTD,Client Cont Care Pkg,"Dir of Adults, Health & Communities",-806.60
434094,04/10/2022,MACINTYRE CARE,Client Cont Care Pkg,"Dir of Adults, Health & Communities",-877.60
434094,04/10/2022,HF TRUST LTD,Client Cont Care Pkg,"Dir of Adults, Health & Communities",-877.60
434094,04/10/2022,GREEN LANES PROJECTS LTD,Client Cont Care Pkg,"Dir of Adults, Health & Communities",-877.60
434074,04/10/2022,WATERFALL HOUSE LTD,Client Cont Care Pkg,"Dir of Adults, Health & Communities",-949.60
434074,04/10/2022,QUANTUM CARE LIMITED,Client Cont Care Pkg,"Dir of Adults, Health & Communities",-955.00
434083,04/10/2022,BLACKBERRY HILL LTD,Client Cont Care Pkg,"Dir of Adults, Health & Communities",-972.12
434094,04/10/2022,MCCH SOCIETY LTD,Client Cont Care Pkg,"Dir of Adults, Health & Communities",-1048.20
434074,04/10/2022,ST MUNGOS COMMUNITY HOUSING ASSOCIA,Client Cont Care Pkg,"Dir of Adults, Health & Communities",-1050.80
434083,04/10/2022,KENBROOK NURSING HOME,Client Cont Care Pkg,"Dir of Adults, Health & Communities",-1055.28
434094,04/10/2022,JANITH HOMES LTD,Client Cont Care Pkg,"Dir of Adults, Health & Communities",-1068.92
434083,04/10/2022,MULLINVAM LIMITED,JtFundInc - Health,"Dir of Adults, Health & Communities",-1179.20
434094,04/10/2022,ASHLAKE LODGE LIMITED,Client Cont Care Pkg,"Dir of Adults, Health & Communities",-1190.80
434083,04/10/2022,BARCHESTER HEALTHCARE  LTD,Client Cont Care Pkg,"Dir of Adults, Health & Communities",-1196.60
434083,04/10/2022,AGUDAS ISRAEL HOUSING ASSOCIAT LTD,Client Cont Care Pkg,"Dir of Adults, Health & Communities",-1223.20
434083,04/10/2022,CARE UK COMMUNITY PARTNERSHIPS LTD,Client Cont Care Pkg,"Dir of Adults, Health & Communities",-1239.32
434083,04/10/2022,BUPA CARE HOMES (GL) LTD,Client Cont Care Pkg,"Dir of Adults, Health & Communities",-1263.92
434094,04/10/2022,HIGHCROFT CARE HOME,Client Cont Care Pkg,"Dir of Adults, Health & Communities",-1276.60
434094,04/10/2022,HAZELWOOD LODGE LTD,Client Cont Care Pkg,"Dir of Adults, Health & Communities",-1433.36
434094,04/10/2022,THE FER VIEW RESIDENTIAL CARE HOME,Client Cont Care Pkg,"Dir of Adults, Health & Communities",-1476.76
434083,04/10/2022,AGUDAS ISRAEL HOUSING ASSOCIAT LTD,JtFundInc - Health,"Dir of Adults, Health & Communities",-1500.80
434083,04/10/2022,ASPRAY HOUSE LTD,JtFundInc - Health,"Dir of Adults, Health & Communities",-1500.80
434083,04/10/2022,ASH COURT COMMUNITY LIMITED,JtFundInc - Health,"Dir of Adults, Health & Communities",-1500.80
434083,04/10/2022,THE CONIFERS HEALTHCARE LTD,JtFundInc - Health,"Dir of Adults, Health & Communities",-1500.80
434083,04/10/2022,BUPA CARE HOMES (AKW) LIMITED,JtFundInc - Health,"Dir of Adults, Health & Communities",-1500.80
434083,04/10/2022,BUPA CARE HOMES (GL) LTD,JtFundInc - Health,"Dir of Adults, Health & Communities",-1500.80
434083,04/10/2022,SOUTHGATE BEAUMOUNT CARE COMMUNITY,JtFundInc - Health,"Dir of Adults, Health & Communities",-1500.80
434083,04/10/2022,LANCAM CARE SERVICES LTD - ALBANY P,JtFundInc - Health,"Dir of Adults, Health & Communities",-1500.80
434083,04/10/2022,PATERNOSTER HOUSE CARE CENTRE,Client Cont Care Pkg,"Dir of Adults, Health & Communities",-1528.36
434083,04/10/2022,BUPA CARE HOMES (AKW) LIMITED,Client Cont Care Pkg,"Dir of Adults, Health & Communities",-1697.76
434074,04/10/2022,UNIFIED CARE LTD T/A VICTORIA'S CAR,Client Cont Care Pkg,"Dir of Adults, Health & Communities",-1755.20
434094,04/10/2022,SCIMITAR CARE HOTELS PLC,Client Cont Care Pkg,"Dir of Adults, Health & Communities",-1832.32
434017,04/10/2022,MOXIE GIBSON CONSULTANCY AND TRAINI,Priv - Contractor,Dir of Children's Services,-2050.00
434083,04/10/2022,GABLE COURT NH LTD,JtFundInc - Health,"Dir of Adults, Health & Communities",-2572.80
434074,04/10/2022,VOYAGE LTD,Client Cont Care Pkg,"Dir of Adults, Health & Communities",-2664.14
434083,04/10/2022,ABBEY RAVENSCROFT PARK LTD,Client Cont Care Pkg,"Dir of Adults, Health & Communities",-2851.19
434083,04/10/2022,BUPA CARE HOMES (ANS) LTD,Client Cont Care Pkg,"Dir of Adults, Health & Communities",-2944.17
434083,04/10/2022,PATERNOSTER HOUSE CARE CENTRE,JtFundInc - Health,"Dir of Adults, Health & Communities",-3001.60
434083,04/10/2022,WOODHAM ENTERPRISES LIMITED,JtFundInc - Health,"Dir of Adults, Health & Communities",-3001.60
434083,04/10/2022,LUKKA CARE HOMES (2010) LTD,Client Cont Care Pkg,"Dir of Adults, Health & Communities",-3200.96
434083,04/10/2022,ABBEY RAVENSCROFT PARK LTD,JtFundInc - Health,"Dir of Adults, Health & Communities",-3216.00
434074,04/10/2022,METHODIST HOMES FOR THE AGED,Client Cont Care Pkg,"Dir of Adults, Health & Communities",-3412.98
434083,04/10/2022,CARE UK COMMUNITY PARTNERSHIPS LTD,JtFundInc - Health,"Dir of Adults, Health & Communities",-3752.00
434083,04/10/2022,DMP HEALTHCARE HEATHERBROOK LTD,JtFundInc - Health,"Dir of Adults, Health & Communities",-4288.00
434083,04/10/2022,TWINGLOBE CARE LTD,JtFundInc - Health,"Dir of Adults, Health & Communities",-4502.40
434083,04/10/2022,LUKKA CARE HOMES (2010) LTD,JtFundInc - Health,"Dir of Adults, Health & Communities",-4502.40
434094,04/10/2022,HAIL LTD,Client Cont Care Pkg,"Dir of Adults, Health & Communities",-5695.52
434083,04/10/2022,BARCHESTER HEALTHCARE  LTD,JtFundInc - Health,"Dir of Adults, Health & Communities",-5896.00
434083,04/10/2022,BUPA CARE HOMES (ANS) LTD,JtFundInc - Health,"Dir of Adults, Health & Communities",-6753.60
434094,04/10/2022,GCH PEREGRINE HOUSE LTD,Client Cont Care Pkg,"Dir of Adults, Health & Communities",-8965.08
434092,04/10/2022,MAGICARE LTD,JtFundInc - Health,"Dir of Adults, Health & Communities",-9246.00
434083,04/10/2022,MAGICARE LTD,JtFundInc - Health,"Dir of Adults, Health & Communities",-12756.80
105996652,04/10/2022,Npower,Energy - electricity,Carbon Management,-13750.07
INV384,05/10/2022,ACCESS UK LTD T/A ADAM,Letting  / Estate Agents,"Dir of Adults, Health & Communities",1524071.86
2209/121,05/10/2022,Mulalley and Company LTD,Buildings,Dir of Finance,110794.80
434095,05/10/2022,DRS CARE HOMES LTD,Priv - Res Long,"Dir of Adults, Health & Communities",98648.82
SL009356,05/10/2022,COSMUR CONSTRUCTION (LONDON) LTD,Buildings,Dir of Finance,88919.88
434095,05/10/2022,CONNIFERS CARE LIMITED,Priv - Res Long,"Dir of Adults, Health & Communities",55719.00
434095,05/10/2022,CHOICE SUPPORT,Priv - Res Long,"Dir of Adults, Health & Communities",53224.52
434095,05/10/2022,LUKKA CARE HOMES (2010) LTD,Priv - Res Long,"Dir of Adults, Health & Communities",51583.54
NIA22/950,05/10/2022,THE NIA PROJECT,"Advice, Advocacy & Counselling Services","Dir of Adults, Health & Communities",36750.00
434095,05/10/2022,AVON LODGE UK LTD,Priv - Res Long,"Dir of Adults, Health & Communities",36640.00
INV011266,05/10/2022,WEST HEATH 2000,Vol - Recoup SpRes,Dedicated Schools Grant Management,36133.33
434095,05/10/2022,Ambient Support Limited,Priv - Res Long,"Dir of Adults, Health & Communities",35124.20
90/237,05/10/2022,SPARROW PROJECT MANAGEMENT LTD,Buildings,Dir of Placemaking & Housing,31449.60
434095,05/10/2022,BROWNLOW ENTERPRISES LTD,Priv - Res Long,"Dir of Adults, Health & Communities",24709.29
38321,05/10/2022,UNITED GUARDING SERVICES LTD,Security,Housing Revenue Account,23193.46
38779,05/10/2022,Her Majesty's Prison and Probation,L.A. - Secure Unit,Dir of Children's Services,22723.00
38433,05/10/2022,UNITED GUARDING SERVICES LTD,Security,Housing Revenue Account,22470.66
11104,05/10/2022,THE SOUTHOVER PARTNERSHIP,Vol Sec -  Day Place,Dedicated Schools Grant Management,19295.33
11105,05/10/2022,THE SOUTHOVER PARTNERSHIP,Vol Sec -  Day Place,Dedicated Schools Grant Management,18966.67
434095,05/10/2022,ASHNESS CARE LTD,Priv - Res Long,"Dir of Adults, Health & Communities",17999.68
434095,05/10/2022,CMG LTD,Priv - Res Long,"Dir of Adults, Health & Communities",16913.80
434095,05/10/2022,EARLYBIRDCARE LTD T/A ALEXANDRAPARK,Priv - Res Long,"Dir of Adults, Health & Communities",14976.00
434095,05/10/2022,WATERFALL HSE LTD t/a AMBERLEY HOUS,Priv - Res Long,"Dir of Adults, Health & Communities",14660.00
0000022712,05/10/2022,PROJECT CENTRE LTD,Business,Dir of Finance,14112.00
434095,05/10/2022,BAYIS SHELI LTD,Priv - Res Long,"Dir of Adults, Health & Communities",14000.00
434095,05/10/2022,GH PHILLIPS AKA BALLATER LODGE,Priv - Res Long,"Dir of Adults, Health & Communities",13440.00
434095,05/10/2022,DALO TRAVEL LTD,Priv - Res Short,"Dir of Adults, Health & Communities",11392.28
434095,05/10/2022,CRAEGMOOR HEALTHCARE,Priv - Res Long,"Dir of Adults, Health & Communities",11210.24
434095,05/10/2022,Redacted Personal Data,Priv - Res Long,"Dir of Adults, Health & Communities",10800.00
434095,05/10/2022,OPTIONS AUTISM(6) LIMITED,Priv - Board School,"Dir of Adults, Health & Communities",10612.08
434095,05/10/2022,CAMDEN LODGE,Priv - Res Long,"Dir of Adults, Health & Communities",9800.00
434095,05/10/2022,TORRINGTON HOMES,Priv - Res Long,"Dir of Adults, Health & Communities",9800.00
434095,05/10/2022,ACORN VILLAGES LIMITED,Vol Sect - Res Long,"Dir of Adults, Health & Communities",9318.92
434095,05/10/2022,CLO-CLO LTD,Priv - Res Long,"Dir of Adults, Health & Communities",9300.00
434095,05/10/2022,PARK RESIDENTIAL HOME,Priv - Res Long,"Dir of Adults, Health & Communities",9160.00
434095,05/10/2022,CARETECH COMMUNITY SERVICES LTD,Priv - Res Long,"Dir of Adults, Health & Communities",8920.60
434095,05/10/2022,ABBEYDALE RESIDENTIAL CARE HOME,Priv - Res Long,"Dir of Adults, Health & Communities",8460.00
552,05/10/2022,KISHARON ACADEMY TRUST,Vol Sec -  Day Place,Dedicated Schools Grant Management,8342.27
434095,05/10/2022,AGUDAS ISRAEL HOUSING ASSOCIAT LTD,Priv - Res Long,"Dir of Adults, Health & Communities",8163.32
329521,05/10/2022,BETA DISTRIB (SOUTH) LTD T/A,Mailing,"Dir of  Culture, Strategy & Engagement",8131.50
434095,05/10/2022,MEADOWVIEW CARE LTD,Priv - Res Long,"Dir of Adults, Health & Communities",7556.00
INV-414,05/10/2022,Tempo Time Credits Ltd,Specialist Needs,"Dir of Adults, Health & Communities",7500.00
HC-202201,05/10/2022,JMAC SOLUTIONS (SERVICES) LTD,Sport & Fitness,Dir of Environment & Neighbourhoods,7450.00
434095,05/10/2022,CHITIMALI LOCUM MEDICAL LIMITED,Priv - Res Long,"Dir of Adults, Health & Communities",6859.60
434095,05/10/2022,COMPLETE CARE SERVICES LTD,Priv - Res Long,"Dir of Adults, Health & Communities",6800.00
434095,05/10/2022,GRESHAM CARE LIMITED,Priv - Res Long,"Dir of Adults, Health & Communities",6736.72
434095,05/10/2022,DESBOROUGH CARE,Priv - Res Long,"Dir of Adults, Health & Communities",6380.00
434095,05/10/2022,BRAMLEY HEALTH LTD,Priv - Res Long,"Dir of Adults, Health & Communities",6000.00
553,05/10/2022,KISHARON ACADEMY TRUST,Vol Sec -  Day Place,Dedicated Schools Grant Management,5766.77
434095,05/10/2022,THE DAVID LEWIS CENTRE,Vol Sect - Res Long,"Dir of Adults, Health & Communities",5748.40
434095,05/10/2022,EASTBROOK HOUSE RESIDENTIAL HOME,Priv - Res Long,"Dir of Adults, Health & Communities",5700.00
22-20,05/10/2022,Darenace ltd,Property,Assistant Dir Corporate Governance,5687.50
00099913,05/10/2022,Whittington Health NHS Trust,Vol Sec - Add Supp,Dedicated Schools Grant Management,5415.45
434095,05/10/2022,ASHLEY HOUSE,Priv - Res Long,"Dir of Adults, Health & Communities",5000.00
00099914,05/10/2022,Whittington Health NHS Trust,Vol Sec - Add Supp,Dedicated Schools Grant Management,4956.42
434095,05/10/2022,THE DISABILITIES TRUST,Priv - Res Long,"Dir of Adults, Health & Communities",4927.16
434095,05/10/2022,BEECH LODGE,Priv - Res Long,"Dir of Adults, Health & Communities",4880.00
434095,05/10/2022,BAXENDALE WOODSIDE HOME,Priv - Res Long,"Dir of Adults, Health & Communities",4864.00
434095,05/10/2022,UK INTERNATIONAL NURSING AGENCY LTD,Priv - Res Long,"Dir of Adults, Health & Communities",4800.00
434095,05/10/2022,COMMUNITY HOUSING & THERAPY,Priv - Res Long,"Dir of Adults, Health & Communities",4500.00
434095,05/10/2022,GREEN LANES PROJECTS LTD,Priv - Res Long,"Dir of Adults, Health & Communities",4400.00
434095,05/10/2022,TWINGLOBE CARE LTD,Priv - Res Long,"Dir of Adults, Health & Communities",4400.00
CL29441,05/10/2022,SURESERVE FIRE & ELECTRICAL LIMITED,Priv - Sub Contract,Housing Revenue Account,4383.44
T4188,05/10/2022,BAKER MALLETT LLP,Business,Dir of Placemaking & Housing,4377.50
ASACB22,05/10/2022,AMIN ENTERPRISE LTD T/A  DR ATEF AM,"Advice, Advocacy & Counselling Services","Dir of Adults, Health & Communities",4289.60
434095,05/10/2022,ALLIANCE CARE AND SUPPORT LTD,Priv - Res Long,"Dir of Adults, Health & Communities",4247.80
142359,05/10/2022,WPG LIMITED,Printing - Internal,"Dir of  Culture, Strategy & Engagement",3998.00
HR-003,05/10/2022,CHAIM SHEL TORAH SUCCESS STORIES,Vol Sec - Add Supp,Dedicated Schools Grant Management,3768.33
4247,05/10/2022,ALLFORCARE,Prv Sctr Care Pkage,"Dir of Adults, Health & Communities",3711.48
4288,05/10/2022,ALLFORCARE,Prv Sctr Care Pkage,"Dir of Adults, Health & Communities",3711.48
434095,05/10/2022,APRIL RAI LTD,Priv - Res Long,"Dir of Adults, Health & Communities",3600.00
434095,05/10/2022,CLOYDA CARE HOME,Priv - Res Long,"Dir of Adults, Health & Communities",3561.60
078,05/10/2022,GABRIEL FC SERVICES LTD,"Advice, Advocacy & Counselling Services","Dir of Adults, Health & Communities",3500.00
COV0226278,05/10/2022,CYGNET HEALTH CARE LTD,Vol Sec - Add Supp,Dedicated Schools Grant Management,3465.00
434095,05/10/2022,CARE UK COMMUNITY PARTNERSHIPS LTD,Priv - Res Long,"Dir of Adults, Health & Communities",3400.00
434095,05/10/2022,ESSEX CARE CONSORTIUM LTD,Priv - Res Long,"Dir of Adults, Health & Communities",3400.00
16539710A,05/10/2022,TAVISTOCK & PORTMAN NHS FT,Vol Sec -  Day Place,Dedicated Schools Grant Management,3347.00
077,05/10/2022,GABRIEL FC SERVICES LTD,"Advice, Advocacy & Counselling Services","Dir of Adults, Health & Communities",3250.00
434095,05/10/2022,DENVILLE HALL 2012,Priv - Res Long,"Dir of Adults, Health & Communities",3141.40
COV0217767,05/10/2022,CYGNET HEALTH CARE LTD,Vol Sec - Add Supp,Dedicated Schools Grant Management,3135.00
434095,05/10/2022,ANCHOR HANOVER GROUP TA BLUE GROVE,Priv - Res Long,"Dir of Adults, Health & Communities",3120.00
434102,05/10/2022,ALL PAY LTD (LBH FUNDING ACCOUNT),Subsist - SS Clients,Dir of Children's Services,3106.41
434094,05/10/2022,CARE UK COMMUNITY PARTNERSHIPS LTD,Priv - Res Short,"Dir of Adults, Health & Communities",3100.00
434095,05/10/2022,BROWNLOW ENTERPRISES LTD TA HEATHGR,Priv - Res Long,"Dir of Adults, Health & Communities",3080.00
434095,05/10/2022,OURRIS PROPERTIES LIMITED,Priv - Res Long,"Dir of Adults, Health & Communities",3034.72
434095,05/10/2022,OURRIS RESIDENTIAL HOMES LTD,Priv - Res Long,"Dir of Adults, Health & Communities",3034.72
434095,05/10/2022,BROWNLOW ENTERPRISES LTD,Priv - Res Long,"Dir of Adults, Health & Communities",3000.00
434095,05/10/2022,ELIZABETH PALMS LTD,Priv - Res Long,"Dir of Adults, Health & Communities",3000.00
434095,05/10/2022,BLACK SWAN INTERNATIONAL LIMITED,Priv - Res Long,"Dir of Adults, Health & Communities",3000.00
6615,05/10/2022,Ezer Leyoldos Ltd,Early Intervention Health Services,"Dir of Adults, Health & Communities",3000.00
434095,05/10/2022,GREENFIELDS RES CARE HOMES LTD,Priv - Res Long,"Dir of Adults, Health & Communities",2920.00
16538502A,05/10/2022,TAVISTOCK & PORTMAN NHS FT,Vol Sec -  Day Place,Dedicated Schools Grant Management,2810.67
16539155A,05/10/2022,TAVISTOCK & PORTMAN NHS FT,Vol Sec -  Day Place,Dedicated Schools Grant Management,2810.67
434095,05/10/2022,ASHBROOK COURT CARE HOME,Priv - Res Long,"Dir of Adults, Health & Communities",2800.00
434095,05/10/2022,CLOVELLY HOUSE RESIDENTIAL HOME LTD,Priv - Res Long,"Dir of Adults, Health & Communities",2780.00
433994,05/10/2022,WORK SKILLS LEARNING LIMITED,Vol Sec - Add Supp,Dedicated Schools Grant Management,2770.84
434095,05/10/2022,COOPERSCROFT CARE HOME,Priv - Res Long,"Dir of Adults, Health & Communities",2760.00
434095,05/10/2022,SANCTUARY CARE LTD,Priv - Res Long,"Dir of Adults, Health & Communities",2600.00
111319,05/10/2022,ACORN VILLAGES LIMITED,Vol Sect - Care Pk,"Dir of Adults, Health & Communities",2560.00
434095,05/10/2022,SCIMITAR CARE HOTELS PLC,Priv - Res Long,"Dir of Adults, Health & Communities",2500.00
COV0221830,05/10/2022,CYGNET HEALTH CARE LTD,Vol Sec - Add Supp,Dedicated Schools Grant Management,2475.00
434095,05/10/2022,QUANTUM CARE LIMITED,Priv - Res Long,"Dir of Adults, Health & Communities",2460.80
434095,05/10/2022,PEACEFORM (UK) LTD,Priv - Res Long,"Dir of Adults, Health & Communities",2400.00
TRA037-18098,05/10/2022,TRAIN2CARE ACADEMY,Prv Sctr Care Pkage,"Dir of Adults, Health & Communities",2323.52
TRA038-18098,05/10/2022,TRAIN2CARE ACADEMY,Prv Sctr Care Pkage,"Dir of Adults, Health & Communities",2323.52
TRA037-1674988,05/10/2022,TRAIN2CARE ACADEMY,Prv Sctr Care Pkage,"Dir of Adults, Health & Communities",2323.49
TRA038-1674988,05/10/2022,TRAIN2CARE ACADEMY,Prv Sctr Care Pkage,"Dir of Adults, Health & Communities",2323.49
TRA037-26305,05/10/2022,TRAIN2CARE ACADEMY,Prv Sctr Care Pkage,"Dir of Adults, Health & Communities",2194.40
TRA038-26305,05/10/2022,TRAIN2CARE ACADEMY,Prv Sctr Care Pkage,"Dir of Adults, Health & Communities",2194.40
COV0191352,05/10/2022,CYGNET HEALTH CARE LTD,Vol Sec - Add Supp,Dedicated Schools Grant Management,2145.00
HARRY01,05/10/2022,ANCHOR TEACHING LIMITED,Vol Sec - Add Supp,Dedicated Schools Grant Management,2100.00
5107249030,05/10/2022,Redacted Personal Data,Prem - Leasing,"Dir of Adults, Health & Communities",1950.00
434095,05/10/2022,METROPOLITAN HOUSING TRUST LTD,Priv - Res Long,"Dir of Adults, Health & Communities",1936.32
NR.104497,05/10/2022,PLAYLE & PARTNERS LLP,Buildings,Dir of Placemaking & Housing,1700.00
5107249031,05/10/2022,Redacted Personal Data,Prem - Leasing,"Dir of Adults, Health & Communities",1681.33
5107249047,05/10/2022,Redacted Personal Data,Prem - Leasing,"Dir of Adults, Health & Communities",1681.33
5107249048,05/10/2022,Redacted Personal Data,Prem - Leasing,"Dir of Adults, Health & Communities",1681.33
434095,05/10/2022,GABLE COURT NH LTD,Priv - Res Short,"Dir of Adults, Health & Communities",1634.29
SI00020066,05/10/2022,HSL PATHOLOGY LLP,Public Health,"Dir of Adults, Health & Communities",1562.80
1968-07,05/10/2022,Campbell and Co Architects Ltd,Fees - Consultant,Dir of Finance,1558.91
10199906,05/10/2022,BEVAN BRITTAN LLP,Specialist Support,Assistant Dir Corporate Governance,1488.00
CD006,05/10/2022,DRS CARE HOMES LTD,Prv Sctr Care Pkage,"Dir of Adults, Health & Communities",1475.00
JH071AA,05/10/2022,DRS CARE HOMES LTD,Prv Sctr Care Pkage,"Dir of Adults, Health & Communities",1475.00
JPM072A,05/10/2022,DRS CARE HOMES LTD,Prv Sctr Care Pkage,"Dir of Adults, Health & Communities",1475.00
JW074A,05/10/2022,DRS CARE HOMES LTD,Prv Sctr Care Pkage,"Dir of Adults, Health & Communities",1475.00
SM005,05/10/2022,DRS CARE HOMES LTD,Prv Sctr Care Pkage,"Dir of Adults, Health & Communities",1475.00
5107249028,05/10/2022,OLIVEGROVE INVESTMENTS LTD,Prem - Leasing,"Dir of Adults, Health & Communities",1473.33
5107249039,05/10/2022,FALCON PROPERTIES LTD,Prem - Leasing,"Dir of Adults, Health & Communities",1473.33
TRA037-54349,05/10/2022,TRAIN2CARE ACADEMY,Prv Sctr Care Pkage,"Dir of Adults, Health & Communities",1456.76
5107249040,05/10/2022,Redacted Personal Data,Prem - Leasing,"Dir of Adults, Health & Communities",1404.00
75976,05/10/2022,CLOC LTD,Mailing,"Dir of  Culture, Strategy & Engagement",1392.00
5107249035,05/10/2022,CLASS ESTATES LIMITED,Prem - Leasing,"Dir of Adults, Health & Communities",1365.00
5107249029,05/10/2022,Redacted Personal Data,Prem - Leasing,"Dir of Adults, Health & Communities",1365.00
5107249036,05/10/2022,Redacted Personal Data,Prem - Leasing,"Dir of Adults, Health & Communities",1365.00
5107249037,05/10/2022,Redacted Personal Data,Prem - Leasing,"Dir of Adults, Health & Communities",1365.00
5107249046,05/10/2022,Redacted Personal Data,Prem - Leasing,"Dir of Adults, Health & Communities",1365.00
5107249044,05/10/2022,Redacted Personal Data,Prem - Leasing,"Dir of Adults, Health & Communities",1308.66
1744,05/10/2022,NORTH LONDON COMMUNITY CARE AGENCY,Priv Sec-- LBH & CCG,"Dir of Adults, Health & Communities",1288.00
434050,05/10/2022,ALLPAY LTD  NRPF,Subsist - SS Clients,Dir of Children's Services,1280.91
00099922,05/10/2022,Whittington Health NHS Trust,Vol Sec - Add Supp,Dedicated Schools Grant Management,1255.33
VER070-1037861,05/10/2022,VERITY HEALTHCARE LTD,Prv Sctr Care Pkage,"Dir of Adults, Health & Communities",1246.00
VER070-1037861-A,05/10/2022,VERITY HEALTHCARE LTD,Prv Sctr Care Pkage,"Dir of Adults, Health & Communities",1246.00
VER071-1037861,05/10/2022,VERITY HEALTHCARE LTD,Prv Sctr Care Pkage,"Dir of Adults, Health & Communities",1246.00
VER073-1037861,05/10/2022,VERITY HEALTHCARE LTD,Prv Sctr Care Pkage,"Dir of Adults, Health & Communities",1246.00
12617,05/10/2022,RESIDENTIAL CARE SERVICES LTD,Priv - Contractor,"Dir of Adults, Health & Communities",1205.60
12618,05/10/2022,RESIDENTIAL CARE SERVICES LTD,Priv - Contractor,"Dir of Adults, Health & Communities",1205.60
STE071-1550782,05/10/2022,STERLING STANDARD CARE GROUP,Priv Sec-- LBH & CCG,"Dir of Adults, Health & Communities",1201.12
5107249045,05/10/2022,Redacted Personal Data,Prem - Leasing,"Dir of Adults, Health & Communities",1200.33
SCE013-38761,05/10/2022,SAMA CARE LTD,Prv Sctr Care Pkage,"Dir of Adults, Health & Communities",1117.64
5107249041,05/10/2022,LITTLE ACORN LTD,Prem - Leasing,"Dir of Adults, Health & Communities",1105.00
5107249042,05/10/2022,Redacted Personal Data,Prem - Leasing,"Dir of Adults, Health & Communities",1105.00
STE071-1078668,05/10/2022,STERLING STANDARD CARE GROUP,Prv Sctr Care Pkage,"Dir of Adults, Health & Communities",1008.00
5107249033,05/10/2022,Redacted Personal Data,Prem - Leasing,"Dir of Adults, Health & Communities",1001.00
5107249038,05/10/2022,Redacted Personal Data,Prem - Leasing,"Dir of Adults, Health & Communities",999.96
226008,05/10/2022,BRIGHTER HORIZONS,Prv Sctr Care Pkage,"Dir of Adults, Health & Communities",997.50
1033506,05/10/2022,ENFIELD SKIPS LTD,Arms Length Management Organisations,Housing Revenue Account,975.00
5107249032,05/10/2022,Redacted Personal Data,Prem - Leasing,"Dir of Adults, Health & Communities",975.00
STE071-1590001,05/10/2022,STERLING STANDARD CARE GROUP,Prv Sctr Care Pkage,"Dir of Adults, Health & Communities",947.10
STE071-1079561,05/10/2022,STERLING STANDARD CARE GROUP,Prv Sctr Care Pkage,"Dir of Adults, Health & Communities",924.00
SCW125-1545043,05/10/2022,SAMA CARE LTD,Prv Sctr Care Pkage,"Dir of Adults, Health & Communities",898.28
5107249027,05/10/2022,Redacted Personal Data,Prem - Leasing,"Dir of Adults, Health & Communities",888.33
SW0066A,05/10/2022,DRS CARE HOMES LTD,Prv Sctr Care Pkage,"Dir of Adults, Health & Communities",883.20
HGY0922,05/10/2022,NOW MEDICAL,Business,"Dir of Adults, Health & Communities",867.42
1586,05/10/2022,DTRIUMPH CARE LTD,Priv - Contractor,Dir of Children's Services,855.00
I1204,05/10/2022,NCVO,Room Hire,Dir of Finance,832.60
753328,05/10/2022,J.A. STEEL AND SON LTD,Removals,Housing Revenue Account,822.50
8208330421,05/10/2022,CROWN PAINTS LIMITED,Stock - Raw Material,Housing Revenue Account,817.00
LKB025-146258,05/10/2022,LINK COMMUNITY CARE LTD,Priv Sec-- LBH & CCG,"Dir of Adults, Health & Communities",812.97
STE071-1755340,05/10/2022,STERLING STANDARD CARE GROUP,Prv Sctr Care Pkage,"Dir of Adults, Health & Communities",808.52
STE071-1690063,05/10/2022,STERLING STANDARD CARE GROUP,Priv Sec-- LBH & CCG,"Dir of Adults, Health & Communities",804.39
AE 22,05/10/2022,THE HOLMWOOD PRACTICE DR REBECCA CH,Fees Legal External,Dedicated Schools Grant Management,800.00
TRA037-1484916,05/10/2022,TRAIN2CARE ACADEMY,Prv Sctr Care Pkage,"Dir of Adults, Health & Communities",774.48
TRA038-1484916,05/10/2022,TRAIN2CARE ACADEMY,Prv Sctr Care Pkage,"Dir of Adults, Health & Communities",774.48
478,05/10/2022,DCAS DIRECT PERSONNEL LTD,Priv Sec-- LBH & CCG,"Dir of Adults, Health & Communities",762.94
R238,05/10/2022,RIMA DESIGN LTD,Mailing,"Dir of  Culture, Strategy & Engagement",749.00
SCE013-1507007,05/10/2022,SAMA CARE LTD,Prv Sctr Care Pkage,"Dir of Adults, Health & Communities",714.05
STE071-1754499,05/10/2022,STERLING STANDARD CARE GROUP,Prv Sctr Care Pkage,"Dir of Adults, Health & Communities",709.52
1879,05/10/2022,Simply CDM Ltd,Business,Dir of Finance,700.00
AE 023,05/10/2022,THE HOLMWOOD PRACTICE DR REBECCA CH,Fees Legal External,Dedicated Schools Grant Management,700.00
TRA038-1685969,05/10/2022,TRAIN2CARE ACADEMY,Prv Sctr Care Pkage,"Dir of Adults, Health & Communities",677.67
TRA037-1303536,05/10/2022,TRAIN2CARE ACADEMY,Prv Sctr Care Pkage,"Dir of Adults, Health & Communities",645.40
TRA037-164930,05/10/2022,TRAIN2CARE ACADEMY,Prv Sctr Care Pkage,"Dir of Adults, Health & Communities",645.40
TRA037-1682590,05/10/2022,TRAIN2CARE ACADEMY,Prv Sctr Care Pkage,"Dir of Adults, Health & Communities",645.40
TRA037-1695297,05/10/2022,TRAIN2CARE ACADEMY,Prv Sctr Care Pkage,"Dir of Adults, Health & Communities",645.40
TRA037-69804,05/10/2022,TRAIN2CARE ACADEMY,Prv Sctr Care Pkage,"Dir of Adults, Health & Communities",645.40
TRA038-1303536,05/10/2022,TRAIN2CARE ACADEMY,Prv Sctr Care Pkage,"Dir of Adults, Health & Communities",645.40
TRA038-164930,05/10/2022,TRAIN2CARE ACADEMY,Prv Sctr Care Pkage,"Dir of Adults, Health & Communities",645.40
TRA038-1682590,05/10/2022,TRAIN2CARE ACADEMY,Prv Sctr Care Pkage,"Dir of Adults, Health & Communities",645.40
TRA038-1695297,05/10/2022,TRAIN2CARE ACADEMY,Prv Sctr Care Pkage,"Dir of Adults, Health & Communities",645.40
TRA038-69804,05/10/2022,TRAIN2CARE ACADEMY,Prv Sctr Care Pkage,"Dir of Adults, Health & Communities",645.40
NR.104175,05/10/2022,PLAYLE & PARTNERS LLP,Buildings,Dir of Placemaking & Housing,645.00
NR.104487,05/10/2022,PLAYLE & PARTNERS LLP,Buildings,Dir of Placemaking & Housing,645.00
DCE019-1634314,05/10/2022,KAAMIL EDUCATION LTD,Prv Sctr Care Pkage,"Dir of Adults, Health & Communities",641.90
111011022,05/10/2022,Redacted Personal Data,Organised Activities,Dir of Children's Services,620.38
TRA037-1505274,05/10/2022,TRAIN2CARE ACADEMY,Prv Sctr Care Pkage,"Dir of Adults, Health & Communities",617.08
TRA038-1505274,05/10/2022,TRAIN2CARE ACADEMY,Prv Sctr Care Pkage,"Dir of Adults, Health & Communities",617.08
TRA036-129657,05/10/2022,TRAIN2CARE ACADEMY,Prv Sctr Care Pkage,"Dir of Adults, Health & Communities",608.56
TRA037-129657,05/10/2022,TRAIN2CARE ACADEMY,Prv Sctr Care Pkage,"Dir of Adults, Health & Communities",608.56
STE072-1690063,05/10/2022,STERLING STANDARD CARE GROUP,Prv Sctr Care Pkage,"Dir of Adults, Health & Communities",604.62
1875,05/10/2022,Simply CDM Ltd,Cleaning Service,Dir of Finance,600.00
433994,05/10/2022,RIVERSIDE SCHOOL,SS Child - Out of Sc,Dir of Children's Services,600.00
DO0071A,05/10/2022,DRS CARE HOMES LTD,Prv Sctr Care Pkage,"Dir of Adults, Health & Communities",590.00
STE071-175437,05/10/2022,STERLING STANDARD CARE GROUP,Priv Sec-- LBH & CCG,"Dir of Adults, Health & Communities",550.22
DCE019-1041412,05/10/2022,KAAMIL EDUCATION LTD,Priv Sec-- LBH & CCG,"Dir of Adults, Health & Communities",550.20
5365,05/10/2022,ALLFORCARE,Priv Sec-- LBH & CCG,"Dir of Adults, Health & Communities",549.68
434125,05/10/2022,ALLPAY LTD CHILDREN AND FAMILY,Subsist - SS Clients,Dir of Children's Services,545.91
224142835,05/10/2022,JLA TOTAL CARE LTD,Laundry Service,"Dir of Adults, Health & Communities",512.25
1745,05/10/2022,NORTH LONDON COMMUNITY CARE AGENCY,Prv Sctr Care Pkage,"Dir of Adults, Health & Communities",504.00
1876,05/10/2022,Simply CDM Ltd,Consultancy,Dir of Finance,500.00
FFD 1/2022,05/10/2022,GRANT PAYMENTS,Grant - Vol Org Run,Dir of Environment & Neighbourhoods,500.00
INV-0216,05/10/2022,MARK BAIGENT CONSULTING LTD,Management,"Dir of Adults, Health & Communities",500.00
RM7608,05/10/2022,RADIO MARATHON LTD,Prv Sctr Care Pkage,"Dir of Adults, Health & Communities",495.00
479,05/10/2022,DCAS DIRECT PERSONNEL LTD,Prv Sctr Care Pkage,"Dir of Adults, Health & Communities",476.21
STE071-78274,05/10/2022,STERLING STANDARD CARE GROUP,Prv Sctr Care Pkage,"Dir of Adults, Health & Communities",462.00
1823,05/10/2022,NORTH LONDON COMMUNITY CARE AGENCY,Priv Sec-- LBH & CCG,"Dir of Adults, Health & Communities",442.50
09/2022/LIB,05/10/2022,GREAT NEWS,Library Services,"Dir of  Culture, Strategy & Engagement",441.86
329437,05/10/2022,BETA DISTRIB (SOUTH) LTD T/A,Printing - Internal,"Dir of  Culture, Strategy & Engagement",441.00
2282022,05/10/2022,EAST LONDON CLEANERS,Prv Sctr Care Pkage,"Dir of Adults, Health & Communities",404.17
TRA036-1671369,05/10/2022,TRAIN2CARE ACADEMY,Prv Sctr Care Pkage,"Dir of Adults, Health & Communities",390.18
TRA037-1570597,05/10/2022,TRAIN2CARE ACADEMY,Prv Sctr Care Pkage,"Dir of Adults, Health & Communities",387.24
TRA037-1671369,05/10/2022,TRAIN2CARE ACADEMY,Prv Sctr Care Pkage,"Dir of Adults, Health & Communities",387.24
TRA038-1570597,05/10/2022,TRAIN2CARE ACADEMY,Prv Sctr Care Pkage,"Dir of Adults, Health & Communities",387.24
TRA038-1671369,05/10/2022,TRAIN2CARE ACADEMY,Prv Sctr Care Pkage,"Dir of Adults, Health & Communities",387.24
TRA037-1727655,05/10/2022,TRAIN2CARE ACADEMY,Prv Sctr Care Pkage,"Dir of Adults, Health & Communities",359.12
TRA038-1727655,05/10/2022,TRAIN2CARE ACADEMY,Prv Sctr Care Pkage,"Dir of Adults, Health & Communities",359.12
479,05/10/2022,DCAS DIRECT PERSONNEL LTD,Priv Sec-- LBH & CCG,"Dir of Adults, Health & Communities",357.16
HH/214/22,05/10/2022,AMES GLASS LTD,"Material - Purch,Rep",Housing Revenue Account,342.93
STE071-1753761,05/10/2022,STERLING STANDARD CARE GROUP,Prv Sctr Care Pkage,"Dir of Adults, Health & Communities",336.00
STE072-1690063,05/10/2022,STERLING STANDARD CARE GROUP,Priv Sec-- LBH & CCG,"Dir of Adults, Health & Communities",335.90
434102,05/10/2022,ALL PAY LTD (LBH FUNDING ACCOUNT),Grant-C19 Emgcy ELWA,Dir of Children's Services,300.00
HC100000,05/10/2022,Redacted Personal Data,Organised Activities,Dir of Children's Services,300.00
110546,05/10/2022,WISDOM DESIGN LIMITED,Fees - Print Design,"Dir of  Culture, Strategy & Engagement",288.00
SI-35052,05/10/2022,The Learning Machine Ltd,Adult & Further Education Services,Dir of Placemaking & Housing,288.00
1744,05/10/2022,NORTH LONDON COMMUNITY CARE AGENCY,Prv Sctr Care Pkage,"Dir of Adults, Health & Communities",280.00
41159,05/10/2022,Resources for Autism,Priv - Contractor,Dir of Children's Services,280.00
17574,05/10/2022,STORE BOX SELF STORAGE LIMITED,Fees - Storage,"Dir of Adults, Health & Communities",277.20
1187625,05/10/2022,PRESCOTT THOMAS LTD,"Groceries, Fruit & v",Dir of Children's Services,275.20
0325,05/10/2022,FERRIERS BARN LTD,Vol Sect - Care Pk,"Dir of Adults, Health & Communities",262.11
71595,05/10/2022,MYERS (IDEAL SUPPLIES) LTD,Domestic Furniture,"Dir of Adults, Health & Communities",261.00
DCE019-1752411,05/10/2022,KAAMIL EDUCATION LTD,Prv Sctr Care Pkage,"Dir of Adults, Health & Communities",256.76
17573,05/10/2022,STORE BOX SELF STORAGE LIMITED,Fees - Storage,"Dir of Adults, Health & Communities",254.10
210922,05/10/2022,Redacted Personal Data,Organised Activities,Dir of Children's Services,236.00
STE071-1754204,05/10/2022,STERLING STANDARD CARE GROUP,Prv Sctr Care Pkage,"Dir of Adults, Health & Communities",235.14
TRA037-1678553,05/10/2022,TRAIN2CARE ACADEMY,Prv Sctr Care Pkage,"Dir of Adults, Health & Communities",221.28
RE315972,05/10/2022,REMEDY RECRUITMENT GROUP LIMITED,Vol Sec - Add Supp,Dedicated Schools Grant Management,213.80
HARINGEY,05/10/2022,ONE TIME,Fees - Entertainment,"Dir of  Culture, Strategy & Engagement",212.26
SP20005252,05/10/2022,ST JOHN AMBULANCE,Travel Exp - Client,"Dir of Adults, Health & Communities",211.00
1587,05/10/2022,DTRIUMPH CARE LTD,SS Children- DayCare,Dir of Children's Services,194.00
TRA038-1678553,05/10/2022,TRAIN2CARE ACADEMY,Prv Sctr Care Pkage,"Dir of Adults, Health & Communities",184.40
SI-06877,05/10/2022,ST MICHAELS SCHOOL HIGHGATE,Room Hire,"Dir of  Culture, Strategy & Engagement",179.76
224137517,05/10/2022,JLA TOTAL CARE LTD,Cleaning Service,"Dir of Adults, Health & Communities",170.75
3994,05/10/2022,GetFix LTD,Heating & Air Conditioning,Dir of Children's Services,168.75
TRA037-1496103,05/10/2022,TRAIN2CARE ACADEMY,Prv Sctr Care Pkage,"Dir of Adults, Health & Communities",165.96
TRA038-1496103,05/10/2022,TRAIN2CARE ACADEMY,Prv Sctr Care Pkage,"Dir of Adults, Health & Communities",165.96
0000053089,05/10/2022,GERDA SECURITY PRODUCTS LIMITED,"Material - Purch,Rep",Housing Revenue Account,165.00
SCE013-1507007,05/10/2022,SAMA CARE LTD,Priv Sec-- LBH & CCG,"Dir of Adults, Health & Communities",155.23
34526,05/10/2022,ASSOCIATED LOCKS LTD,"Material - Purch,Rep",Housing Revenue Account,151.85
02107338,05/10/2022,WEIGHTMANS LLP,Fees Legal External,Dedicated Schools Grant Management,150.00
INV-0024,05/10/2022,GrowN22 C.I.C.,Residential Services,Dir of Children's Services,150.00
00425,05/10/2022,METROPOLITAN CARE SERVICES LIMITED,Prv Sctr Care Pkage,"Dir of Adults, Health & Communities",144.00
DCE019-1041412,05/10/2022,KAAMIL EDUCATION LTD,Prv Sctr Care Pkage,"Dir of Adults, Health & Communities",137.55
1187611,05/10/2022,PRESCOTT THOMAS LTD,Corporate Services  Catering,Dir of Children's Services,136.79
GO GREEN WEEK,05/10/2022,ADVANCE COMMERCIAL PAYMENTS,Priv - Contractor,Dir of Placemaking & Housing,124.50
I2491825,05/10/2022,ME DUFFELL LIMITED,"Material - Purch,Rep",Housing Revenue Account,123.20
434095,05/10/2022,BAYIS SHELI LTD,Priv Sec-- LBH & CCG,"Dir of Adults, Health & Communities",121.43
HH/219/22,05/10/2022,AMES GLASS LTD,"Material - Purch,Rep",Housing Revenue Account,120.92
STE071-1550782,05/10/2022,STERLING STANDARD CARE GROUP,Prv Sctr Care Pkage,"Dir of Adults, Health & Communities",120.13
0734/00155412,05/10/2022,JEWSON LTD,Stock - Raw Material,Housing Revenue Account,98.80
OP/I404019,05/10/2022,RAVENTREE LTD,"Material - Purch,Rep",Housing Revenue Account,95.24
SI00020067,05/10/2022,HSL PATHOLOGY LLP,Public Health,"Dir of Adults, Health & Communities",88.20
1187936,05/10/2022,PRESCOTT THOMAS LTD,Corporate Services  Catering,Dir of Children's Services,87.59
0909092022,05/10/2022,Redacted Personal Data,Organised Activities,Dir of Children's Services,84.00
3993,05/10/2022,GetFix LTD,Heating & Air Conditioning,Dir of Children's Services,80.83
75928,05/10/2022,CLOC LTD,Printing - Internal,"Dir of  Culture, Strategy & Engagement",79.68
75983,05/10/2022,CLOC LTD,Printing - Internal,"Dir of  Culture, Strategy & Engagement",76.00
13984,05/10/2022,CMS CORPORATE MAILING SOLUTIONS LTD,Mailing,"Dir of  Culture, Strategy & Engagement",75.00
35/481115,05/10/2022,FAYERS PLUMBING AND BUILDING SUPPLI,Equip - Purchase,Housing Revenue Account,73.40
755101,05/10/2022,J.A. STEEL AND SON LTD,Removals,Housing Revenue Account,72.00
110572,05/10/2022,WISDOM DESIGN LIMITED,Fees - Print Design,"Dir of  Culture, Strategy & Engagement",60.00
0325,05/10/2022,FERRIERS BARN LTD,Travel Exp - Client,"Dir of Adults, Health & Communities",58.28
1822,05/10/2022,NORTH LONDON COMMUNITY CARE AGENCY,Priv Sec-- LBH & CCG,"Dir of Adults, Health & Communities",53.10
1823,05/10/2022,NORTH LONDON COMMUNITY CARE AGENCY,Prv Sctr Care Pkage,"Dir of Adults, Health & Communities",53.10
OP/I399598,05/10/2022,RAVENTREE LTD,"Material - Purch,Rep",Housing Revenue Account,51.96
75966,05/10/2022,CLOC LTD,Printing - Internal,"Dir of  Culture, Strategy & Engagement",49.63
525715,05/10/2022,WILLIAM WHITE MEATS LTD,Meat & Frozen food,Dir of Children's Services,45.46
75927,05/10/2022,CLOC LTD,Printing - Internal,"Dir of  Culture, Strategy & Engagement",43.34
75985,05/10/2022,CLOC LTD,Printing - Internal,"Dir of  Culture, Strategy & Engagement",42.00
75984,05/10/2022,CLOC LTD,Printing - Internal,"Dir of  Culture, Strategy & Engagement",38.00
75901,05/10/2022,CLOC LTD,Printing - Internal,"Dir of  Culture, Strategy & Engagement",34.71
02/654558,05/10/2022,BUNZL UK LTD t/a GREENHAM,Stock - Raw Material,Housing Revenue Account,31.68
75929,05/10/2022,CLOC LTD,Printing - Internal,"Dir of  Culture, Strategy & Engagement",30.00
75931,05/10/2022,CLOC LTD,Printing - Internal,"Dir of  Culture, Strategy & Engagement",30.00
755062,05/10/2022,J.A. STEEL AND SON LTD,Removals,Housing Revenue Account,24.00
755103,05/10/2022,J.A. STEEL AND SON LTD,Removals,Housing Revenue Account,24.00
755108,05/10/2022,J.A. STEEL AND SON LTD,Removals,Housing Revenue Account,24.00
02/641095,05/10/2022,BUNZL UK LTD t/a GREENHAM,Stock - Raw Material,Housing Revenue Account,19.68
35/481116,05/10/2022,FAYERS PLUMBING AND BUILDING SUPPLI,"Material - Purch,Rep",Housing Revenue Account,18.00
16842044,05/10/2022,ESENDEX LIMITED,Call Systems,Dir of Children's Services,15.00
671055271808,05/10/2022,EDF ENERGY CUSTOMER PLC,Energy - Gas,Dir of Finance,10.55
75930,05/10/2022,CLOC LTD,Printing - Internal,"Dir of  Culture, Strategy & Engagement",6.72
5365,05/10/2022,ALLFORCARE,Prv Sctr Care Pkage,"Dir of Adults, Health & Communities",4.41
75932,05/10/2022,CLOC LTD,Printing - Internal,"Dir of  Culture, Strategy & Engagement",3.36
434095,05/10/2022,BAYIS SHELI LTD,Client Cont Care Pkg,"Dir of Adults, Health & Communities",-134.92
434095,05/10/2022,COMPLETE CARE SERVICES LTD,Client Cont Care Pkg,"Dir of Adults, Health & Communities",-321.80
434095,05/10/2022,THE DAVID LEWIS CENTRE,Client Cont Care Pkg,"Dir of Adults, Health & Communities",-367.80
434095,05/10/2022,GREENFIELDS RES CARE HOMES LTD,Client Cont Care Pkg,"Dir of Adults, Health & Communities",-367.80
434095,05/10/2022,CARETECH COMMUNITY SERVICES LTD,Client Cont Care Pkg,"Dir of Adults, Health & Communities",-383.80
434095,05/10/2022,CRAEGMOOR HEALTHCARE,Client Cont Care Pkg,"Dir of Adults, Health & Communities",-423.00
434095,05/10/2022,MEADOWVIEW CARE LTD,Client Cont Care Pkg,"Dir of Adults, Health & Communities",-423.00
434095,05/10/2022,THE DISABILITIES TRUST,Client Cont Care Pkg,"Dir of Adults, Health & Communities",-438.80
434095,05/10/2022,ACORN VILLAGES LIMITED,Client Cont Care Pkg,"Dir of Adults, Health & Communities",-438.80
434095,05/10/2022,BEECH LODGE,Client Cont Care Pkg,"Dir of Adults, Health & Communities",-438.80
434095,05/10/2022,METROPOLITAN HOUSING TRUST LTD,Client Cont Care Pkg,"Dir of Adults, Health & Communities",-438.80
434095,05/10/2022,OPTIONS AUTISM(6) LIMITED,Client Cont Care Pkg,"Dir of Adults, Health & Communities",-438.80
434095,05/10/2022,ESSEX CARE CONSORTIUM LTD,Client Cont Care Pkg,"Dir of Adults, Health & Communities",-438.80
434095,05/10/2022,DESBOROUGH CARE,Client Cont Care Pkg,"Dir of Adults, Health & Communities",-438.80
434095,05/10/2022,PARK RESIDENTIAL HOME,Client Cont Care Pkg,"Dir of Adults, Health & Communities",-438.80
434095,05/10/2022,GRESHAM CARE LIMITED,Client Cont Care Pkg,"Dir of Adults, Health & Communities",-438.80
434095,05/10/2022,SCIMITAR CARE HOTELS PLC,Client Cont Care Pkg,"Dir of Adults, Health & Communities",-500.20
434095,05/10/2022,UK INTERNATIONAL NURSING AGENCY LTD,Client Cont Care Pkg,"Dir of Adults, Health & Communities",-533.56
434074,05/10/2022,WATERFALL HSE LTD t/a AMBERLEY HOUS,Client Cont Care Pkg,"Dir of Adults, Health & Communities",-627.80
434095,05/10/2022,QUANTUM CARE LIMITED,Client Cont Care Pkg,"Dir of Adults, Health & Communities",-627.80
434095,05/10/2022,ABBEYDALE RESIDENTIAL CARE HOME,Client Cont Care Pkg,"Dir of Adults, Health & Communities",-627.80
434095,05/10/2022,SANCTUARY CARE LTD,Client Cont Care Pkg,"Dir of Adults, Health & Communities",-627.80
434095,05/10/2022,DENVILLE HALL 2012,Client Cont Care Pkg,"Dir of Adults, Health & Communities",-627.80
434095,05/10/2022,ANCHOR HANOVER GROUP TA BLUE GROVE,Client Cont Care Pkg,"Dir of Adults, Health & Communities",-627.80
434095,05/10/2022,CLOYDA CARE HOME,Client Cont Care Pkg,"Dir of Adults, Health & Communities",-627.80
434095,05/10/2022,BAXENDALE WOODSIDE HOME,Client Cont Care Pkg,"Dir of Adults, Health & Communities",-741.96
434095,05/10/2022,PEACEFORM (UK) LTD,Client Cont Care Pkg,"Dir of Adults, Health & Communities",-746.04
434095,05/10/2022,UK INTERNATIONAL NURSING AGENCY LTD,JtFundInc - Health,"Dir of Adults, Health & Communities",-750.40
434095,05/10/2022,CMG LTD,Client Cont Care Pkg,"Dir of Adults, Health & Communities",-806.60
434095,05/10/2022,EARLYBIRDCARE LTD T/A ALEXANDRAPARK,Client Cont Care Pkg,"Dir of Adults, Health & Communities",-875.64
434095,05/10/2022,CLO-CLO LTD,Client Cont Care Pkg,"Dir of Adults, Health & Communities",-877.60
434095,05/10/2022,ASHBROOK COURT CARE HOME,Client Cont Care Pkg,"Dir of Adults, Health & Communities",-929.88
434095,05/10/2022,TORRINGTON HOMES,Client Cont Care Pkg,"Dir of Adults, Health & Communities",-963.20
434095,05/10/2022,ASHLEY HOUSE,Client Cont Care Pkg,"Dir of Adults, Health & Communities",-1054.16
434095,05/10/2022,AGUDAS ISRAEL HOUSING ASSOCIAT LTD,Client Cont Care Pkg,"Dir of Adults, Health & Communities",-1735.32
434095,05/10/2022,WATERFALL HSE LTD t/a AMBERLEY HOUS,Client Cont Care Pkg,"Dir of Adults, Health & Communities",-1773.60
434095,05/10/2022,EASTBROOK HOUSE RESIDENTIAL HOME,Client Cont Care Pkg,"Dir of Adults, Health & Communities",-1776.80
434095,05/10/2022,BROWNLOW ENTERPRISES LTD,Client Cont Care Pkg,"Dir of Adults, Health & Communities",-1940.60
434095,05/10/2022,CONNIFERS CARE LIMITED,Client Cont Care Pkg,"Dir of Adults, Health & Communities",-1942.43
434095,05/10/2022,Ambient Support Limited,Client Cont Care Pkg,"Dir of Adults, Health & Communities",-2015.80
434095,05/10/2022,CAMDEN LODGE,Client Cont Care Pkg,"Dir of Adults, Health & Communities",-2254.16
434107,05/10/2022,BROWNLOW ENTERPRISES LTD TA HEATHGR,Priv - Res Long,"Dir of Adults, Health & Communities",-2445.00
434095,05/10/2022,AVON LODGE UK LTD,Client Cont Care Pkg,"Dir of Adults, Health & Communities",-3041.80
434095,05/10/2022,CHOICE SUPPORT,Client Cont Care Pkg,"Dir of Adults, Health & Communities",-3413.00
434095,05/10/2022,DRS CARE HOMES LTD,Client Cont Care Pkg,"Dir of Adults, Health & Communities",-9155.74
10/006460/055004,06/10/2022,INSURANCE CLAIMS,Bal Alloc InsurePrem,Dir of Finance,1446431.44
CSCT004203-006,06/10/2022,EQUANS REGENERATION LIMITED,Buildings,Dir of Finance,542777.86
CSCT003960-015,06/10/2022,EQUANS REGENERATION LIMITED,Buildings,Dir of Finance,427610.86
00046212,06/10/2022,Marston Holdings Ltd,Parking,Dir of Environment & Neighbourhoods,88114.10
434136,06/10/2022,MAJESTIC FAMILY SERVICES LTD,Priv - Mother & Baby,Dir of Children's Services,84514.28
4325539,06/10/2022,LONDON COUNCILS,Debt Collection & Recovery,Dir of Environment & Neighbourhoods,57471.00
434136,06/10/2022,THE BEECHES UK LTD,Priv - Res Long,Dir of Children's Services,55658.57
434139,06/10/2022,INTEGRATED SERVICES PROGRAMME,PrivSec IndependFost,Dir of Children's Services,49525.16
SL009369,06/10/2022,COSMUR CONSTRUCTION (LONDON) LTD,Buildings,Dir of Finance,47888.01
434090,06/10/2022,SPRINGDENE NURSING & CARE HOMES LTD,Priv - Res Long,"Dir of Adults, Health & Communities",46589.29
434139,06/10/2022,GREATER LONDON FOSTERING LTD,PrivSec IndependFost,Dir of Children's Services,44017.09
434139,06/10/2022,THE NATIONAL FOSTERING AGENCY LTD,PrivSec IndependFost,Dir of Children's Services,43556.26
434090,06/10/2022,NORWOOD SCHOOLS LTD,Priv - Res Long,"Dir of Adults, Health & Communities",41303.20
18391,06/10/2022,Levitt Bernstein,"Works - Construction, Repair & Maintenance",Dir of Finance,40000.00
434090,06/10/2022,SENSE,Priv - Res Long,"Dir of Adults, Health & Communities",33719.48
434090,06/10/2022,VENTRY RESIDENTIAL CARE LTD,Priv - Res Long,"Dir of Adults, Health & Communities",32259.29
434090,06/10/2022,BROWNLOW ENTERPRISES LTD TA VENTRY,Priv - Res Long,"Dir of Adults, Health & Communities",27763.57
22069A,06/10/2022,WING PARKING LTD T/A WING PARKING,Fees - C Parking Z,Housing Revenue Account,24503.97
434090,06/10/2022,ACHIEVE TOGETHER LIMITED,Priv - Res Long,"Dir of Adults, Health & Communities",24178.20
434139,06/10/2022,CAMINO CARE LTD,Priv - Res Long,Dir of Children's Services,23768.00
434090,06/10/2022,FOUR SEASONS 2000 LIMITED,Priv - Res Long,"Dir of Adults, Health & Communities",22702.60
224150,06/10/2022,RIDGE AND PARTNERS LLP,Consultancy,Dir of Finance,21647.75
434090,06/10/2022,QUANTUM CARE LIMITED,Priv - Res Long,"Dir of Adults, Health & Communities",20674.29
434139,06/10/2022,FLOURISH FOSTERING LTD,PrivSec IndependFost,Dir of Children's Services,18563.71
 LC/A005690002,06/10/2022,COMPENSATION CLAIMS & LEGAL COSTS,Fees Legal External,"Dir of Adults, Health & Communities",17371.00
434139,06/10/2022,INTEGRATED FOSTERING SERVICES LTD,PrivSec IndependFost,Dir of Children's Services,16896.00
434139,06/10/2022,HILLCREST CHLDRNS SRVCS 2 LTD FOSTE,PrivSec IndependFost,Dir of Children's Services,16014.28
434139,06/10/2022,FIVE RIVERS CHILD CARE LTD,PrivSec IndependFost,Dir of Children's Services,15633.56
434139,06/10/2022,SHARED CARE SERVICES LTD,PrivSec IndependFost,Dir of Children's Services,15388.20
434139,06/10/2022,Capstone Foster Care (South East) L,PrivSec IndependFost,Dir of Children's Services,14732.00
434090,06/10/2022,SANDHURST LODGE LTD,Priv - Res Long,"Dir of Adults, Health & Communities",14600.00
434139,06/10/2022,FAMILY FIRST FOSTERING,PrivSec IndependFost,Dir of Children's Services,13834.95
434139,06/10/2022,TACT,PrivSec IndependFost,Dir of Children's Services,13552.00
434090,06/10/2022,MAGICARE LTD,Priv - Res Long,"Dir of Adults, Health & Communities",12800.00
434139,06/10/2022,FAMILY PLACEMENT COM,PrivSec IndependFost,Dir of Children's Services,12191.20
434139,06/10/2022,FAMILY WORKS FOSTERING,PrivSec IndependFost,Dir of Children's Services,11800.00
434139,06/10/2022,ILLUMINANCE FOSTERING SERVICES,PrivSec IndependFost,Dir of Children's Services,10585.72
434090,06/10/2022,SALUTEM LD BIDCO IV LIMITED,Priv - Res Long,"Dir of Adults, Health & Communities",10293.36
434139,06/10/2022,NEXUS FOSTERING LIMITED,PrivSec IndependFost,Dir of Children's Services,10166.80
434090,06/10/2022,PROGRESS HOUSING LTD,Priv - Res Long,"Dir of Adults, Health & Communities",10103.04
434090,06/10/2022,SEQUENCE CARE LTD,Priv - Res Long,"Dir of Adults, Health & Communities",9687.44
434139,06/10/2022,CREDO CARE LIMITED,PrivSec IndependFost,Dir of Children's Services,9600.00
434090,06/10/2022,16 TO 21 PROJECT LTD,Priv - Res Long,"Dir of Adults, Health & Communities",9300.00
4010892520308677,06/10/2022,LONDON BOROUGH OF BARNET,Rents,Assistant Dir Corporate Governance,8750.00
434090,06/10/2022,NISACRAFT LTD,Priv - Res Long,"Dir of Adults, Health & Communities",8512.00
434139,06/10/2022,ST CHRISTOPHER'S FELLOWSHIP,PrivSec IndependFost,Dir of Children's Services,8400.00
434139,06/10/2022,COMPASS FOSTERING LONDON AND EASTER,PrivSec IndependFost,Dir of Children's Services,8365.36
434139,06/10/2022,NEXT STEP FOSTERING SERVICES LTD,PrivSec IndependFost,Dir of Children's Services,8358.80
434139,06/10/2022,WELLCARE FOSTERING SERVICES LIMITED,PrivSec IndependFost,Dir of Children's Services,8040.00
434090,06/10/2022,RESIDENTIAL CARE PROVIDERS LTD,Priv - Res Long,"Dir of Adults, Health & Communities",7784.84
434139,06/10/2022,DIVERSE CARE (UK) LTD,PrivSec IndependFost,Dir of Children's Services,7743.24
434139,06/10/2022,Redacted Personal Data,PrivSec IndependFost,Dir of Children's Services,7552.00
434090,06/10/2022,Redacted Personal Data,Priv - Res Long,"Dir of Adults, Health & Communities",7484.00
434090,06/10/2022,METHODIST HOMES FOR THE AGED,Priv - Res Long,"Dir of Adults, Health & Communities",7440.00
434090,06/10/2022,SANCTUARY HOUSING ASSOCIATION,Vol Sect - Res Long,"Dir of Adults, Health & Communities",7328.88
434139,06/10/2022,ETHELBERT SPECIALIST HOMES LTD,PrivSec IndependFost,Dir of Children's Services,7088.24
434090,06/10/2022,ST LUCY LODGE,Priv - Res Long,"Dir of Adults, Health & Communities",6800.00
434090,06/10/2022,PRIORY GROUP LIMITED,Priv - Res Long,"Dir of Adults, Health & Communities",6783.16
434139,06/10/2022,FOSTERING FOR YOU LIMITED,Priv - Mother & Baby,Dir of Children's Services,6136.32
434139,06/10/2022,QUALITY FOSTER CARE LTD,PrivSec IndependFost,Dir of Children's Services,6118.36
434139,06/10/2022,REGIONAL FOSTERING SERVICES LTD,PrivSec IndependFost,Dir of Children's Services,6041.00
434090,06/10/2022,ROSEACRES CARE HOME LIMITED,Priv - Res Long,"Dir of Adults, Health & Communities",6000.00
434090,06/10/2022,ST IVES LODGE,Priv - Res Long,"Dir of Adults, Health & Communities",5900.00
434139,06/10/2022,SHINING STARS FOSTERING AGENCY,PrivSec IndependFost,Dir of Children's Services,5800.00
434090,06/10/2022,ROSELOCK LIMITED,Priv - Res Long,"Dir of Adults, Health & Communities",5618.20
434139,06/10/2022,CHOICE FOSTERING LTD,PrivSec IndependFost,Dir of Children's Services,5600.00
OT2010H12171,06/10/2022,STAFF MANAGEMENT LTD T/A ACTIVE ASS,Prv Sctr Care Pkage,"Dir of Adults, Health & Communities",5454.60
SI-1150,06/10/2022,London Guitar Studio Ltd,Professional Musical Instruments,Dir of Children's Services,5432.50
434139,06/10/2022,RYANCARE FOSTERING LTD,PrivSec IndependFost,Dir of Children's Services,5399.28
434139,06/10/2022,FOCUS ON FOSTERING LTD,PrivSec IndependFost,Dir of Children's Services,5341.04
434139,06/10/2022,FOSTERCARE UK LTD,PrivSec IndependFost,Dir of Children's Services,5100.00
434090,06/10/2022,NAS SERVICES LTD,Priv - Res Long,"Dir of Adults, Health & Communities",5033.64
434090,06/10/2022,OAKLAND PRIMECARE LTD RE ELSYNG HOU,Priv - Res Long,"Dir of Adults, Health & Communities",4800.00
434139,06/10/2022,OWNLIFE FOSTERING LIMITED,PrivSec IndependFost,Dir of Children's Services,4800.00
5901,06/10/2022,The Reader Organisation,Library Services,"Dir of  Culture, Strategy & Engagement",4733.50
434139,06/10/2022,XCEL 2000 FOSTERCARE SERVICES LTD,PrivSec IndependFost,Dir of Children's Services,4566.12
434140,06/10/2022,ST CATHERINE CARE HOME,Priv Sec-- LBH & CCG,"Dir of Adults, Health & Communities",4400.00
HLH087-1512127,06/10/2022,HILL HOMES,Prv Sctr Care Pkage,"Dir of Adults, Health & Communities",4318.28
394,06/10/2022,SIDLOFF ASSOCIATES LIMITED,"Advice, Advocacy & Counselling Services","Dir of Adults, Health & Communities",4166.00
396,06/10/2022,SIDLOFF ASSOCIATES LIMITED,"Advice, Advocacy & Counselling Services","Dir of Adults, Health & Communities",4055.00
HLH087-1537861,06/10/2022,HILL HOMES,Prv Sctr Care Pkage,"Dir of Adults, Health & Communities",4038.04
434090,06/10/2022,Redacted Personal Data,Priv - Res Long,"Dir of Adults, Health & Communities",4000.00
434139,06/10/2022,SELECT FOSTER CARE SERVICES LTD,PrivSec IndependFost,Dir of Children's Services,3980.00
241016,06/10/2022,CROWN PROMOTIONS & REMOVALS LTD,Removals,"Dir of Adults, Health & Communities",3958.06
434139,06/10/2022,CORE ASSETS FOSTERING LTD,PrivSec IndependFost,Dir of Children's Services,3956.40
434139,06/10/2022,FUSION FOSTERING LTD,PrivSec IndependFost,Dir of Children's Services,3940.00
241648,06/10/2022,CROWN PROMOTIONS & REMOVALS LTD,Removals,"Dir of Adults, Health & Communities",3914.26
SI21872,06/10/2022,ACCESS UK LTD T/A ADAM,Passenger Transport,Dir of Children's Services,3910.30
240402,06/10/2022,CROWN PROMOTIONS & REMOVALS LTD,Removals,"Dir of Adults, Health & Communities",3832.50
434090,06/10/2022,ROYAL MENCAP SOCIETY,Priv - Res Long,"Dir of Adults, Health & Communities",3809.44
433272,06/10/2022,NEXT STEP FOSTERING SERVICES LTD,PrivSec IndependFost,Dir of Children's Services,3600.80
433699,06/10/2022,NEXT STEP FOSTERING SERVICES LTD,PrivSec IndependFost,Dir of Children's Services,3600.80
HLH087-151117,06/10/2022,HILL HOMES,Prv Sctr Care Pkage,"Dir of Adults, Health & Communities",3479.36
JG/E1620184,06/10/2022,INSURANCE CLAIMS,Bal Alloc InsurePrem,Dir of Finance,3474.44
434090,06/10/2022,OAK TREE CARE SERVICES LIMITED,Priv - Res Long,"Dir of Adults, Health & Communities",3471.64
6614,06/10/2022,Ezer Leyoldos Ltd,Advertising,Dir of Children's Services,3433.44
434139,06/10/2022,CHANNELS & CHOICES LIMITED,PrivSec IndependFost,Dir of Children's Services,3388.00
434090,06/10/2022,THE ROLAND RESIDENTIAL CARE HOME,Priv - Res Long,"Dir of Adults, Health & Communities",3361.60
HLH087-1524615,06/10/2022,HILL HOMES,Prv Sctr Care Pkage,"Dir of Adults, Health & Communities",3254.60
434139,06/10/2022,STEPPING STONES FOSTERING LTD,PrivSec IndependFost,Dir of Children's Services,3200.00
HLH087-1043337,06/10/2022,HILL HOMES,Prv Sctr Care Pkage,"Dir of Adults, Health & Communities",3143.20
HLH087-1672047,06/10/2022,HILL HOMES,Prv Sctr Care Pkage,"Dir of Adults, Health & Communities",3105.44
434139,06/10/2022,FOSTERING OPTIONS LTD,PrivSec IndependFost,Dir of Children's Services,3032.12
434090,06/10/2022,JEWISH CARE,Priv - Res Long,"Dir of Adults, Health & Communities",3000.00
434090,06/10/2022,NEWGRANGE OF CHESTUNT LTD,Priv - Res Long,"Dir of Adults, Health & Communities",3000.00
434139,06/10/2022,RAINBOW FOSTERING SERVICES LTD,PrivSec IndependFost,Dir of Children's Services,2996.00
434139,06/10/2022,UK FOSTERING LTD,PrivSec IndependFost,Dir of Children's Services,2920.00
434139,06/10/2022,ORANGE GROVE FOSTERCARE LTD,Priv - Contractor,Dir of Children's Services,2920.00
434090,06/10/2022,RNJ CARE LTD,Priv - Res Long,"Dir of Adults, Health & Communities",2900.00
HLH087-1072982,06/10/2022,HILL HOMES,Prv Sctr Care Pkage,"Dir of Adults, Health & Communities",2769.84
434139,06/10/2022,KENT HOMEFINDING AND FOSTERING LTD,PrivSec IndependFost,Dir of Children's Services,2746.80
241646,06/10/2022,CROWN PROMOTIONS & REMOVALS LTD,Removals,"Dir of Adults, Health & Communities",2664.60
5107249111,06/10/2022,MEARS HOUSING MANAGEMENT LTD,Prem - Leasing,"Dir of Adults, Health & Communities",2604.00
HLH087-1516510,06/10/2022,HILL HOMES,Prv Sctr Care Pkage,"Dir of Adults, Health & Communities",2583.64
HLH087-1075058,06/10/2022,HILL HOMES,Prv Sctr Care Pkage,"Dir of Adults, Health & Communities",2507.64
INV-1286,06/10/2022,ONE TIME,Printing - Internal,"Dir of Adults, Health & Communities",2500.00
CCC/HCA005,06/10/2022,Redacted Personal Data,Management,Dir of Children's Services,2500.00
22074,06/10/2022,WING PARKING LTD T/A WING PARKING,Fees - C Parking Z,Housing Revenue Account,2376.00
434090,06/10/2022,OAK COTTAGE CARE LTD,Priv - Res Long,"Dir of Adults, Health & Communities",2356.00
4010008925203087,06/10/2022,LONDON BOROUGH OF BARNET,Rents,Assistant Dir Corporate Governance,2209.50
HLH087-1525845,06/10/2022,HILL HOMES,Prv Sctr Care Pkage,"Dir of Adults, Health & Communities",2191.92
HLH087-1584300,06/10/2022,HILL HOMES,Prv Sctr Care Pkage,"Dir of Adults, Health & Communities",1949.24
434139,06/10/2022,Enfield Council Welfare,PrivSec IndependFost,Dir of Children's Services,1901.16
241647,06/10/2022,CROWN PROMOTIONS & REMOVALS LTD,Removals,"Dir of Adults, Health & Communities",1820.62
I044246,06/10/2022,RIVERSIDE ENVIRONMENTAL SERVICES LI,Buildings,Dir of Finance,1750.00
241015,06/10/2022,CROWN PROMOTIONS & REMOVALS LTD,Removals,"Dir of Adults, Health & Communities",1730.10
ARE074-1519194,06/10/2022,AREA 51 EDUCATION LTD,Prv Sctr Care Pkage,"Dir of Adults, Health & Communities",1700.00
ARE075-1519194,06/10/2022,AREA 51 EDUCATION LTD,Prv Sctr Care Pkage,"Dir of Adults, Health & Communities",1700.00
ARE076-1519194,06/10/2022,AREA 51 EDUCATION LTD,Prv Sctr Care Pkage,"Dir of Adults, Health & Communities",1700.00
434134,06/10/2022,Redacted Personal Data,SS Child-Assessments,Dir of Children's Services,1700.00
HLH087-1007017,06/10/2022,HILL HOMES,Prv Sctr Care Pkage,"Dir of Adults, Health & Communities",1688.56
434090,06/10/2022,BROWNLOW ENTERPRISES LTD TA VENTRY,Priv Sec-- LBH & CCG,"Dir of Adults, Health & Communities",1630.00
2022-23.068,06/10/2022,THE MARKFIELD PROJECT LTD,SS Child - Out of Sc,Dir of Children's Services,1600.00
NLAC69-18122,06/10/2022,NORTH LONDON ASIAN CARE,Prv Sctr Care Pkage,"Dir of Adults, Health & Communities",1566.63
5107249098,06/10/2022,Redacted Personal Data,Prem - Leasing,"Dir of Adults, Health & Communities",1473.33
5107249108,06/10/2022,Redacted Personal Data,Prem - Leasing,"Dir of Adults, Health & Communities",1389.87
5107249104,06/10/2022,Redacted Personal Data,Prem - Leasing,"Dir of Adults, Health & Communities",1365.00
5107249110,06/10/2022,Redacted Personal Data,Prem - Leasing,"Dir of Adults, Health & Communities",1365.00
5107249105,06/10/2022,NEOPHYTOU PROPERTY INVESTMENTS LIMI,Prem - Leasing,"Dir of Adults, Health & Communities",1349.40
5107249097,06/10/2022,Redacted Personal Data,Prem - Leasing,"Dir of Adults, Health & Communities",1317.33
02AL,06/10/2022,Redacted Personal Data,Vol Sec - Add Supp,Dedicated Schools Grant Management,1230.00
69353,06/10/2022,Martin Arnold Limited,Buildings,Dir of Finance,1225.00
69354,06/10/2022,Martin Arnold Limited,Buildings,Dir of Finance,1225.00
HLH087-1495645,06/10/2022,HILL HOMES,Prv Sctr Care Pkage,"Dir of Adults, Health & Communities",1166.08
5107249093,06/10/2022,ADAMS & STYLES,Prem - Leasing,"Dir of Adults, Health & Communities",1148.33
0033/0003428334,06/10/2022,HOWARTH TIMBER & BUILDING SUPPLIES,Stock - Raw Material,Housing Revenue Account,1147.50
5107249094,06/10/2022,ADAMS & STYLES,Prem - Leasing,"Dir of Adults, Health & Communities",1106.47
5107249109,06/10/2022,BLOSSOM ESTATES LTD,Prem - Leasing,"Dir of Adults, Health & Communities",1105.00
5107249103,06/10/2022,PATTICHIS PROPERTIES,Prem - Leasing,"Dir of Adults, Health & Communities",1061.66
INV383,06/10/2022,ACCESS UK LTD T/A ADAM,Letting  / Estate Agents,"Dir of Adults, Health & Communities",1014.91
436A,06/10/2022,DCAS DIRECT PERSONNEL LTD,Prv Sctr Care Pkage,"Dir of Adults, Health & Communities",990.00
471,06/10/2022,DCAS DIRECT PERSONNEL LTD,Prv Sctr Care Pkage,"Dir of Adults, Health & Communities",976.52
434143,06/10/2022,SELECT FOSTER CARE SERVICES LTD,SSChild-PersonalItem,Dir of Children's Services,900.00
DISCRETIONARY,06/10/2022,GRANT PAYMENTS,Relocat Exp - Tenant,Housing Revenue Account,897.00
ARE077-1519194,06/10/2022,AREA 51 EDUCATION LTD,Prv Sctr Care Pkage,"Dir of Adults, Health & Communities",850.00
387,06/10/2022,DCAS DIRECT PERSONNEL LTD,Prv Sctr Care Pkage,"Dir of Adults, Health & Communities",784.00
0734/00156715,06/10/2022,JEWSON LTD,"Material - Purch,Rep",Housing Revenue Account,752.84
NR.104387,06/10/2022,PLAYLE & PARTNERS LLP,Buildings,Dir of Finance,746.39
NLAC69-1541471,06/10/2022,NORTH LONDON ASIAN CARE,Prv Sctr Care Pkage,"Dir of Adults, Health & Communities",741.60
0734/00156809,06/10/2022,JEWSON LTD,Stock - Raw Material,Housing Revenue Account,732.24
434142,06/10/2022,FORWARD4FAMILIES LLP,SS Child-Assessments,Dir of Children's Services,720.00
54418,06/10/2022,ESSEX INTERPRETING LTD,Fees - Interpreter,Dir of Children's Services,668.90
16387,06/10/2022,JUST DISPLAYS LTD,Mailing,"Dir of  Culture, Strategy & Engagement",661.00
OP/I404635,06/10/2022,RAVENTREE LTD,"Material - Purch,Rep",Housing Revenue Account,538.71
5107249099,06/10/2022,Redacted Personal Data,Prem - Leasing,"Dir of Adults, Health & Communities",520.00
NLAC69-1514905,06/10/2022,NORTH LONDON ASIAN CARE,Prv Sctr Care Pkage,"Dir of Adults, Health & Communities",519.12
0033/0003428332,06/10/2022,HOWARTH TIMBER & BUILDING SUPPLIES,Stock - Raw Material,Housing Revenue Account,510.00
0033/0003356794,06/10/2022,HOWARTH TIMBER & BUILDING SUPPLIES,Stock - Raw Material,Housing Revenue Account,497.10
2022-23.071,06/10/2022,THE MARKFIELD PROJECT LTD,SS Child - Out of Sc,Dir of Children's Services,480.00
241014,06/10/2022,CROWN PROMOTIONS & REMOVALS LTD,Removals,"Dir of Adults, Health & Communities",470.00
157,06/10/2022,Redacted Personal Data,Organised Activities,"Dir of Adults, Health & Communities",458.10
0033/0003374757,06/10/2022,HOWARTH TIMBER & BUILDING SUPPLIES,"Material - Purch,Rep",Housing Revenue Account,425.40
ARE073-1519194,06/10/2022,AREA 51 EDUCATION LTD,Prv Sctr Care Pkage,"Dir of Adults, Health & Communities",425.00
0917092022,06/10/2022,Redacted Personal Data,Organised Activities,Dir of Children's Services,420.00
HCC-291,06/10/2022,Redacted Personal Data,Organised Activities,"Dir of Adults, Health & Communities",381.75
754961,06/10/2022,J.A. STEEL AND SON LTD,Removals,Housing Revenue Account,375.00
0033/0003374756,06/10/2022,HOWARTH TIMBER & BUILDING SUPPLIES,Stock - Raw Material,Housing Revenue Account,372.00
0734/00156613,06/10/2022,JEWSON LTD,Stock - Raw Material,Housing Revenue Account,362.40
0734/00156695,06/10/2022,JEWSON LTD,"Material - Purch,Rep",Housing Revenue Account,351.99
55000,06/10/2022,ESSEX INTERPRETING LTD,Fees - Interpreter,Dir of Children's Services,319.00
0734/00156594,06/10/2022,JEWSON LTD,"Material - Purch,Rep",Housing Revenue Account,315.79
22215,06/10/2022,PREMIER PRINT & PROMOTIONS LIMITED,Mailing,"Dir of  Culture, Strategy & Engagement",307.50
2022-23.079,06/10/2022,THE MARKFIELD PROJECT LTD,SS Child - Out of Sc,Dir of Children's Services,300.00
SH002,06/10/2022,Redacted Personal Data,Organised Activities,Dir of Children's Services,300.00
240400,06/10/2022,CROWN PROMOTIONS & REMOVALS LTD,Removals,"Dir of Adults, Health & Communities",295.00
17510,06/10/2022,STORE BOX SELF STORAGE LIMITED,Fees - Storage,"Dir of Adults, Health & Communities",277.20
0000053665,06/10/2022,GERDA SECURITY PRODUCTS LIMITED,"Material - Purch,Rep",Housing Revenue Account,266.46
NLAC69-1583736,06/10/2022,NORTH LONDON ASIAN CARE,Prv Sctr Care Pkage,"Dir of Adults, Health & Communities",259.56
18092022,06/10/2022,Redacted Personal Data,Organised Activities,Dir of Children's Services,249.67
0033/0003428333,06/10/2022,HOWARTH TIMBER & BUILDING SUPPLIES,Stock - Raw Material,Housing Revenue Account,245.02
0033/0003399572,06/10/2022,HOWARTH TIMBER & BUILDING SUPPLIES,Stock - Raw Material,Housing Revenue Account,243.54
17332,06/10/2022,STORE BOX SELF STORAGE LIMITED,Fees - Storage,"Dir of Adults, Health & Communities",240.00
2022-23.078,06/10/2022,THE MARKFIELD PROJECT LTD,SS Child - Out of Sc,Dir of Children's Services,240.00
434143,06/10/2022,Redacted Personal Data,"Furniture - Purch,Re",Dir of Children's Services,235.00
0734/00156748,06/10/2022,JEWSON LTD,"Material - Purch,Rep",Housing Revenue Account,226.70
0033/0003374767,06/10/2022,HOWARTH TIMBER & BUILDING SUPPLIES,"Material - Purch,Rep",Housing Revenue Account,212.40
0000053664,06/10/2022,GERDA SECURITY PRODUCTS LIMITED,"Material - Purch,Rep",Housing Revenue Account,210.11
54248,06/10/2022,ESSEX INTERPRETING LTD,Fees - Interpreter,Dir of Children's Services,171.50
54268,06/10/2022,ESSEX INTERPRETING LTD,Fees - Interpreter,Dir of Children's Services,171.50
55107,06/10/2022,ESSEX INTERPRETING LTD,Fees - Interpreter,Dir of Children's Services,144.50
54249,06/10/2022,ESSEX INTERPRETING LTD,Fees - Interpreter,Dir of Children's Services,134.50
75993,06/10/2022,CLOC LTD,Printing - Internal,"Dir of  Culture, Strategy & Engagement",110.15
1000/90061404,06/10/2022,Post Office Limited,Subscriptions,"Dir of Adults, Health & Communities",100.00
I044474,06/10/2022,RIVERSIDE ENVIRONMENTAL SERVICES LI,Buildings,Dir of Finance,98.00
22625-2,06/10/2022,ORAMIS,Forensic & Laboratory,Assistant Dir Corporate Governance,86.25
2022-23.070,06/10/2022,THE MARKFIELD PROJECT LTD,SS Child - Out of Sc,Dir of Children's Services,60.00
0734/00156696,06/10/2022,JEWSON LTD,Stock - Raw Material,Housing Revenue Account,59.64
75994,06/10/2022,CLOC LTD,Mailing,"Dir of  Culture, Strategy & Engagement",51.62
75986,06/10/2022,CLOC LTD,Printing - Internal,"Dir of  Culture, Strategy & Engagement",42.00
76008,06/10/2022,CLOC LTD,Printing - Internal,"Dir of  Culture, Strategy & Engagement",38.00
76009,06/10/2022,CLOC LTD,Printing - Internal,"Dir of  Culture, Strategy & Engagement",38.00
76034,06/10/2022,CLOC LTD,Printing - Internal,"Dir of  Culture, Strategy & Engagement",38.00
1227444,06/10/2022,THE DIVINE WATER COMPANY LTD,General Materials,Dir of Environment & Neighbourhoods,31.50
75991,06/10/2022,CLOC LTD,Printing - Internal,"Dir of  Culture, Strategy & Engagement",30.00
76025,06/10/2022,CLOC LTD,Mailing,"Dir of  Culture, Strategy & Engagement",30.00
76030,06/10/2022,CLOC LTD,Printing - Internal,"Dir of  Culture, Strategy & Engagement",30.00
76031,06/10/2022,CLOC LTD,Printing - Internal,"Dir of  Culture, Strategy & Engagement",30.00
76084,06/10/2022,CLOC LTD,Printing - Internal,"Dir of  Culture, Strategy & Engagement",30.00
755058,06/10/2022,J.A. STEEL AND SON LTD,Removals,Housing Revenue Account,24.00
1227445,06/10/2022,THE DIVINE WATER COMPANY LTD,General Materials,Dir of Environment & Neighbourhoods,22.50
35/482300,06/10/2022,FAYERS PLUMBING AND BUILDING SUPPLI,"Material - Purch,Rep",Housing Revenue Account,15.56
1227442,06/10/2022,THE DIVINE WATER COMPANY LTD,General Materials,Dir of Environment & Neighbourhoods,13.50
75992,06/10/2022,CLOC LTD,Printing - Internal,"Dir of  Culture, Strategy & Engagement",13.05
1000/90061404,06/10/2022,Post Office Limited,Subs - Profess Orgs,"Dir of Adults, Health & Communities",-0.40
434090,06/10/2022,RESIDENTIAL CARE PROVIDERS LTD,Client Cont Care Pkg,"Dir of Adults, Health & Communities",-347.00
434090,06/10/2022,PROGRESS HOUSING LTD,Client Cont Care Pkg,"Dir of Adults, Health & Communities",-406.80
434090,06/10/2022,16 TO 21 PROJECT LTD,Client Cont Care Pkg,"Dir of Adults, Health & Communities",-423.00
434090,06/10/2022,NAS SERVICES LTD,Client Cont Care Pkg,"Dir of Adults, Health & Communities",-438.80
434090,06/10/2022,ROSELOCK LIMITED,Client Cont Care Pkg,"Dir of Adults, Health & Communities",-438.80
434090,06/10/2022,PRIORY GROUP LIMITED,Client Cont Care Pkg,"Dir of Adults, Health & Communities",-577.76
434090,06/10/2022,ST IVES LODGE,Client Cont Care Pkg,"Dir of Adults, Health & Communities",-627.80
434090,06/10/2022,ROYAL MENCAP SOCIETY,Client Cont Care Pkg,"Dir of Adults, Health & Communities",-627.80
434090,06/10/2022,ROSEACRES CARE HOME LIMITED,Client Cont Care Pkg,"Dir of Adults, Health & Communities",-627.80
434090,06/10/2022,OAK COTTAGE CARE LTD,Client Cont Care Pkg,"Dir of Adults, Health & Communities",-627.80
434090,06/10/2022,RNJ CARE LTD,Client Cont Care Pkg,"Dir of Adults, Health & Communities",-627.80
434090,06/10/2022,Redacted Personal Data,Client Cont Care Pkg,"Dir of Adults, Health & Communities",-627.80
434090,06/10/2022,ACHIEVE TOGETHER LIMITED,Client Cont Care Pkg,"Dir of Adults, Health & Communities",-877.60
434090,06/10/2022,OAKLAND PRIMECARE LTD RE ELSYNG HOU,Client Cont Care Pkg,"Dir of Adults, Health & Communities",-905.40
434090,06/10/2022,QUANTUM CARE LIMITED,Client Cont Care Pkg,"Dir of Adults, Health & Communities",-1223.68
434090,06/10/2022,SPRINGDENE NURSING & CARE HOMES LTD,Client Cont Care Pkg,"Dir of Adults, Health & Communities",-1314.36
434090,06/10/2022,Redacted Personal Data,Client Cont Care Pkg,"Dir of Adults, Health & Communities",-1316.40
434090,06/10/2022,METHODIST HOMES FOR THE AGED,Client Cont Care Pkg,"Dir of Adults, Health & Communities",-1469.84
434090,06/10/2022,NORWOOD SCHOOLS LTD,Client Cont Care Pkg,"Dir of Adults, Health & Communities",-1505.40
434090,06/10/2022,SENSE,Client Cont Care Pkg,"Dir of Adults, Health & Communities",-1704.40
434090,06/10/2022,BROWNLOW ENTERPRISES LTD TA VENTRY,Client Cont Care Pkg,"Dir of Adults, Health & Communities",-1746.48
434090,06/10/2022,FOUR SEASONS 2000 LIMITED,Client Cont Care Pkg,"Dir of Adults, Health & Communities",-1786.20
434090,06/10/2022,VENTRY RESIDENTIAL CARE LTD,Client Cont Care Pkg,"Dir of Adults, Health & Communities",-1941.39
433084,06/10/2022,NEXT STEP FOSTERING SERVICES LTD,PrivSec IndependFost,Dir of Children's Services,-11827.58
22069B,06/10/2022,WING PARKING LTD T/A WING PARKING,Fees - C Parking Z,Housing Revenue Account,-24503.97
90121019,07/10/2022,HARINGEY SCHOOLS SERVICES LIMITED,School Services,Dir of Finance,357332.83
0P/1282401,07/10/2022,BTU INSTALLATION & MAINTENANCE LIMI,Heating & Air Conditioning,Dir of Finance,262418.92
B0002624,07/10/2022,BARNET ENFIELD+HARINGEY MH TRUST,Specialist Needs,"Dir of Adults, Health & Communities",191370.75
B0002670,07/10/2022,BARNET ENFIELD+HARINGEY MH TRUST,Specialist Needs,"Dir of Adults, Health & Communities",191370.75
434096,07/10/2022,TRANSITION AND LATERLIFE MATTER LTD,Prv Sctr Care Pkage,"Dir of Adults, Health & Communities",152334.84
434096,07/10/2022,FILEY CARE AND SUPPORT LTD,Prv Sctr Care Pkage,"Dir of Adults, Health & Communities",135024.75
434096,07/10/2022,MARCUS & MARCUS LTD,Prv Sctr Care Pkage,"Dir of Adults, Health & Communities",117642.12
434096,07/10/2022,DRS CARE HOMES LTD,Prv Sctr Care Pkage,"Dir of Adults, Health & Communities",103316.36
434096,07/10/2022,NEXT STEP SUPPORT LTD,Prv Sctr Care Pkage,"Dir of Adults, Health & Communities",92914.72
434096,07/10/2022,SHINE PARTNERSHIPS LTD,Prv Sctr Care Pkage,"Dir of Adults, Health & Communities",63153.00
2209/076,07/10/2022,Mulalley and Company LTD,Buildings,Dir of Finance,58237.36
434138,07/10/2022,KHIN FAMILY SERVICES,Priv - Mother & Baby,Dir of Children's Services,56920.00
434096,07/10/2022,MARCUS & MARCUS LTD,Priv - Res Long,"Dir of Adults, Health & Communities",56437.64
434096,07/10/2022,LOOK AHEAD HOUSING AND CARE LTD,Prv Sctr Care Pkage,"Dir of Adults, Health & Communities",56214.80
ECSC/HPHMH/00322,07/10/2022,EMBRACE UK COMMUNITY SUPPORT CENTRE,Public Health,"Dir of Adults, Health & Communities",55000.00
434096,07/10/2022,THE AVENUES TRUST,Prv Sctr Care Pkage,"Dir of Adults, Health & Communities",50776.00
434096,07/10/2022,MAGIC LIFE LIMITED,Prv Sctr Care Pkage,"Dir of Adults, Health & Communities",48322.80
434096,07/10/2022,GOODLUCK  CARE LIMITED,Prv Sctr Care Pkage,"Dir of Adults, Health & Communities",47989.16
434096,07/10/2022,VINEYARD (UK) SERVICES LTD,Prv Sctr Care Pkage,"Dir of Adults, Health & Communities",46465.96
434096,07/10/2022,ARTHUR MORRISON LTD,Prv Sctr Care Pkage,"Dir of Adults, Health & Communities",45533.24
434096,07/10/2022,UNIFIED CARE LTD T/A VICTORIA'S CAR,Prv Sctr Care Pkage,"Dir of Adults, Health & Communities",44440.00
434138,07/10/2022,PATHWAYS CARE GROUP LTD,Priv - Res Long,Dir of Children's Services,41543.60
434138,07/10/2022,WINSBEACH CHILDREN'S HOME,Priv - Res Long,Dir of Children's Services,40800.00
434138,07/10/2022,MIG HOUSE RESIDENTIAL CARE HOME LTD,Priv - Res Long,Dir of Children's Services,40000.00
434138,07/10/2022,Your Chapter Ltd,Priv - Res Long,Dir of Children's Services,39800.00
434138,07/10/2022,ROXWELL CARE GIDEA PARK LIMITED,Priv - Res Long,Dir of Children's Services,39800.00
434096,07/10/2022,MAISON MOTI LTD,Prv Sctr Care Pkage,"Dir of Adults, Health & Communities",38917.00
434096,07/10/2022,KALM CARE LTD,Prv Sctr Care Pkage,"Dir of Adults, Health & Communities",37544.00
434172,07/10/2022,FRESHSTART CARE SOLUTIONS LTD,Priv - Contractor,Dir of Children's Services,37339.29
434138,07/10/2022,YOUNG GENERATION,Priv - Res Long,Dir of Children's Services,36778.00
434096,07/10/2022,NISACRAFT LTD,Prv Sctr Care Pkage,"Dir of Adults, Health & Communities",33283.16
434096,07/10/2022,EDENVALE CARE LIMITED,Prv Sctr Care Pkage,"Dir of Adults, Health & Communities",29939.60
434096,07/10/2022,OUTWARD HOUSING,Prv Sctr Care Pkage,"Dir of Adults, Health & Communities",29783.64
INV0000001396,07/10/2022,Taranto Systems Ltd,Parking,Dir of Environment & Neighbourhoods,29407.51
434096,07/10/2022,HAIL LTD,Vol Sect - Care Pk,"Dir of Adults, Health & Communities",28263.52
434138,07/10/2022,KIBBLE EDUCATION AND CARE CENTRE,L.A. - Secure Unit,Dir of Children's Services,27776.00
434096,07/10/2022,COMMUNITY LIVING LIMITED,Prv Sctr Care Pkage,"Dir of Adults, Health & Communities",27756.00
434138,07/10/2022,SUNRISE HILL CARE LTD,Priv - Res Long,Dir of Children's Services,27600.00
434096,07/10/2022,DHR SUPPORT SERVICES PVT LTD,Prv Sctr Care Pkage,"Dir of Adults, Health & Communities",27219.92
434096,07/10/2022,DRS CARE HOMES LTD,Priv - Res Long,"Dir of Adults, Health & Communities",26868.00
434138,07/10/2022,CARE 4 EVERY CHILD,Priv - Res Long,Dir of Children's Services,26087.14
434096,07/10/2022,GLOBAL IMPACT TRAINING LIMITED,Prv Sctr Care Pkage,"Dir of Adults, Health & Communities",25847.85
434096,07/10/2022,SEQUENCE CARE LTD,Prv Sctr Care Pkage,"Dir of Adults, Health & Communities",25200.00
434096,07/10/2022,A STEP BEYOND LIMITED,Prv Sctr Care Pkage,"Dir of Adults, Health & Communities",24675.20
434096,07/10/2022,NWANDO DOMICILLIARY CARE LIMITED,Prv Sctr Care Pkage,"Dir of Adults, Health & Communities",23469.12
434096,07/10/2022,KISHARON,Prv Sctr Care Pkage,"Dir of Adults, Health & Communities",23359.12
434096,07/10/2022,NORMANSHIRE CARE SERVICES LTD,Prv Sctr Care Pkage,"Dir of Adults, Health & Communities",22600.00
434138,07/10/2022,REFLEXION CARE GROUP LIMITED,Priv - Res Long,Dir of Children's Services,22600.00
434096,07/10/2022,DIMENSIONS (UK) LIMITED,Prv Sctr Care Pkage,"Dir of Adults, Health & Communities",21145.64
434138,07/10/2022,16 TO 21 PROJECT LTD,Priv - Res Long,Dir of Children's Services,20844.00
434138,07/10/2022,CARETECH COMMUNITY SERVICES LTD,Priv - Res Long,Dir of Children's Services,20592.00
434138,07/10/2022,SWAAY CHILD AND ADOLESCENT SERVICES,Priv - Res Long,Dir of Children's Services,20390.44
434138,07/10/2022,CAMBIAN CHILDCARE LIMITED,Priv - Res Long,Dir of Children's Services,20220.00
18410,07/10/2022,Levitt Bernstein,"Works - Construction, Repair & Maintenance",Dir of Finance,20000.00
434096,07/10/2022,EXPLICIT CARE SOLUTIONS LIMITED,Prv Sctr Care Pkage,"Dir of Adults, Health & Communities",19728.00
434138,07/10/2022,COMPASS CHILDREN'S SERVICES LTD,Priv - Res Long,Dir of Children's Services,19200.00
434138,07/10/2022,S P HOMES LIMITED,Priv - Res Long,Dir of Children's Services,18200.00
434138,07/10/2022,QUALITY PROTECTS CHILDREN,Priv - Res Long,Dir of Children's Services,18000.00
434096,07/10/2022,ARAN HOMES LIMITED,Prv Sctr Care Pkage,"Dir of Adults, Health & Communities",17367.52
434096,07/10/2022,ADELAIDE CARE LTD,Prv Sctr Care Pkage,"Dir of Adults, Health & Communities",16745.00
141132,07/10/2022,THE BREASTFEEDING NETWORK,Public Health,"Dir of Adults, Health & Communities",16469.75
434138,07/10/2022,MCRAE RESIDENTIAL CARE SERVICE,Priv - Res Long,Dir of Children's Services,16328.00
434096,07/10/2022,ASHLEY HOUSE,Prv Sctr Care Pkage,"Dir of Adults, Health & Communities",16146.00
434138,07/10/2022,AREA CAMDEN LTD,Priv - Res Long,Dir of Children's Services,16076.00
434138,07/10/2022,CAMBIAN AUTISM SERVICES LIMITED,Priv - Board School,Dir of Children's Services,16056.00
434138,07/10/2022,DIRECT CARE LTD,Priv - Res Long,Dir of Children's Services,16000.00
434096,07/10/2022,CHOICE SUPPORT,Prv Sctr Care Pkage,"Dir of Adults, Health & Communities",15793.76
434138,07/10/2022,KITES CHILDREN'S SERVICES LTD,Priv - Res Long,Dir of Children's Services,15728.00
434138,07/10/2022,BAYIS SHELI LTD,Priv - Res Long,Dir of Children's Services,15440.00
434138,07/10/2022,HORIZON CARE & EDUCATION GROUP LTD,Priv - Res Long,Dir of Children's Services,15248.00
434096,07/10/2022,PRECIOUS HOMES LTD,Prv Sctr Care Pkage,"Dir of Adults, Health & Communities",14845.24
434138,07/10/2022,HOLIBROOK HOUSE,Priv - Res Long,Dir of Children's Services,14400.00
434096,07/10/2022,ACHIEVE TOGETHER LIMITED,Prv Sctr Care Pkage,"Dir of Adults, Health & Communities",14281.04
434096,07/10/2022,ST ALEX SUPPORT LIMITED,Prv Sctr Care Pkage,"Dir of Adults, Health & Communities",14128.80
434138,07/10/2022,SYMBOL FAMILY SUPPORT SERVICES LTD,Priv - Mother & Baby,Dir of Children's Services,13400.14
434096,07/10/2022,Ambient Support Limited,Prv Sctr Care Pkage,"Dir of Adults, Health & Communities",13166.80
434096,07/10/2022,GLOBAL IMPACT TRAINING LIMITED,Priv - Res Long,"Dir of Adults, Health & Communities",13104.53
434096,07/10/2022,RIDGEVIEW HEALTHCARE LIMITED,Prv Sctr Care Pkage,"Dir of Adults, Health & Communities",12863.20
434096,07/10/2022,CHILTERN SUPPORT & HOUSING LTD,Prv Sctr Care Pkage,"Dir of Adults, Health & Communities",12470.00
0000022754,07/10/2022,PROJECT CENTRE LTD,PayContractr Infrast,Dir of Finance,12334.06
434096,07/10/2022,ANGEL SUPPORT LIVING (UK) LIMITED,Prv Sctr Care Pkage,"Dir of Adults, Health & Communities",12312.04
434138,07/10/2022,ANNA HOUSE LTD,Priv - Res Long,Dir of Children's Services,12000.80
434096,07/10/2022,HEALTHCARE 1ST CHOICE LTD,Prv Sctr Care Pkage,"Dir of Adults, Health & Communities",11711.88
SI-394,07/10/2022,Premises Development Practice Ltd,Buildings,Dir of Placemaking & Housing,11499.84
434096,07/10/2022,ESSENTIAL THERAPEUTIC CARE AND EDUC,Prv Sctr Care Pkage,"Dir of Adults, Health & Communities",11400.00
434096,07/10/2022,PRECIOUS HOMES LTD,Priv - Res Long,"Dir of Adults, Health & Communities",11289.12
434096,07/10/2022,SALISBURY SUPPORT 4 AUTISM LTD,Prv Sctr Care Pkage,"Dir of Adults, Health & Communities",10836.36
CIN706,07/10/2022,DIAMOND BUILD PLC,Buildings,Dir of Finance,10796.66
434096,07/10/2022,EDENVALE CARE LIMITED,Priv - Res Long,"Dir of Adults, Health & Communities",10741.24
434096,07/10/2022,NEXT STEP SUPPORT LTD,Priv - Res Long,"Dir of Adults, Health & Communities",10724.00
434096,07/10/2022,LANGDON COMMUNITY,Prv Sctr Care Pkage,"Dir of Adults, Health & Communities",10564.08
434096,07/10/2022,VOYAGE LTD,Prv Sctr Care Pkage,"Dir of Adults, Health & Communities",10140.45
223660,07/10/2022,RIDGE AND PARTNERS LLP,Consultancy,Dir of Finance,10000.00
434096,07/10/2022,GLENHOLME SPECIALIST HEALTHCARE SOU,Prv Sctr Care Pkage,"Dir of Adults, Health & Communities",9999.20
434096,07/10/2022,EDENVALE CARE LIMITED,Priv - Ind Living,"Dir of Adults, Health & Communities",9600.00
434096,07/10/2022,PARADISE INDEPENDENT LIVING LTD,Prv Sctr Care Pkage,"Dir of Adults, Health & Communities",9440.00
434096,07/10/2022,AGUDAS ISRAEL HOUSING ASSOCIAT LTD,Prv Sctr Care Pkage,"Dir of Adults, Health & Communities",9298.12
SCS/21/492,07/10/2022,SHARED CARE SERVICES LTD,Prv Sctr Care Pkage,Dir of Children's Services,9205.50
91465610,07/10/2022,NEC SOFTWARE SOLUTIONS (UK) LTD,Services,"Dir of  Culture, Strategy & Engagement",9040.00
434096,07/10/2022,CAMDEN SOCIETY,Prv Sctr Care Pkage,"Dir of Adults, Health & Communities",8883.32
434096,07/10/2022,ARAN HOMES LIMITED,Priv - Res Long,"Dir of Adults, Health & Communities",8570.08
434096,07/10/2022,ST LUCY CARE SER T/A STEP FORWARD H,Prv Sctr Care Pkage,"Dir of Adults, Health & Communities",8569.92
434096,07/10/2022,CONNIFERS CARE LIMITED,Prv Sctr Care Pkage,"Dir of Adults, Health & Communities",8480.00
INV-0557,07/10/2022,Alban Construction Consultancy,Business,Dir of Placemaking & Housing,8250.00
INV-0583,07/10/2022,Alban Construction Consultancy,Business,Dir of Placemaking & Housing,8250.00
INV-15375,07/10/2022,Norman Rourke Pryme Ltd,Technical & Feasibility,Dir of Finance,8222.00
INV-4465,07/10/2022,Public Health Action,Public Health,"Dir of Adults, Health & Communities",8213.00
434096,07/10/2022,DILIGENT CARE SERVICES LTD,Prv Sctr Care Pkage,"Dir of Adults, Health & Communities",8100.00
223666,07/10/2022,RIDGE AND PARTNERS LLP,Consultancy,Dir of Finance,7758.00
434096,07/10/2022,ST LUCY LODGE,Prv Sctr Care Pkage,"Dir of Adults, Health & Communities",7611.00
434096,07/10/2022,SHILOZ SERVICES LIMITED,Prv Sctr Care Pkage,"Dir of Adults, Health & Communities",7404.00
434096,07/10/2022,UNICARE LONDON LIMITED,Prv Sctr Care Pkage,"Dir of Adults, Health & Communities",7400.00
434096,07/10/2022,NTEC SUPPORT SERVICES LTD,Prv Sctr Care Pkage,"Dir of Adults, Health & Communities",6662.86
434096,07/10/2022,TRINITY-HERTS CARE HOMES LTD,Priv - Res Long,"Dir of Adults, Health & Communities",6650.00
434096,07/10/2022,KISHARON,Priv - Res Long,"Dir of Adults, Health & Communities",6592.12
434172,07/10/2022,MOXIE GIBSON CONSULTANCY AND TRAINI,Priv - Contractor,Dir of Children's Services,6589.29
434096,07/10/2022,SPRINGFIELDS SUPPORTED SERVICES LTD,Prv Sctr Care Pkage,"Dir of Adults, Health & Communities",6540.00
434096,07/10/2022,GREENVIEW HEALTHCARE LTD,Prv Sctr Care Pkage,"Dir of Adults, Health & Communities",6280.00
434096,07/10/2022,OAK TREE CARE SERVICES LIMITED,Prv Sctr Care Pkage,"Dir of Adults, Health & Communities",6242.48
032137,07/10/2022,FAITHORN FARRELL TIMMS,Buildings,Dir of Finance,6139.77
434096,07/10/2022,WINRAY CARE HOUSING,Prv Sctr Care Pkage,"Dir of Adults, Health & Communities",6072.00
36355,07/10/2022,Barrier Air Conditioning Ltd,"Works - Construction, Repair & Maintenance",Dir of Finance,5783.55
17298,07/10/2022,CROWN HOSTING DATA CENTRES LIMITED,Services,"Dir of  Culture, Strategy & Engagement",5703.49
434096,07/10/2022,SOMERSET CARE LTD,Priv - Res Long,"Dir of Adults, Health & Communities",5646.32
INV009698,07/10/2022,HUNTER & PARTNERS LTD,Cleaning Service,Dir of Placemaking & Housing,5570.00
434096,07/10/2022,CEPHAS CARE LTD,Prv Sctr Care Pkage,"Dir of Adults, Health & Communities",5528.28
434096,07/10/2022,HEATH CARE SERVICES LTD,Prv Sctr Care Pkage,"Dir of Adults, Health & Communities",5390.00
31063,07/10/2022,Collage Arts,Organised Activities,"Dir of Adults, Health & Communities",5314.12
SI-1148,07/10/2022,London Guitar Studio Ltd,Professional Musical Instruments,Dir of Children's Services,5230.00
69374,07/10/2022,Martin Arnold Limited,Property,Dir of Finance,5210.00
434096,07/10/2022,NORWOOD SCHOOLS LTD,Prv Sctr Care Pkage,"Dir of Adults, Health & Communities",5188.04
434096,07/10/2022,FORGET ME NOT CARING LTD,Prv Sctr Care Pkage,"Dir of Adults, Health & Communities",5068.52
00314,07/10/2022,METROPOLITAN CARE SERVICES LIMITED,Prv Sctr Care Pkage,"Dir of Adults, Health & Communities",5040.00
00366,07/10/2022,METROPOLITAN CARE SERVICES LIMITED,Prv Sctr Care Pkage,"Dir of Adults, Health & Communities",5040.00
00418,07/10/2022,METROPOLITAN CARE SERVICES LIMITED,Prv Sctr Care Pkage,"Dir of Adults, Health & Communities",5040.00
434096,07/10/2022,ST ALEX SUPPORT LIMITED,Priv - Res Long,"Dir of Adults, Health & Communities",4968.00
TUR090-300511,07/10/2022,TURKISH CYPRIOT COMMUNITY ASSN.,Prv Sctr Care Pkage,"Dir of Adults, Health & Communities",4958.24
434096,07/10/2022,SHINE PARTNERSHIPS LTD,Priv - Res Long,"Dir of Adults, Health & Communities",4900.00
434096,07/10/2022,LEONARD CHESHIRE DISABILITY,Prv Sctr Care Pkage,"Dir of Adults, Health & Communities",4847.32
434096,07/10/2022,NTEC SUPPORT SERVICES LTD,Priv - Res Long,"Dir of Adults, Health & Communities",4768.00
434096,07/10/2022,DILIGENT CARE SERVICES LTD,Priv - Res Long,"Dir of Adults, Health & Communities",4700.00
434096,07/10/2022,ASHNESS CARE LTD,Prv Sctr Care Pkage,"Dir of Adults, Health & Communities",4643.52
FLX101-1656923,07/10/2022,FLEXSERVE UK LIMITED,Prv Sctr Care Pkage,"Dir of Adults, Health & Communities",4621.68
APR2301,07/10/2022,Apricot Online ltd,Vol Sec - Add Supp,Dedicated Schools Grant Management,4620.00
434096,07/10/2022,EXCELLENCE CARE LTD,Prv Sctr Care Pkage,"Dir of Adults, Health & Communities",4602.52
434096,07/10/2022,ASHNESS CARE LTD,Priv - Res Long,"Dir of Adults, Health & Communities",4536.00
434096,07/10/2022,THE CAMPHILL VILLAGE TRUST,Vol Sect - Care Pk,"Dir of Adults, Health & Communities",4440.20
434096,07/10/2022,MOREWAYS HEALTHCARE LTD,Prv Sctr Care Pkage,"Dir of Adults, Health & Communities",4320.00
434096,07/10/2022,ASA LODGE LTD,Prv Sctr Care Pkage,"Dir of Adults, Health & Communities",4228.00
APR2300,07/10/2022,Apricot Online ltd,Vol Sec - Add Supp,Dedicated Schools Grant Management,4200.00
434096,07/10/2022,FORWARD SUPPORT LIMITED,Prv Sctr Care Pkage,"Dir of Adults, Health & Communities",4113.50
434096,07/10/2022,CARE ADVOCATES LTD,Prv Sctr Care Pkage,"Dir of Adults, Health & Communities",4000.00
434096,07/10/2022,THREE CS SUPPORT LTD,Prv Sctr Care Pkage,"Dir of Adults, Health & Communities",3984.00
434096,07/10/2022,SANDHURST HOUSE LTD,Prv Sctr Care Pkage,"Dir of Adults, Health & Communities",3960.00
SI019519,07/10/2022,DSI BILLING SERVICES,Printing,"Dir of  Culture, Strategy & Engagement",3792.81
434096,07/10/2022,KALM CARE LTD,Priv - Res Long,"Dir of Adults, Health & Communities",3720.00
434096,07/10/2022,ACCOMPLISH GROUP,Prv Sctr Care Pkage,"Dir of Adults, Health & Communities",3567.92
TUR090-68893,07/10/2022,TURKISH CYPRIOT COMMUNITY ASSN.,Prv Sctr Care Pkage,"Dir of Adults, Health & Communities",3560.24
434096,07/10/2022,DALO TRAVEL LTD,Prv Sctr Care Pkage,"Dir of Adults, Health & Communities",3387.08
1007126,07/10/2022,ASKEWS & HOLTS LIBRARY SERVICES LTD,Library Books,"Dir of  Culture, Strategy & Engagement",3308.87
DG2022/129,07/10/2022,D&G CONSTRUCTION & ELECTRICAL LIMIT,Priv - Sub Contract,Housing Revenue Account,3285.00
8020444,07/10/2022,PROTEST ES LTD,Priv - Sub Contract,Housing Revenue Account,3248.78
434096,07/10/2022,BRAIN INJURY REHABILITATION TRUST,Prv Sctr Care Pkage,"Dir of Adults, Health & Communities",3140.00
434096,07/10/2022,ROYAL MENCAP SOCIETY  MANCHESTER,Prv Sctr Care Pkage,"Dir of Adults, Health & Communities",3139.12
434096,07/10/2022,GCH PEREGRINE HOUSE LTD,Priv - Res Long,"Dir of Adults, Health & Communities",3120.00
434096,07/10/2022,MAGIC LIFE LIMITED,Priv - Res Long,"Dir of Adults, Health & Communities",3070.00
TUR090-1740,07/10/2022,TURKISH CYPRIOT COMMUNITY ASSN.,Prv Sctr Care Pkage,"Dir of Adults, Health & Communities",3056.96
434096,07/10/2022,ACHIEVE TOGETHER LIMITED,Priv - Res Long,"Dir of Adults, Health & Communities",3003.12
434096,07/10/2022,CORE PROSPECTS CARE SERVICES LIMITE,Prv Sctr Care Pkage,"Dir of Adults, Health & Communities",2980.00
434096,07/10/2022,MAISON MOTI LTD,Priv - Res Long,"Dir of Adults, Health & Communities",2926.43
8020568,07/10/2022,PROTEST ES LTD,Priv - Sub Contract,Housing Revenue Account,2736.42
434150,07/10/2022,Sharpe Focus Ltd,Prv Sctr Care Pkage,Dir of Children's Services,2735.75
69356,07/10/2022,Martin Arnold Limited,Consultancy,Dir of Finance,2700.00
TUR090-1062465,07/10/2022,TURKISH CYPRIOT COMMUNITY ASSN.,Prv Sctr Care Pkage,"Dir of Adults, Health & Communities",2684.16
434096,07/10/2022,ANGEL SUPPORT LIVING (UK) LIMITED,Priv - Res Long,"Dir of Adults, Health & Communities",2663.60
TUR090-101911,07/10/2022,TURKISH CYPRIOT COMMUNITY ASSN.,Prv Sctr Care Pkage,"Dir of Adults, Health & Communities",2609.60
434096,07/10/2022,BARMAT HEALTHCARE LIMITED,Prv Sctr Care Pkage,"Dir of Adults, Health & Communities",2600.16
434096,07/10/2022,SANDHURST HOUSE LTD,Priv - Res Long,"Dir of Adults, Health & Communities",2600.00
434096,07/10/2022,EBONY HEALTHCARE SERVICES LIMITED,Prv Sctr Care Pkage,"Dir of Adults, Health & Communities",2600.00
434096,07/10/2022,CARETECH COMMUNITY SERVICES LTD,Prv Sctr Care Pkage,"Dir of Adults, Health & Communities",2548.00
41039,07/10/2022,AYERST ENVIRONMENTAL LTD,Priv - Sub Contract,Housing Revenue Account,2520.00
434096,07/10/2022,LANGDON COMMUNITY,Priv - Res Long,"Dir of Adults, Health & Communities",2412.56
434096,07/10/2022,UNIFIED CARE LTD T/A VICTORIA'S CAR,Priv - Res Long,"Dir of Adults, Health & Communities",2200.00
434176,07/10/2022,ALLPAY LTD CHILDREN AND FAMILY,Subsist - SS Clients,Dir of Children's Services,2114.60
434096,07/10/2022,METROPOLITAN HOUSING TRUST LTD,Prv Sctr Care Pkage,"Dir of Adults, Health & Communities",2067.32
TUR090-1071217,07/10/2022,TURKISH CYPRIOT COMMUNITY ASSN.,Prv Sctr Care Pkage,"Dir of Adults, Health & Communities",1966.52
SI-1151,07/10/2022,London Guitar Studio Ltd,Professional Musical Instruments,Dir of Children's Services,1950.00
CCS084-17637,07/10/2022,VINEYARD (UK) SERVICES LTD,Prv Sctr Care Pkage,"Dir of Adults, Health & Communities",1765.44
434096,07/10/2022,Thornleigh Camphill Communities Ltd,Prv Sctr Care Pkage,"Dir of Adults, Health & Communities",1719.68
5107249145,07/10/2022,STATEBOND LTD T/A HORNSEY AGENCIES,Prem - Leasing,"Dir of Adults, Health & Communities",1681.33
5107249141,07/10/2022,Redacted Personal Data,Prem - Leasing,"Dir of Adults, Health & Communities",1681.33
5107249147,07/10/2022,Redacted Personal Data,Prem - Leasing,"Dir of Adults, Health & Communities",1681.33
TUR090-1049905,07/10/2022,TURKISH CYPRIOT COMMUNITY ASSN.,Prv Sctr Care Pkage,"Dir of Adults, Health & Communities",1640.32
434172,07/10/2022,ELLIOT LEIGH TLC LTD,Priv - Lodgings,Dir of Children's Services,1593.60
TUR090-1733657,07/10/2022,TURKISH CYPRIOT COMMUNITY ASSN.,Prv Sctr Care Pkage,"Dir of Adults, Health & Communities",1425.00
5107249154,07/10/2022,Redacted Personal Data,Prem - Leasing,"Dir of Adults, Health & Communities",1408.33
5107249161,07/10/2022,Redacted Personal Data,Prem - Leasing,"Dir of Adults, Health & Communities",1406.47
5107249153,07/10/2022,Redacted Personal Data,Prem - Leasing,"Dir of Adults, Health & Communities",1404.00
5107249149,07/10/2022,CLASS ESTATES LIMITED,Prem - Leasing,"Dir of Adults, Health & Communities",1365.00
5107249151,07/10/2022,CLASS ESTATES LIMITED,Prem - Leasing,"Dir of Adults, Health & Communities",1365.00
5107249162,07/10/2022,LIGHTHOUSE LETTINGS LTD,Prem - Leasing,"Dir of Adults, Health & Communities",1365.00
5107249163,07/10/2022,MILLENIUM INVESTMENT 2000 LTD,Prem - Leasing,"Dir of Adults, Health & Communities",1365.00
5107249142,07/10/2022,Redacted Personal Data,Prem - Leasing,"Dir of Adults, Health & Communities",1365.00
5107249143,07/10/2022,Redacted Personal Data,Prem - Leasing,"Dir of Adults, Health & Communities",1365.00
5107249146,07/10/2022,Redacted Personal Data,Prem - Leasing,"Dir of Adults, Health & Communities",1365.00
5107249166,07/10/2022,Redacted Personal Data,Prem - Leasing,"Dir of Adults, Health & Communities",1365.00
FLX101-1654396,07/10/2022,FLEXSERVE UK LIMITED,Prv Sctr Care Pkage,"Dir of Adults, Health & Communities",1323.00
02PO-A,07/10/2022,Redacted Personal Data,Vol Sec - Add Supp,Dedicated Schools Grant Management,1320.00
TUR090-1501900,07/10/2022,TURKISH CYPRIOT COMMUNITY ASSN.,Prv Sctr Care Pkage,"Dir of Adults, Health & Communities",1304.80
434096,07/10/2022,FORWARD SUPPORT LIMITED,Priv - Res Long,"Dir of Adults, Health & Communities",1289.29
434096,07/10/2022,DE BOHUN CARE LTD,Priv - Res Long,"Dir of Adults, Health & Communities",1224.00
REPLACE148418,07/10/2022,LYNCADE LTD t/a CAVENDISH CARS,Travel Exp - Client,"Dir of Adults, Health & Communities",1180.00
-108474,07/10/2022,DYNAMIC PEOPLE LTD,Prv Sctr Care Pkage,"Dir of Adults, Health & Communities",1155.42
5107249144,07/10/2022,Redacted Personal Data,Prem - Leasing,"Dir of Adults, Health & Communities",1126.66
5107249155,07/10/2022,FALCON PROPERTIES LTD,Prem - Leasing,"Dir of Adults, Health & Communities",1105.00
5107249164,07/10/2022,ORANGE STONE MANAGEMENT LIMITED,Prem - Leasing,"Dir of Adults, Health & Communities",1105.00
5107249148,07/10/2022,Redacted Personal Data,Prem - Leasing,"Dir of Adults, Health & Communities",1105.00
5107249158,07/10/2022,Redacted Personal Data,Prem - Leasing,"Dir of Adults, Health & Communities",1105.00
5107249160,07/10/2022,Redacted Personal Data,Prem - Leasing,"Dir of Adults, Health & Communities",1105.00
36306,07/10/2022,Barrier Air Conditioning Ltd,Priv - Sub Contract,Housing Revenue Account,1100.00
TUR090-33258,07/10/2022,TURKISH CYPRIOT COMMUNITY ASSN.,Prv Sctr Care Pkage,"Dir of Adults, Health & Communities",1099.76
434170,07/10/2022,Redacted Personal Data,LAC - Regular Pay,Dir of Children's Services,1085.00
TUR090-58426,07/10/2022,TURKISH CYPRIOT COMMUNITY ASSN.,Prv Sctr Care Pkage,"Dir of Adults, Health & Communities",1071.80
HFH0040,07/10/2022,Hydro-X Water Treatment,Priv - Sub Contract,Housing Revenue Account,1045.00
00464,07/10/2022,METROPOLITAN CARE SERVICES LIMITED,Priv Sec-- LBH & CCG,"Dir of Adults, Health & Communities",1032.00
434096,07/10/2022,EXPLICIT CARE SOLUTIONS LIMITED,Priv - B & B,"Dir of Adults, Health & Communities",1028.57
329,07/10/2022,DCAS DIRECT PERSONNEL LTD,Prv Sctr Care Pkage,"Dir of Adults, Health & Communities",1016.84
434096,07/10/2022,PCAS KENT LTD,Prv Sctr Care Pkage,"Dir of Adults, Health & Communities",1015.80
00444,07/10/2022,METROPOLITAN CARE SERVICES LIMITED,Prv Sctr Care Pkage,"Dir of Adults, Health & Communities",1008.00
-145868,07/10/2022,DYNAMIC PEOPLE LTD,Prv Sctr Care Pkage,"Dir of Adults, Health & Communities",983.74
434096,07/10/2022,WALSINGHAM SUPPORT,Prv Sctr Care Pkage,"Dir of Adults, Health & Communities",960.00
433751,07/10/2022,Redacted Personal Data,Prv Sctr Care Pkage,"Dir of Adults, Health & Communities",952.92
SIN0003117,07/10/2022,REDEC INDUSTRIAL LTD,Stock - Raw Material,Housing Revenue Account,926.00
TUR090-1552220,07/10/2022,TURKISH CYPRIOT COMMUNITY ASSN.,Prv Sctr Care Pkage,"Dir of Adults, Health & Communities",913.36
EMB058-1034115,07/10/2022,EMBRACE UK COMMUNITY SUPPORT CENTRE,Prv Sctr Care Pkage,"Dir of Adults, Health & Communities",910.44
5107249140,07/10/2022,ADAMS & STYLES,Prem - Leasing,"Dir of Adults, Health & Communities",888.33
5107249150,07/10/2022,CLASS ESTATES LIMITED,Prem - Leasing,"Dir of Adults, Health & Communities",888.33
5107249152,07/10/2022,CLASS ESTATES LIMITED,Prem - Leasing,"Dir of Adults, Health & Communities",888.33
5107249159,07/10/2022,Redacted Personal Data,Prem - Leasing,"Dir of Adults, Health & Communities",888.33
0033-0003356824,07/10/2022,HOWARTH TIMBER & BUILDING SUPPLIES,Stock - Raw Material,Housing Revenue Account,792.00
00446,07/10/2022,METROPOLITAN CARE SERVICES LIMITED,Prv Sctr Care Pkage,"Dir of Adults, Health & Communities",784.00
TUR090-60793,07/10/2022,TURKISH CYPRIOT COMMUNITY ASSN.,Prv Sctr Care Pkage,"Dir of Adults, Health & Communities",782.88
00445,07/10/2022,METROPOLITAN CARE SERVICES LIMITED,Prv Sctr Care Pkage,"Dir of Adults, Health & Communities",688.00
00384,07/10/2022,METROPOLITAN CARE SERVICES LIMITED,Prv Sctr Care Pkage,"Dir of Adults, Health & Communities",684.00
BC10RK-004,07/10/2022,BLISS CARE AND TRAINING LTD,Prv Sctr Care Pkage,"Dir of Adults, Health & Communities",666.50
433639,07/10/2022,Redacted Personal Data,LAC - Regular Pay,Dir of Children's Services,640.15
2018-19.082,07/10/2022,THE MARKFIELD PROJECT LTD,SS Child - Out of Sc,Dir of Children's Services,600.00
TUR090-12642,07/10/2022,TURKISH CYPRIOT COMMUNITY ASSN.,Prv Sctr Care Pkage,"Dir of Adults, Health & Communities",568.52
TUR090-1437336,07/10/2022,TURKISH CYPRIOT COMMUNITY ASSN.,Prv Sctr Care Pkage,"Dir of Adults, Health & Communities",521.92
22256,07/10/2022,PREMIER PRINT & PROMOTIONS LIMITED,Printing - Internal,"Dir of  Culture, Strategy & Engagement",520.00
2018-19.184,07/10/2022,THE MARKFIELD PROJECT LTD,SS Child - Out of Sc,Dir of Children's Services,500.00
27067,07/10/2022,CLASSIC SECURITY SOLUTIONS,Priv - Sub Contract,Housing Revenue Account,495.00
22987,07/10/2022,PATIENT TRANSPORT (UK) LTD,Travel Exp - Client,"Dir of Adults, Health & Communities",480.00
434096,07/10/2022,SANCTUARY HOUSING ASSOCIATION,Vol Sect - Care Pk,"Dir of Adults, Health & Communities",425.00
PRE016-119964A,07/10/2022,PRIMERA ASSISTED LIVING LIMITED T/A,Prv Sctr Care Pkage,"Dir of Adults, Health & Communities",401.31
2018-19.239,07/10/2022,THE MARKFIELD PROJECT LTD,SS Child - Out of Sc,Dir of Children's Services,350.00
433531,07/10/2022,Redacted Personal Data,Prv Sctr Care Pkage,"Dir of Adults, Health & Communities",328.35
00384,07/10/2022,METROPOLITAN CARE SERVICES LIMITED,Priv Sec-- LBH & CCG,"Dir of Adults, Health & Communities",324.00
22255,07/10/2022,PREMIER PRINT & PROMOTIONS LIMITED,Printing - Internal,"Dir of  Culture, Strategy & Engagement",315.00
TDCGG270922,07/10/2022,GRANT PAYMENTS,Grant - Vol Org Sals,"Dir of Adults, Health & Communities",274.00
2/LH/SEPT2022,07/10/2022,GRANT PAYMENTS,Trans Sch - Fr Home,Dir of Children's Services,269.70
16403,07/10/2022,JUST DISPLAYS LTD,Printing - Internal,"Dir of  Culture, Strategy & Engagement",264.00
EMB058,07/10/2022,EMBRACE UK COMMUNITY SUPPORT CENTRE,Prv Sctr Care Pkage,"Dir of Adults, Health & Communities",256.27
TDCHB270922,07/10/2022,GRANT PAYMENTS,Grant - Vol Org Sals,"Dir of Adults, Health & Communities",250.00
00467,07/10/2022,METROPOLITAN CARE SERVICES LIMITED,Priv Sec-- LBH & CCG,"Dir of Adults, Health & Communities",232.00
PRE016-1084091A,07/10/2022,PRIMERA ASSISTED LIVING LIMITED T/A,Prv Sctr Care Pkage,"Dir of Adults, Health & Communities",220.50
0734AMU918,07/10/2022,TRAVIS PERKINS TRADING CO LTD,"Material - Purch,Rep",Housing Revenue Account,203.38
15149,07/10/2022,STORE BOX SELF STORAGE LIMITED,Fees - Storage,"Dir of Adults, Health & Communities",180.00
15592,07/10/2022,STORE BOX SELF STORAGE LIMITED,Fees - Storage,"Dir of Adults, Health & Communities",180.00
0734AMU276,07/10/2022,TRAVIS PERKINS TRADING CO LTD,Stock - Raw Material,Housing Revenue Account,169.80
TUR090-1401736,07/10/2022,TURKISH CYPRIOT COMMUNITY ASSN.,Prv Sctr Care Pkage,"Dir of Adults, Health & Communities",167.76
434096,07/10/2022,HEADWAY SUPPORT HOMES LTD,Subsist - SS Clients,"Dir of Adults, Health & Communities",160.00
434170,07/10/2022,Redacted Personal Data,LAC - Regular Pay,Dir of Children's Services,151.90
00373,07/10/2022,METROPOLITAN CARE SERVICES LIMITED,Prv Sctr Care Pkage,"Dir of Adults, Health & Communities",144.00
INV-2274,07/10/2022,ELEGANCE FURNITURE SUPPLIES LTD,Domestic Furniture,Housing Revenue Account,110.00
1007127,07/10/2022,ASKEWS & HOLTS LIBRARY SERVICES LTD,Library Books,"Dir of  Culture, Strategy & Engagement",96.44
-110797,07/10/2022,DYNAMIC PEOPLE LTD,Prv Sctr Care Pkage,"Dir of Adults, Health & Communities",82.53
0734AMU279,07/10/2022,TRAVIS PERKINS TRADING CO LTD,"Material - Purch,Rep",Housing Revenue Account,79.98
0734AMU277,07/10/2022,TRAVIS PERKINS TRADING CO LTD,"Material - Purch,Rep",Housing Revenue Account,69.54
434170,07/10/2022,Redacted Personal Data,Travel Exp - Client,Dir of Children's Services,66.49
0734AMU686,07/10/2022,TRAVIS PERKINS TRADING CO LTD,"Material - Purch,Rep",Housing Revenue Account,65.58
381843,07/10/2022,PROTECTIVE WEAR SUPPLIES LTD T/A PW,Stock - Raw Material,Housing Revenue Account,45.19
434176,07/10/2022,ALLPAY LTD CHILDREN AND FAMILY,Travel Exp - Client,Dir of Children's Services,43.50
0734AMU688,07/10/2022,TRAVIS PERKINS TRADING CO LTD,"Material - Purch,Rep",Housing Revenue Account,29.49
434170,07/10/2022,Redacted Personal Data,LAC - Carer Expense,Dir of Children's Services,12.50
433639,07/10/2022,Redacted Personal Data,LAC - Carer Expense,Dir of Children's Services,10.00
1006304,07/10/2022,ASKEWS & HOLTS LIBRARY SERVICES LTD,Library -CentralFund,"Dir of  Culture, Strategy & Engagement",6.66
432912,07/10/2022,Redacted Personal Data,LAC - Regular Pay,Dir of Children's Services,-965.65
434090,07/10/2022,RIDGEVIEW HEALTHCARE LIMITED,Priv - Res Short,"Dir of Adults, Health & Communities",-1162.00
433232,07/10/2022,Redacted Personal Data,Prv Sctr Care Pkage,"Dir of Adults, Health & Communities",-1172.68
REVERSE148418,07/10/2022,LYNCADE LTD t/a CAVENDISH CARS,Travel Exp - Client,"Dir of Adults, Health & Communities",-1180.00
434138,07/10/2022,DIRECT CARE LTD,Priv - Mother & Baby,Dir of Children's Services,-1235.71
2209/036,10/10/2022,Mulalley and Company LTD,Roads,Dir of Finance,709786.68
434192,10/10/2022,MARCUS & MARCUS LTD,Prv Sctr Care Pkage,"Dir of Adults, Health & Communities",157992.86
434190,10/10/2022,EXCELLENCE CARE LTD,Prv Sctr Care Pkage,"Dir of Adults, Health & Communities",79665.00
N0050102,10/10/2022,CHELSEA & WESTMINSTER HOSPITAL NHS,Public Health,"Dir of Adults, Health & Communities",56489.89
N0050386,10/10/2022,CHELSEA & WESTMINSTER HOSPITAL NHS,Public Health,"Dir of Adults, Health & Communities",56489.89
224822,10/10/2022,RIDGE AND PARTNERS LLP,Consultancy,Dir of Finance,33313.80
HAZCPQ1.2022.23,10/10/2022,GRANT PAYMENTS,Fees - Project Mgmnt,Dir of Placemaking & Housing,29377.00
16540838,10/10/2022,TAVISTOCK & PORTMAN NHS FT,Vol Sec -  Day Place,Dedicated Schools Grant Management,23578.00
3326022,10/10/2022,GUY'S AND ST THOMAS' NHS,Public Health,"Dir of Adults, Health & Communities",23303.71
3326244,10/10/2022,GUY'S AND ST THOMAS' NHS,Public Health,"Dir of Adults, Health & Communities",23303.71
61312354,10/10/2022,HOMERTON UNI HOSP NHS FOUNDATION TR,Public Health,"Dir of Adults, Health & Communities",20978.66
61312133,10/10/2022,HOMERTON UNI HOSP NHS FOUNDATION TR,Public Health,"Dir of Adults, Health & Communities",19558.33
1547,10/10/2022,Easy Steps Limited,Vol Sec -  Day Place,Dedicated Schools Grant Management,16500.00
SI007678,10/10/2022,ALTAIR CONSULTANCY AND ADVISORY SER,Business,Housing Revenue Account,11467.87
SI007682,10/10/2022,ALTAIR CONSULTANCY AND ADVISORY SER,Property,Housing Revenue Account,11142.90
UNI093-1515533-A,10/10/2022,UNICARE LONDON LIMITED,Prv Sctr Care Pkage,"Dir of Adults, Health & Communities",10736.64
UNI093-1515533-B,10/10/2022,UNICARE LONDON LIMITED,Prv Sctr Care Pkage,"Dir of Adults, Health & Communities",10736.64
UNI093-1515533-D,10/10/2022,UNICARE LONDON LIMITED,Prv Sctr Care Pkage,"Dir of Adults, Health & Communities",10382.48
16954,10/10/2022,The Fulker Consultancy Limited,Consultancy,Dir of Finance,9675.67
0000017034,10/10/2022,FUSION LIFESTYLE,Public Health,"Dir of Adults, Health & Communities",9444.00
808552/DW,10/10/2022,Ingleton Wood LLP,Buildings,Dir of Finance,8300.00
LEG/HA/68547/HXB,10/10/2022,COMPENSATION CLAIMS & LEGAL COSTS,Exp - Compensation,Housing Revenue Account,6750.00
UNI093-1515533-C,10/10/2022,UNICARE LONDON LIMITED,Prv Sctr Care Pkage,"Dir of Adults, Health & Communities",5368.32
SI019422,10/10/2022,DSI BILLING SERVICES,Printing,"Dir of  Culture, Strategy & Engagement",5308.35
474966,10/10/2022,BARTS HEALTH NHS TRUST,Public Health,"Dir of Adults, Health & Communities",5182.95
491,10/10/2022,DCAS DIRECT PERSONNEL LTD,Prv Sctr Care Pkage,"Dir of Adults, Health & Communities",4547.50
3327598,10/10/2022,GUY'S AND ST THOMAS' NHS,Public Health,"Dir of Adults, Health & Communities",4511.68
80946,10/10/2022,MUNNS LTD,Priv - Sub Contract,Housing Revenue Account,3664.00
16237,10/10/2022,Michael Edwards Consultants Limited,Business,Dir of Finance,3318.52
01,10/10/2022,ONE TIME,Fees - Consultant,"Dir of  Culture, Strategy & Engagement",3256.00
16239,10/10/2022,Michael Edwards Consultants Limited,Fees - Employers Age,Dir of Finance,3062.50
3951,10/10/2022,Westworks procurement ltd,Business,Dir of Finance,3000.00
559533.001/MR G,10/10/2022,COMPENSATION CLAIMS & LEGAL COSTS,Fees Legal External,Housing Revenue Account,3000.00
DB69265,10/10/2022,DIRECT BOOT AND SHOE SUPPLIES LTD,Protective,Dir of Environment & Neighbourhoods,2902.00
ACO100-93120,10/10/2022,ACORN DAY OPPORTUNITIES,Prv Sctr Care Pkage,"Dir of Adults, Health & Communities",2880.00
ACO100-89709,10/10/2022,ACORN DAY OPPORTUNITIES,Prv Sctr Care Pkage,"Dir of Adults, Health & Communities",2550.00
ACO100-71399,10/10/2022,ACORN DAY OPPORTUNITIES,Prv Sctr Care Pkage,"Dir of Adults, Health & Communities",2108.16
ACO100-1543883,10/10/2022,ACORN DAY OPPORTUNITIES,Prv Sctr Care Pkage,"Dir of Adults, Health & Communities",2100.00
5843/106,10/10/2022,Gunite (Eastern) Ltd,Buildings,Dir of Finance,1876.68
SIN2209CDL01992,10/10/2022,CLOUD DIALOGS LTD,Services,"Dir of  Culture, Strategy & Engagement",1806.00
ACO100-34550,10/10/2022,ACORN DAY OPPORTUNITIES,Prv Sctr Care Pkage,"Dir of Adults, Health & Communities",1800.00
ACO100-41247,10/10/2022,ACORN DAY OPPORTUNITIES,Prv Sctr Care Pkage,"Dir of Adults, Health & Communities",1800.00
ACO100-5996,10/10/2022,ACORN DAY OPPORTUNITIES,Prv Sctr Care Pkage,"Dir of Adults, Health & Communities",1800.00
ACO100-92148,10/10/2022,ACORN DAY OPPORTUNITIES,Prv Sctr Care Pkage,"Dir of Adults, Health & Communities",1760.00
5107249244,10/10/2022,Redacted Personal Data,Prem - Leasing,"Dir of Adults, Health & Communities",1684.02
5107249213,10/10/2022,LAKEPOINT ESTATES LTD,Prem - Leasing,"Dir of Adults, Health & Communities",1681.33
5107249261,10/10/2022,Redacted Personal Data,Prem - Leasing,"Dir of Adults, Health & Communities",1681.33
5107249278,10/10/2022,Redacted Personal Data,Prem - Leasing,"Dir of Adults, Health & Communities",1681.33
5107249291,10/10/2022,Redacted Personal Data,Prem - Leasing,"Dir of Adults, Health & Communities",1681.33
5107249251,10/10/2022,Redacted Personal Data,Prem - Leasing,"Dir of Adults, Health & Communities",1646.66
ACO100-50931,10/10/2022,ACORN DAY OPPORTUNITIES,Prv Sctr Care Pkage,"Dir of Adults, Health & Communities",1620.00
ACO100-121215,10/10/2022,ACORN DAY OPPORTUNITIES,Priv - Contractor,"Dir of Adults, Health & Communities",1500.00
5107249239,10/10/2022,STATEBOND LTD T/A HORNSEY AGENCIES,Prem - Leasing,"Dir of Adults, Health & Communities",1473.33
5107249240,10/10/2022,STATEBOND LTD T/A HORNSEY AGENCIES,Prem - Leasing,"Dir of Adults, Health & Communities",1473.33
5107249245,10/10/2022,FALCON PROPERTIES LTD,Prem - Leasing,"Dir of Adults, Health & Communities",1473.33
5107249264,10/10/2022,PROPERTYNET (UK) LIMITED,Prem - Leasing,"Dir of Adults, Health & Communities",1473.33
451,10/10/2022,DCAS DIRECT PERSONNEL LTD,Priv Sec-- LBH & CCG,"Dir of Adults, Health & Communities",1464.75
5107249229,10/10/2022,Redacted Personal Data,Prem - Leasing,"Dir of Adults, Health & Communities",1430.00
5107249285,10/10/2022,Redacted Personal Data,Prem - Leasing,"Dir of Adults, Health & Communities",1404.00
5107249223,10/10/2022,HOMELINK RESIDENTIAL LIMITED,Prem - Leasing,"Dir of Adults, Health & Communities",1365.00
5107249231,10/10/2022,ADAMS & STYLES,Prem - Leasing,"Dir of Adults, Health & Communities",1365.00
5107249269,10/10/2022,MASTERFIELD PROPERTIES LTD,Prem - Leasing,"Dir of Adults, Health & Communities",1365.00
5107249270,10/10/2022,MASTERFIELD PROPERTIES LTD,Prem - Leasing,"Dir of Adults, Health & Communities",1365.00
5107249272,10/10/2022,MASTERFIELD PROPERTIES LTD,Prem - Leasing,"Dir of Adults, Health & Communities",1365.00
5107249274,10/10/2022,MASTERFIELD PROPERTIES LTD,Prem - Leasing,"Dir of Adults, Health & Communities",1365.00
5107249214,10/10/2022,Redacted Personal Data,Prem - Leasing,"Dir of Adults, Health & Communities",1365.00
5107249219,10/10/2022,Redacted Personal Data,Prem - Leasing,"Dir of Adults, Health & Communities",1365.00
5107249221,10/10/2022,Redacted Personal Data,Prem - Leasing,"Dir of Adults, Health & Communities",1365.00
5107249225,10/10/2022,Redacted Personal Data,Prem - Leasing,"Dir of Adults, Health & Communities",1365.00
5107249228,10/10/2022,Redacted Personal Data,Prem - Leasing,"Dir of Adults, Health & Communities",1365.00
5107249246,10/10/2022,Redacted Personal Data,Prem - Leasing,"Dir of Adults, Health & Communities",1365.00
5107249250,10/10/2022,Redacted Personal Data,Prem - Leasing,"Dir of Adults, Health & Communities",1365.00
5107249257,10/10/2022,Redacted Personal Data,Prem - Leasing,"Dir of Adults, Health & Communities",1365.00
5107249260,10/10/2022,Redacted Personal Data,Prem - Leasing,"Dir of Adults, Health & Communities",1365.00
5107249282,10/10/2022,Redacted Personal Data,Prem - Leasing,"Dir of Adults, Health & Communities",1365.00
5107249284,10/10/2022,Redacted Personal Data,Prem - Leasing,"Dir of Adults, Health & Communities",1365.00
5107249295,10/10/2022,Redacted Personal Data,Prem - Leasing,"Dir of Adults, Health & Communities",1347.66
5107249243,10/10/2022,Redacted Personal Data,Prem - Leasing,"Dir of Adults, Health & Communities",1334.66
5107249283,10/10/2022,UKAC LIMITED,Prem - Leasing,"Dir of Adults, Health & Communities",1300.00
5107249294,10/10/2022,PROPERTYNET (UK) LIMITED,Prem - Leasing,"Dir of Adults, Health & Communities",1300.00
5107249241,10/10/2022,Redacted Personal Data,Prem - Leasing,"Dir of Adults, Health & Communities",1300.00
5107249249,10/10/2022,Redacted Personal Data,Prem - Leasing,"Dir of Adults, Health & Communities",1300.00
5107249227,10/10/2022,Redacted Personal Data,Prem - Leasing,"Dir of Adults, Health & Communities",1243.58
5107249271,10/10/2022,MASTERFIELD PROPERTIES LTD,Prem - Leasing,"Dir of Adults, Health & Communities",1215.02
5107249273,10/10/2022,MASTERFIELD PROPERTIES LTD,Prem - Leasing,"Dir of Adults, Health & Communities",1215.02
5107249277,10/10/2022,MASTERFIELD PROPERTIES LTD,Prem - Leasing,"Dir of Adults, Health & Communities",1215.02
ACO100-86544,10/10/2022,ACORN DAY OPPORTUNITIES,Prv Sctr Care Pkage,"Dir of Adults, Health & Communities",1200.00
5107249238,10/10/2022,STATEBOND LTD T/A HORNSEY AGENCIES,Prem - Leasing,"Dir of Adults, Health & Communities",1191.66
6549599,10/10/2022,EASTERN SHIRES PURCHASING ORGANISAT,Soft Furnishings,Dir of Finance,1167.00
5107249224,10/10/2022,Redacted Personal Data,Prem - Leasing,"Dir of Adults, Health & Communities",1139.66
PG6110178,10/10/2022,THE PATHOLOGY GROUP,Forensic & Laboratory,Assistant Dir Corporate Governance,1125.00
5107249217,10/10/2022,VASTCARE LIMITED,Prem - Leasing,"Dir of Adults, Health & Communities",1106.47
5107249218,10/10/2022,VASTCARE LIMITED,Prem - Leasing,"Dir of Adults, Health & Communities",1106.47
5107249234,10/10/2022,ADAMS & STYLES,Prem - Leasing,"Dir of Adults, Health & Communities",1106.47
5107249230,10/10/2022,SUPER PROPERTY MANAGEMENT LTD,Prem - Leasing,"Dir of Adults, Health & Communities",1105.00
5107249232,10/10/2022,ADAMS & STYLES,Prem - Leasing,"Dir of Adults, Health & Communities",1105.00
5107249233,10/10/2022,ADAMS & STYLES,Prem - Leasing,"Dir of Adults, Health & Communities",1105.00
5107249235,10/10/2022,ADAMS & STYLES,Prem - Leasing,"Dir of Adults, Health & Communities",1105.00
5107249255,10/10/2022,ORANGE STONE MANAGEMENT LIMITED,Prem - Leasing,"Dir of Adults, Health & Communities",1105.00
5107249290,10/10/2022,ORANGE STONE MANAGEMENT LIMITED,Prem - Leasing,"Dir of Adults, Health & Communities",1105.00
5107249220,10/10/2022,Redacted Personal Data,Prem - Leasing,"Dir of Adults, Health & Communities",1105.00
5107249226,10/10/2022,Redacted Personal Data,Prem - Leasing,"Dir of Adults, Health & Communities",1105.00
5107249236,10/10/2022,Redacted Personal Data,Prem - Leasing,"Dir of Adults, Health & Communities",1105.00
5107249237,10/10/2022,Redacted Personal Data,Prem - Leasing,"Dir of Adults, Health & Communities",1105.00
5107249289,10/10/2022,Redacted Personal Data,Prem - Leasing,"Dir of Adults, Health & Communities",1105.00
5107249254,10/10/2022,MORINA PROPERTY LIMITED,Prem - Leasing,"Dir of Adults, Health & Communities",1050.01
5107249288,10/10/2022,Redacted Personal Data,Prem - Leasing,"Dir of Adults, Health & Communities",1048.66
5107249247,10/10/2022,Redacted Personal Data,Prem - Leasing,"Dir of Adults, Health & Communities",1040.00
5107249286,10/10/2022,SUREKEY LTD,Prem - Leasing,"Dir of Adults, Health & Communities",1018.33
ACO100-2036,10/10/2022,ACORN DAY OPPORTUNITIES,Prv Sctr Care Pkage,"Dir of Adults, Health & Communities",990.00
ACO100-1032934,10/10/2022,ACORN DAY OPPORTUNITIES,Prv Sctr Care Pkage,"Dir of Adults, Health & Communities",960.00
434182,10/10/2022,VERAA 7 HOME CARE SERVICES LTD,Priv - Contractor,Dir of Children's Services,940.00
GRA073-1544244,10/10/2022,GRACE,Vol Sect - Care Pk,"Dir of Adults, Health & Communities",891.80
GRA073-1583636,10/10/2022,GRACE,Vol Sect - Care Pk,"Dir of Adults, Health & Communities",891.80
5107249216,10/10/2022,Redacted Personal Data,Prem - Leasing,"Dir of Adults, Health & Communities",891.23
5107249242,10/10/2022,CLASS ESTATES LIMITED,Prem - Leasing,"Dir of Adults, Health & Communities",888.33
5107249256,10/10/2022,ORANGE STONE MANAGEMENT LIMITED,Prem - Leasing,"Dir of Adults, Health & Communities",888.33
11-172300,10/10/2022,TROWERS & HAMLINS LLP,General Support,Housing Revenue Account,875.00
15CS,10/10/2022,OLIVER LANDON LTD,Prv Sctr Care Pkage,"Dir of Adults, Health & Communities",868.00
5107249275,10/10/2022,MASTERFIELD PROPERTIES LTD,Prem - Leasing,"Dir of Adults, Health & Communities",866.58
5107249276,10/10/2022,MASTERFIELD PROPERTIES LTD,Prem - Leasing,"Dir of Adults, Health & Communities",866.58
ACO100-106277,10/10/2022,ACORN DAY OPPORTUNITIES,Prv Sctr Care Pkage,"Dir of Adults, Health & Communities",840.00
HH/226/22,10/10/2022,AMES GLASS LTD,"Material - Purch,Rep",Housing Revenue Account,829.39
100128.001/SS/CM,10/10/2022,COMPENSATION CLAIMS & LEGAL COSTS,Fees Legal External,Housing Revenue Account,800.00
61312154,10/10/2022,HOMERTON UNI HOSP NHS FOUNDATION TR,Public Health,"Dir of Adults, Health & Communities",783.47
ACO100-2158,10/10/2022,ACORN DAY OPPORTUNITIES,Prv Sctr Care Pkage,"Dir of Adults, Health & Communities",771.12
755053,10/10/2022,J.A. STEEL AND SON LTD,Removals,Housing Revenue Account,770.00
00465,10/10/2022,METROPOLITAN CARE SERVICES LIMITED,Priv Sec-- LBH & CCG,"Dir of Adults, Health & Communities",744.00
ACO100-1090,10/10/2022,ACORN DAY OPPORTUNITIES,Prv Sctr Care Pkage,"Dir of Adults, Health & Communities",744.00
ACO100-157154,10/10/2022,ACORN DAY OPPORTUNITIES,Prv Sctr Care Pkage,"Dir of Adults, Health & Communities",744.00
ACO100-45230,10/10/2022,ACORN DAY OPPORTUNITIES,Prv Sctr Care Pkage,"Dir of Adults, Health & Communities",720.00
434182,10/10/2022,KENT COUNTY COUNCIL,Priv - Contractor,Dir of Children's Services,603.23
ACO100-15982,10/10/2022,ACORN DAY OPPORTUNITIES,Prv Sctr Care Pkage,"Dir of Adults, Health & Communities",600.00
ACO100-84333,10/10/2022,ACORN DAY OPPORTUNITIES,Prv Sctr Care Pkage,"Dir of Adults, Health & Communities",600.00
HH/221/22,10/10/2022,AMES GLASS LTD,"Material - Purch,Rep",Housing Revenue Account,550.17
GRA073-1067429,10/10/2022,GRACE,Vol Sect - Care Pk,"Dir of Adults, Health & Communities",535.08
GRA073-1677564,10/10/2022,GRACE,Vol Sect - Care Pk,"Dir of Adults, Health & Communities",535.08
GRA073-175437,10/10/2022,GRACE,Vol Sect - Care Pk,"Dir of Adults, Health & Communities",535.08
GRA073-34534,10/10/2022,GRACE,Vol Sect - Care Pk,"Dir of Adults, Health & Communities",535.08
GRA073-91827,10/10/2022,GRACE,Vol Sect - Care Pk,"Dir of Adults, Health & Communities",535.08
11253,10/10/2022,BRIMALK LTD,Services,"Dir of  Culture, Strategy & Engagement",485.00
50341,10/10/2022,WINCHMORE TUTORS LTD,Vol Sec - Add Supp,Dedicated Schools Grant Management,480.00
6248,10/10/2022,ALLFORCARE,Prv Sctr Care Pkage,"Dir of Adults, Health & Communities",477.92
434182,10/10/2022,QUALIFIED CARE RESIDENTS SERVICES L,Priv - Contractor,Dir of Children's Services,470.00
434182,10/10/2022,WELLCARE FOSTERING SERVICES LIMITED,LAC - Regular Pay,Dir of Children's Services,405.00
GRA073-86335,10/10/2022,GRACE,Vol Sect - Care Pk,"Dir of Adults, Health & Communities",401.31
HH/227/22,10/10/2022,AMES GLASS LTD,"Material - Purch,Rep",Housing Revenue Account,386.38
N0050747,10/10/2022,CHELSEA & WESTMINSTER HOSPITAL NHS,Public Health,"Dir of Adults, Health & Communities",373.22
HC/237/22,10/10/2022,AMES GLASS LTD,"Material - Purch,Rep",Housing Revenue Account,365.60
GRA073-1024410,10/10/2022,GRACE,Vol Sect - Care Pk,"Dir of Adults, Health & Communities",356.72
GRA073-1058383,10/10/2022,GRACE,Vol Sect - Care Pk,"Dir of Adults, Health & Communities",356.72
GRA073-1072900,10/10/2022,GRACE,Vol Sect - Care Pk,"Dir of Adults, Health & Communities",356.72
GRA073-1398016,10/10/2022,GRACE,Vol Sect - Care Pk,"Dir of Adults, Health & Communities",356.72
GRA073-145868,10/10/2022,GRACE,Vol Sect - Care Pk,"Dir of Adults, Health & Communities",356.72
GRA073-1494997,10/10/2022,GRACE,Vol Sect - Care Pk,"Dir of Adults, Health & Communities",356.72
GRA073-1506186,10/10/2022,GRACE,Vol Sect - Care Pk,"Dir of Adults, Health & Communities",356.72
GRA073-1538440,10/10/2022,GRACE,Vol Sect - Care Pk,"Dir of Adults, Health & Communities",356.72
GRA073-1594949,10/10/2022,GRACE,Vol Sect - Care Pk,"Dir of Adults, Health & Communities",356.72
GRA073-1617434,10/10/2022,GRACE,Vol Sect - Care Pk,"Dir of Adults, Health & Communities",356.72
GRA073-1635728,10/10/2022,GRACE,Vol Sect - Care Pk,"Dir of Adults, Health & Communities",356.72
GRA073-1740863,10/10/2022,GRACE,Vol Sect - Care Pk,"Dir of Adults, Health & Communities",356.72
GRA073-17832,10/10/2022,GRACE,Vol Sect - Care Pk,"Dir of Adults, Health & Communities",356.72
GRA073-21633,10/10/2022,GRACE,Vol Sect - Care Pk,"Dir of Adults, Health & Communities",356.72
GRA073-38198,10/10/2022,GRACE,Vol Sect - Care Pk,"Dir of Adults, Health & Communities",356.72
55487,10/10/2022,ARTISAN LITHO LMITED,Printing - Internal,"Dir of  Culture, Strategy & Engagement",337.00
INV-1316,10/10/2022,Mindful Education Ltd,Adult & Further Education Services,Dir of Placemaking & Housing,331.02
HH/222/22,10/10/2022,AMES GLASS LTD,"Material - Purch,Rep",Housing Revenue Account,314.37
HH/212/22,10/10/2022,AMES GLASS LTD,"Material - Purch,Rep",Housing Revenue Account,301.48
434182,10/10/2022,RYANCARE FOSTERING LTD,Priv - Contractor,Dir of Children's Services,279.15
HC/238/22,10/10/2022,AMES GLASS LTD,"Material - Purch,Rep",Housing Revenue Account,276.43
GRA073-1019544,10/10/2022,GRACE,Vol Sect - Care Pk,"Dir of Adults, Health & Communities",267.54
GRA073-1522038,10/10/2022,GRACE,Vol Sect - Care Pk,"Dir of Adults, Health & Communities",267.54
INV-1314,10/10/2022,Mindful Education Ltd,Adult & Further Education Services,Dir of Placemaking & Housing,251.45
451,10/10/2022,DCAS DIRECT PERSONNEL LTD,Prv Sctr Care Pkage,"Dir of Adults, Health & Communities",244.13
FLX100B-1880,10/10/2022,FLEXSERVE UK LIMITED,Prv Sctr Care Pkage,"Dir of Adults, Health & Communities",218.88
HC/234/22,10/10/2022,AMES GLASS LTD,"Material - Purch,Rep",Housing Revenue Account,213.15
GRA073-1083023,10/10/2022,GRACE,Vol Sect - Care Pk,"Dir of Adults, Health & Communities",178.36
GRA073-1364276,10/10/2022,GRACE,Vol Sect - Care Pk,"Dir of Adults, Health & Communities",178.36
GRA073-1370456,10/10/2022,GRACE,Vol Sect - Care Pk,"Dir of Adults, Health & Communities",178.36
GRA073-1433936,10/10/2022,GRACE,Vol Sect - Care Pk,"Dir of Adults, Health & Communities",178.36
GRA073-1500146,10/10/2022,GRACE,Vol Sect - Care Pk,"Dir of Adults, Health & Communities",178.36
GRA073-1510050,10/10/2022,GRACE,Vol Sect - Care Pk,"Dir of Adults, Health & Communities",178.36
GRA073-1548517,10/10/2022,GRACE,Vol Sect - Care Pk,"Dir of Adults, Health & Communities",178.36
GRA073-156794,10/10/2022,GRACE,Vol Sect - Care Pk,"Dir of Adults, Health & Communities",178.36
GRA073-66511,10/10/2022,GRACE,Vol Sect - Care Pk,"Dir of Adults, Health & Communities",178.36
GRA073-82062,10/10/2022,GRACE,Vol Sect - Care Pk,"Dir of Adults, Health & Communities",178.36
GRA073-8418,10/10/2022,GRACE,Vol Sect - Care Pk,"Dir of Adults, Health & Communities",178.36
HH/220/22,10/10/2022,AMES GLASS LTD,"Material - Purch,Rep",Housing Revenue Account,178.00
HH/215/22,10/10/2022,AMES GLASS LTD,"Material - Purch,Rep",Housing Revenue Account,165.86
HH/216/22,10/10/2022,AMES GLASS LTD,"Material - Purch,Rep",Housing Revenue Account,161.57
434182,10/10/2022,SUNRISE EY AND CHILDC LTD,Prv Sctr Care Pkage,Dir of Children's Services,157.50
HH/230/22,10/10/2022,AMES GLASS LTD,"Material - Purch,Rep",Housing Revenue Account,149.19
HH/218/22,10/10/2022,AMES GLASS LTD,"Material - Purch,Rep",Housing Revenue Account,148.67
HH/213/22,10/10/2022,AMES GLASS LTD,"Material - Purch,Rep",Housing Revenue Account,144.70
FLX100B-1552901,10/10/2022,FLEXSERVE UK LIMITED,Prv Sctr Care Pkage,"Dir of Adults, Health & Communities",135.66
HH/224/22,10/10/2022,AMES GLASS LTD,"Material - Purch,Rep",Housing Revenue Account,128.73
WM4849,10/10/2022,Walker Management Limited,Business,Dir of Finance,126.34
2022-23#59,10/10/2022,ONE TIME,Fees - Consultant,"Dir of Adults, Health & Communities",125.00
FLX100B-170900,10/10/2022,FLEXSERVE UK LIMITED,Prv Sctr Care Pkage,"Dir of Adults, Health & Communities",119.70
FLX100B-1619724,10/10/2022,FLEXSERVE UK LIMITED,Prv Sctr Care Pkage,"Dir of Adults, Health & Communities",109.44
HC/233/22,10/10/2022,AMES GLASS LTD,"Material - Purch,Rep",Housing Revenue Account,106.19
FLX100B-106277,10/10/2022,FLEXSERVE UK LIMITED,Prv Sctr Care Pkage,"Dir of Adults, Health & Communities",102.60
50010,10/10/2022,WINCHMORE TUTORS LTD,Vol Sec - Add Supp,Dedicated Schools Grant Management,100.00
FLX100B-1055996,10/10/2022,FLEXSERVE UK LIMITED,Prv Sctr Care Pkage,"Dir of Adults, Health & Communities",98.98
755212,10/10/2022,J.A. STEEL AND SON LTD,Removals,Housing Revenue Account,96.00
IW06390805,10/10/2022,NORTHGATE VEHICLE HIRE LTD,Fuel,Housing Revenue Account,92.50
IW06391984,10/10/2022,NORTHGATE VEHICLE HIRE LTD,Fuel,Housing Revenue Account,92.50
IW06392280,10/10/2022,NORTHGATE VEHICLE HIRE LTD,Fuel,Housing Revenue Account,92.50
IW06392291,10/10/2022,NORTHGATE VEHICLE HIRE LTD,Fuel,Housing Revenue Account,92.50
IW06396388,10/10/2022,NORTHGATE VEHICLE HIRE LTD,Fuel,Housing Revenue Account,92.50
IW06396432,10/10/2022,NORTHGATE VEHICLE HIRE LTD,Fuel,Housing Revenue Account,92.50
IW06400215,10/10/2022,NORTHGATE VEHICLE HIRE LTD,Fuel,Housing Revenue Account,92.50
HH/229/22,10/10/2022,AMES GLASS LTD,"Material - Purch,Rep",Housing Revenue Account,89.51
HH/232/22,10/10/2022,AMES GLASS LTD,"Material - Purch,Rep",Housing Revenue Account,72.17
434182,10/10/2022,PLACE OF PROGRESS LTD,SS Children- DayCare,Dir of Children's Services,68.40
HC/236/22,10/10/2022,AMES GLASS LTD,"Material - Purch,Rep",Housing Revenue Account,61.54
JG908040A,10/10/2022,GRANT PAYMENTS,School - Clothing,"Dir of  Culture, Strategy & Engagement",60.00
JJ178608A,10/10/2022,GRANT PAYMENTS,School - Clothing,"Dir of  Culture, Strategy & Engagement",60.00
JJ891337B,10/10/2022,GRANT PAYMENTS,School - Clothing,"Dir of  Culture, Strategy & Engagement",60.00
JK801268A,10/10/2022,GRANT PAYMENTS,School - Clothing,"Dir of  Culture, Strategy & Engagement",60.00
JK925428A,10/10/2022,GRANT PAYMENTS,School - Clothing,"Dir of  Culture, Strategy & Engagement",60.00
JM682765B,10/10/2022,GRANT PAYMENTS,School - Clothing,"Dir of  Culture, Strategy & Engagement",60.00
JW146235D,10/10/2022,GRANT PAYMENTS,School - Clothing,"Dir of  Culture, Strategy & Engagement",60.00
JW988933B,10/10/2022,GRANT PAYMENTS,School - Clothing,"Dir of  Culture, Strategy & Engagement",60.00
NR235503C,10/10/2022,GRANT PAYMENTS,School - Clothing,"Dir of  Culture, Strategy & Engagement",60.00
PE042649B,10/10/2022,GRANT PAYMENTS,School - Clothing,"Dir of  Culture, Strategy & Engagement",60.00
PG527624A,10/10/2022,GRANT PAYMENTS,School - Clothing,"Dir of  Culture, Strategy & Engagement",60.00
PW114510C,10/10/2022,GRANT PAYMENTS,School - Clothing,"Dir of  Culture, Strategy & Engagement",60.00
PW667265B,10/10/2022,GRANT PAYMENTS,School - Clothing,"Dir of  Culture, Strategy & Engagement",60.00
PW791853B,10/10/2022,GRANT PAYMENTS,School - Clothing,"Dir of  Culture, Strategy & Engagement",60.00
PX165541B,10/10/2022,GRANT PAYMENTS,School - Clothing,"Dir of  Culture, Strategy & Engagement",60.00
PX578931D,10/10/2022,GRANT PAYMENTS,School - Clothing,"Dir of  Culture, Strategy & Engagement",60.00
PX979251D,10/10/2022,GRANT PAYMENTS,School - Clothing,"Dir of  Culture, Strategy & Engagement",60.00
SC275409B,10/10/2022,GRANT PAYMENTS,School - Clothing,"Dir of  Culture, Strategy & Engagement",60.00
SE207091D,10/10/2022,GRANT PAYMENTS,School - Clothing,"Dir of  Culture, Strategy & Engagement",60.00
SH122945B,10/10/2022,GRANT PAYMENTS,School - Clothing,"Dir of  Culture, Strategy & Engagement",60.00
SJ286333B,10/10/2022,GRANT PAYMENTS,School - Clothing,"Dir of  Culture, Strategy & Engagement",60.00
SK462094C,10/10/2022,GRANT PAYMENTS,School - Clothing,"Dir of  Culture, Strategy & Engagement",60.00
SL416720A,10/10/2022,GRANT PAYMENTS,School - Clothing,"Dir of  Culture, Strategy & Engagement",60.00
SL779579D,10/10/2022,GRANT PAYMENTS,School - Clothing,"Dir of  Culture, Strategy & Engagement",60.00
SN123006C,10/10/2022,GRANT PAYMENTS,School - Clothing,"Dir of  Culture, Strategy & Engagement",60.00
SN865888A,10/10/2022,GRANT PAYMENTS,School - Clothing,"Dir of  Culture, Strategy & Engagement",60.00
SR832089B,10/10/2022,GRANT PAYMENTS,School - Clothing,"Dir of  Culture, Strategy & Engagement",60.00
